SERVICE_CODE,ORGANISATION_UNIT,EXPENDITURE_CATEGORY,EXPENDITURE_DESCRIPTION,EXPENDITURE_CODE,NARRATIVE,DATE,TRANSATION_CODE,NET_AMOUNT,SUPPLIER_CODE,SUPPLIER_NAME,FROM_DATE,TO_DATE,FINANCIAL_PERIOD_YEAR
,LEE VALLEY CARAVAN PARK,PREMISES RELATED EXPENDITURE,GENERAL WASTE,2211,P122234-SERVICE-Weight surcharge,13/6/2023 00:00:00,274521,1486.8,CL0037,VEOLIA ES (UK) LTD,29/5/2023 00:00:00,25/6/2023 00:00:00,P03-2024
P&V,RIVER LEE COUNTRY PARK,PREMISES RELATED EXPENDITURE,GENERAL WASTE,2211,P121689-SERVICE-12yd General Rubbish Skip at Holyfield Hall F,13/6/2023 00:00:00,274699,323.4,GB0239,GBN SERVICES LTD,29/5/2023 00:00:00,25/6/2023 00:00:00,P03-2024
P&V,RIVER LEE COUNTRY PARK,PREMISES RELATED EXPENDITURE,GENERAL WASTE,2211,P121689-SERVICE-12yd General Rubbish Skip at Holyfield Hall F,23/6/2023 00:00:00,275160,323.4,GB0239,GBN SERVICES LTD,29/5/2023 00:00:00,25/6/2023 00:00:00,P03-2024
,LV LEISURE CENTRE CAMPSITE,PREMISES RELATED EXPENDITURE,GENERAL WASTE,2211,P122214-SERVICE-Compactor waste empty and hire,23/6/2023 00:00:00,274518,912.08,CL0037,VEOLIA ES (UK) LTD,29/5/2023 00:00:00,25/6/2023 00:00:00,P03-2024
P&V,MYDDELTON HOUSE,PREMISES RELATED EXPENDITURE,RECYCLING,2214,P121873-SERVICE-Recycling,13/6/2023 00:00:00,274722,280.82,CA0341,F & R CAWLEY LTD,29/5/2023 00:00:00,25/6/2023 00:00:00,P03-2024
P&V,MYDDELTON HOUSE,PREMISES RELATED EXPENDITURE,BUILDING SERVICE AGREEMENTS,2220,P121870-SERVICE-Sanitary Services,06/05/2023 00:00,274350,190.23,PE0015,PHS GROUP PLC,29/5/2023 00:00:00,25/6/2023 00:00:00,P03-2024
P&V,MYDDELTON HOUSE,PREMISES RELATED EXPENDITURE,BUILDING SERVICE AGREEMENTS,2220,P121870-SERVICE-Sanitary Services,06/05/2023 00:00,274382,9.09,PE0015,PHS GROUP PLC,29/5/2023 00:00:00,25/6/2023 00:00:00,P03-2024
P&V,MYDDELTON HOUSE,PREMISES RELATED EXPENDITURE,BUILDING SERVICE AGREEMENTS,2220,P121870-SERVICE-Sanitary Services,06/05/2023 00:00,274383,24.15,PE0015,PHS GROUP PLC,29/5/2023 00:00:00,25/6/2023 00:00:00,P03-2024
P&V,MYDDELTON HOUSE,PREMISES RELATED EXPENDITURE,BUILDING SERVICE AGREEMENTS,2220,P121905-SERVICE-Test & Inspect Fall Arrest Equipment as Per Q,13/6/2023 00:00:00,274745,235,OC0009,PTSG PREMIER TECHNICAL SERVICES GROUP,29/5/2023 00:00:00,25/6/2023 00:00:00,P03-2024
P&V,MYDDELTON HOUSE,PREMISES RELATED EXPENDITURE,BUILDING SERVICE AGREEMENTS,2220,P121870-SERVICE-Sanitary Services,20/6/2023 00:00:00,275027,80.68,PE0015,PHS GROUP PLC,29/5/2023 00:00:00,25/6/2023 00:00:00,P03-2024
P&V,MYDDELTON HOUSE,PREMISES RELATED EXPENDITURE,BUILDING SERVICE AGREEMENTS,2220,P122371-SERVICE-Abercrombie Lodge & Visitor Centre GSHP Servi,23/6/2023 00:00:00,275056,286.25,CO0199,EQUANS FM LIMITED (frmlyENGIE FM LIMITED),29/5/2023 00:00:00,25/6/2023 00:00:00,P03-2024
P&V,MYDDELTON HOUSE,PREMISES RELATED EXPENDITURE,BUILDING SERVICE AGREEMENTS,2220,P122372-SERVICE-Work on Intruder System 19/06/23,23/6/2023 00:00:00,275127,425.5,AD0015,ADT FIRE & SECURITY PLC,29/5/2023 00:00:00,25/6/2023 00:00:00,P03-2024
P&V,MYDDELTON HOUSE,PREMISES RELATED EXPENDITURE,BUILDING SERVICE AGREEMENTS,2220,P120852-SERVICE-Remedial Works to Float Bracket,23/6/2023 00:00:00,275157,339.29,CL0039,XYLEM WATER SOLUTIONS UK  LIMITED,29/5/2023 00:00:00,25/6/2023 00:00:00,P03-2024
,LEE VALLEY CAMPSITE,PREMISES RELATED EXPENDITURE,BUILDING SERVICE AGREEMENTS,2220,P121067-SERVICE-Annual cover 01/04/23 01/03/24,19/6/2023 00:00:00,274533,-138.38,AC0012,SCUTUM SOUTH EAST LTD (frmly Active Security),29/5/2023 00:00:00,25/6/2023 00:00:00,P03-2024
,LEE VALLEY CAMPSITE,PREMISES RELATED EXPENDITURE,BUILDING SERVICE AGREEMENTS,2220,P120223-SERVICE-Annual renewal Intruder Alarm Managers House,19/6/2023 00:00:00,274534,-102.41,AC0012,SCUTUM SOUTH EAST LTD (frmly Active Security),29/5/2023 00:00:00,25/6/2023 00:00:00,P03-2024
,LEE VALLEY CAMPSITE,PREMISES RELATED EXPENDITURE,BUILDING SERVICE AGREEMENTS,2220,P122305-SERVICE-Playpark inspection 23/24,19/6/2023 00:00:00,274717,252,PL0107,PLAYSAFETY LTD,29/5/2023 00:00:00,25/6/2023 00:00:00,P03-2024
,LEE VALLEY CAMPSITE,PREMISES RELATED EXPENDITURE,BUILDING SERVICE AGREEMENTS,2220,P121646-SERVICE-April 23,19/6/2023 00:00:00,274800,10,VE0006,VERMINATE CITY & RURAL PEST CONTROL LTD,29/5/2023 00:00:00,25/6/2023 00:00:00,P03-2024
,LEE VALLEY CAMPSITE,PREMISES RELATED EXPENDITURE,BUILDING SERVICE AGREEMENTS,2220,P121646-SERVICE-May 23,19/6/2023 00:00:00,274800,60,VE0006,VERMINATE CITY & RURAL PEST CONTROL LTD,29/5/2023 00:00:00,25/6/2023 00:00:00,P03-2024
,LEE VALLEY CAMPSITE,PREMISES RELATED EXPENDITURE,BUILDING SERVICE AGREEMENTS,2220,P121646-SERVICE-May 23,19/6/2023 00:00:00,274801,20,VE0006,VERMINATE CITY & RURAL PEST CONTROL LTD,29/5/2023 00:00:00,25/6/2023 00:00:00,P03-2024
,LEE VALLEY CAMPSITE,PREMISES RELATED EXPENDITURE,BUILDING SERVICE AGREEMENTS,2220,P121646-SERVICE-June 23,19/6/2023 00:00:00,274801,50,VE0006,VERMINATE CITY & RURAL PEST CONTROL LTD,29/5/2023 00:00:00,25/6/2023 00:00:00,P03-2024
,LEE VALLEY CARAVAN PARK,PREMISES RELATED EXPENDITURE,BUILDING SERVICE AGREEMENTS,2220,P121674-SERVICE-Annual Playground Inspectiion,13/6/2023 00:00:00,274716,105,PL0107,PLAYSAFETY LTD,29/5/2023 00:00:00,25/6/2023 00:00:00,P03-2024
,LEE VALLEY CARAVAN PARK,PREMISES RELATED EXPENDITURE,BUILDING SERVICE AGREEMENTS,2220,P122318-SERVICE-Pest control,19/6/2023 00:00:00,274798,70,VE0006,VERMINATE CITY & RURAL PEST CONTROL LTD,29/5/2023 00:00:00,25/6/2023 00:00:00,P03-2024
,LEE VALLEY CARAVAN PARK,PREMISES RELATED EXPENDITURE,BUILDING SERVICE AGREEMENTS,2220,P122319-SERVICE-Pest control,19/6/2023 00:00:00,274799,70,VE0006,VERMINATE CITY & RURAL PEST CONTROL LTD,29/5/2023 00:00:00,25/6/2023 00:00:00,P03-2024
,LEE VALLEY CARAVAN PARK,PREMISES RELATED EXPENDITURE,BUILDING SERVICE AGREEMENTS,2220,P122243-SERVICE-! x single cabinet,23/6/2023 00:00:00,274812,86.11,TJ0009,T.J.FIRE & SECURITY,29/5/2023 00:00:00,25/6/2023 00:00:00,P03-2024
,LEE VALLEY CARAVAN PARK,PREMISES RELATED EXPENDITURE,BUILDING SERVICE AGREEMENTS,2220,P122243-SERVICE-5 x Powder Extinguisher,23/6/2023 00:00:00,274812,267.25,TJ0009,T.J.FIRE & SECURITY,29/5/2023 00:00:00,25/6/2023 00:00:00,P03-2024
,LEE VALLEY CARAVAN PARK,PREMISES RELATED EXPENDITURE,BUILDING SERVICE AGREEMENTS,2220,P122243-SERVICE-1 x Fire Bllanket,23/6/2023 00:00:00,274812,30.88,TJ0009,T.J.FIRE & SECURITY,29/5/2023 00:00:00,25/6/2023 00:00:00,P03-2024
,LEE VALLEY CARAVAN PARK,PREMISES RELATED EXPENDITURE,BUILDING SERVICE AGREEMENTS,2220,P122243-SERVICE-4 x ID Signs,23/6/2023 00:00:00,274812,32.7,TJ0009,T.J.FIRE & SECURITY,29/5/2023 00:00:00,25/6/2023 00:00:00,P03-2024
P&V,NORTH AREA RANGERS,PREMISES RELATED EXPENDITURE,BUILDING SERVICE AGREEMENTS,2220,P121023-SERVICE-Sanitary Disposal - Old Mill & Meadows Toilet,20/6/2023 00:00:00,275028,3.74,PE0015,PHS GROUP PLC,29/5/2023 00:00:00,25/6/2023 00:00:00,P03-2024
P&V,GUNPOWDER PARK,PREMISES RELATED EXPENDITURE,BUILDING SERVICE AGREEMENTS,2220,P121072-SERVICE-Sanitary Disposal - Gunpowder Park Office Toi,06/05/2023 00:00,274381,2.94,PE0015,PHS GROUP PLC,29/5/2023 00:00:00,25/6/2023 00:00:00,P03-2024
P&V,GUNPOWDER PARK,PREMISES RELATED EXPENDITURE,BUILDING SERVICE AGREEMENTS,2220,P119459-SERVICE-Building Servcie Agreement - Gunpowder Park,06/07/2023 00:00,274559,118.07,CO0199,EQUANS FM LIMITED (frmlyENGIE FM LIMITED),29/5/2023 00:00:00,25/6/2023 00:00:00,P03-2024
P&V,GUNPOWDER PARK,PREMISES RELATED EXPENDITURE,BUILDING SERVICE AGREEMENTS,2220,P121073-SERVICE-Sanitary Disposal - Gunpowder Park - Public T,20/6/2023 00:00:00,274777,14.3,PE0015,PHS GROUP PLC,29/5/2023 00:00:00,25/6/2023 00:00:00,P03-2024
R&B,INFORMATION TECHNOLOGY,EMPLOYEES,APPOINTMENT EXPENSES,1301,P122374-SERVICE-GIS OFFICER ADVERT COSTS,25/6/2023 00:00:00,275195,665,SA0133,SOWERBY ADVERTISING AND COMMUNICATIONS,29/5/2023 00:00:00,25/6/2023 00:00:00,P03-2024
P&V,MYDDLETON HSE HERITAGE CENTRE,EMPLOYEES,APPOINTMENT EXPENSES,1301,P122139-SERVICE-Catering Duty Manager Advert costs,06/07/2023 00:00,274514,555,SA0133,SOWERBY ADVERTISING AND COMMUNICATIONS,29/5/2023 00:00:00,25/6/2023 00:00:00,P03-2024
R&B,CORPORATE TRAINING,EMPLOYEES,TRAINING EXPENSES,1305,P122128-SERVICE-T Oliver Training,06/05/2023 00:00,274487,3955,AB0502,ABILITY SMART LTD,29/5/2023 00:00:00,25/6/2023 00:00:00,P03-2024
R&B,CORPORATE TRAINING,EMPLOYEES,TRAINING EXPENSES,1305,P121877-SERVICE-J HETHERINGTON FAW REQUAL 28/29 JUNE 23,06/07/2023 00:00,274496,255,BR0069,BRITISH RED CROSS,29/5/2023 00:00:00,25/6/2023 00:00:00,P03-2024
R&B,CORPORATE TRAINING,EMPLOYEES,TRAINING EXPENSES,1305,P121967-SERVICE-I Russell FAW Training 28-30 June 23,06/07/2023 00:00,274497,419,BR0069,BRITISH RED CROSS,29/5/2023 00:00:00,25/6/2023 00:00:00,P03-2024
R&B,CORPORATE TRAINING,EMPLOYEES,TRAINING EXPENSES,1305,P120914-SERVICE-Leadership & Management Skills Training 6/06,14/6/2023 00:00:00,274702,3066.06,AP0492,APSE,29/5/2023 00:00:00,25/6/2023 00:00:00,P03-2024
R&B,CORPORATE TRAINING,EMPLOYEES,TRAINING EXPENSES,1305,ABILITY SMART LTD,06/12/2023 00:00,274705,0,AB0502,ABILITY SMART LTD,29/5/2023 00:00:00,25/6/2023 00:00:00,P03-2024
R&B,CORPORATE TRAINING,EMPLOYEES,TRAINING EXPENSES,1305,P121076-SERVICE-CONFLICT RESOLUTION & PS TRAINING 16/05/23,14/6/2023 00:00:00,274792,850,IK0209,IKON TRAINING LTD,29/5/2023 00:00:00,25/6/2023 00:00:00,P03-2024
P&V,SOUTH AREA RANGERS,EMPLOYEES,TRAINING EXPENSES,1305,P121965-SERVICE-SWATG Annual Group Subscription,14/6/2023 00:00:00,274768,415,SA0137,SAFFRON WALDEN AGRICULTURAL TRAINING GROUP,29/5/2023 00:00:00,25/6/2023 00:00:00,P03-2024
P&V,YOUTH AND SCHOOLS,EMPLOYEES,CRB CHECKS,1330,DBS CHECKS,06/07/2023 00:00,274513,38,DD0119,DUE DILIGENCE CHECKING LIMITED,29/5/2023 00:00:00,25/6/2023 00:00:00,P03-2024
P&V,YOUTH AND SCHOOLS,EMPLOYEES,CRB CHECKS,1330,DBS CHECKS,06/07/2023 00:00,274513,18,DD0119,DUE DILIGENCE CHECKING LIMITED,29/5/2023 00:00:00,25/6/2023 00:00:00,P03-2024
,LV LEISURE CENTRE GOLF COURSE,EMPLOYEES,CRB CHECKS,1330,UNPAID POSTAGE A COLLMAN FRANCIS,06/07/2023 00:00,274513,2.5,DD0119,DUE DILIGENCE CHECKING LIMITED,29/5/2023 00:00:00,25/6/2023 00:00:00,P03-2024
,LV LEISURE CENTRE GOLF COURSE,EMPLOYEES,CRB CHECKS,1330,DBS CHECKS,06/07/2023 00:00,274513,36,DD0119,DUE DILIGENCE CHECKING LIMITED,29/5/2023 00:00:00,25/6/2023 00:00:00,P03-2024
R&B,CORPORATE TRAINING,EMPLOYEES,APPRENTICE LEVY,1390,PAYE,06/12/2023 00:00,274736,884,HM0368,HMRC,29/5/2023 00:00:00,25/6/2023 00:00:00,P03-2024
CEO,LVLC SERVICE CHARGE,PREMISES RELATED EXPENDITURE,SCHEDULED GROUND MAINTENANCE,2111,May-23,25/6/2023 00:00:00,275148,110.27,GL0214,GLENDALE GROUNDS MANAGEMENT LIMITED,29/5/2023 00:00:00,25/6/2023 00:00:00,P03-2024
CEO,LVLC SERVICE CHARGE,PREMISES RELATED EXPENDITURE,SCHEDULED GROUND MAINTENANCE,2111,May-23,25/6/2023 00:00:00,275148,3023.46,GL0214,GLENDALE GROUNDS MANAGEMENT LIMITED,29/5/2023 00:00:00,25/6/2023 00:00:00,P03-2024
P&V,MYDDELTON HOUSE,PREMISES RELATED EXPENDITURE,CONTRACT CLEANING,2120,P121875-SERVICE-Myddelton House Cleaning,06/07/2023 00:00,274538,1681.68,BR0632,BRITANNIA SERVICES GROUP LTD,29/5/2023 00:00:00,25/6/2023 00:00:00,P03-2024
P&V,MYDDELTON HOUSE,PREMISES RELATED EXPENDITURE,CONTRACT CLEANING,2120,"P122159-SERVICE-Cleaning of all Gutters, Gulleys and Downpipe",13/6/2023 00:00:00,274695,685,PH0424,PHOENIX WINDOW CLEANING LTD,29/5/2023 00:00:00,25/6/2023 00:00:00,P03-2024
P&V,MYDDELTON HOUSE,PREMISES RELATED EXPENDITURE,CONTRACT CLEANING,2120,P122158-SERVICE-Window Cleaning at Myddelton House,13/6/2023 00:00:00,274696,785,PH0424,PHOENIX WINDOW CLEANING LTD,29/5/2023 00:00:00,25/6/2023 00:00:00,P03-2024
,LEE VALLEY WATERWORKS CENTRE,PREMISES RELATED EXPENDITURE,CONTRACT CLEANING,2120,P118242-SERVICE-Cleaning WaterWorks Centre,06/07/2023 00:00,274541,776.16,BR0632,BRITANNIA SERVICES GROUP LTD,29/5/2023 00:00:00,25/6/2023 00:00:00,P03-2024
,LEE VALLEY CAMPSITE,PREMISES RELATED EXPENDITURE,CONTRACT CLEANING,2120,P121607-SERVICE-26/06/23 - 25/07/23,19/6/2023 00:00:00,274583,88.25,IN0012,INITIAL WASHROOM HYGIENE,29/5/2023 00:00:00,25/6/2023 00:00:00,P03-2024
,LEE VALLEY CARAVAN PARK,PREMISES RELATED EXPENDITURE,CONTRACT CLEANING,2120,P122244-SERVICE-Contract cleaning,13/6/2023 00:00:00,274603,4556,LI0305,LIMPIAR CLEANING,29/5/2023 00:00:00,25/6/2023 00:00:00,P03-2024
,LEE VALLEY CARAVAN PARK,PREMISES RELATED EXPENDITURE,CONTRACT CLEANING,2120,P122320-SERVICE-Washroom hygiene,19/6/2023 00:00:00,274827,93.28,IN0012,INITIAL WASHROOM HYGIENE,29/5/2023 00:00:00,25/6/2023 00:00:00,P03-2024
P&V,WILDLIFE DISCOVERY CENTRE,PREMISES RELATED EXPENDITURE,CONTRACT CLEANING,2120,P118094-SERVICE-Cleaning,13/6/2023 00:00:00,274540,388.08,BR0632,BRITANNIA SERVICES GROUP LTD,29/5/2023 00:00:00,25/6/2023 00:00:00,P03-2024
P&V,GUNPOWDER PARK,PREMISES RELATED EXPENDITURE,CONTRACT CLEANING,2120,May-23,25/6/2023 00:00:00,275148,552.26,GL0214,GLENDALE GROUNDS MANAGEMENT LIMITED,29/5/2023 00:00:00,25/6/2023 00:00:00,P03-2024
P&V,RIVER LEE COUNTRY PARK,PREMISES RELATED EXPENDITURE,CONTRACT CLEANING,2120,May-23,25/6/2023 00:00:00,275148,1104.51,GL0214,GLENDALE GROUNDS MANAGEMENT LIMITED,29/5/2023 00:00:00,25/6/2023 00:00:00,P03-2024
,LV LEISURE CENTRE CAMPSITE,PREMISES RELATED EXPENDITURE,CONTRACT CLEANING,2120,P122216-SERVICE-Site cleaning,23/6/2023 00:00:00,274601,2854,LI0305,LIMPIAR CLEANING,29/5/2023 00:00:00,25/6/2023 00:00:00,P03-2024
,LV LEISURE CENTRE CAMPSITE,PREMISES RELATED EXPENDITURE,CONTRACT CLEANING,2120,P122349-SERVICE-sanitary disposal waste empty,23/6/2023 00:00:00,274693,162.3,PE0015,PHS GROUP PLC,29/5/2023 00:00:00,25/6/2023 00:00:00,P03-2024
,LV LEISURE CENTRE CAMPSITE,PREMISES RELATED EXPENDITURE,CONTRACT CLEANING,2120,P122350-SERVICE-recycling waste disposal,23/6/2023 00:00:00,274704,479.4,BY0049,BYWATERS (LEYTON) LTD,29/5/2023 00:00:00,25/6/2023 00:00:00,P03-2024
P&V,MYDDLETON HSE HERITAGE CENTRE,PREMISES RELATED EXPENDITURE,CLEANING CONTRACT,2121,P121876-SERVICE-Tea Room Cleaning,06/07/2023 00:00,274539,840.84,BR0632,BRITANNIA SERVICES GROUP LTD,29/5/2023 00:00:00,25/6/2023 00:00:00,P03-2024
,LEE VALLEY CARAVAN PARK,PREMISES RELATED EXPENDITURE,LINEN SERVICE,2122,P122081-SERVICE-Laundry and linen service,06/05/2023 00:00,274319,872.68,JO0168,JOHNSONS STALBRIDGE LINEN SERVICES,29/5/2023 00:00:00,25/6/2023 00:00:00,P03-2024
,LEE VALLEY MARINA STANSTEAD,PREMISES RELATED EXPENDITURE,GM MAIN CONTRACT SCHEDULED,2141,May-23,25/6/2023 00:00:00,275148,645.18,GL0214,GLENDALE GROUNDS MANAGEMENT LIMITED,29/5/2023 00:00:00,25/6/2023 00:00:00,P03-2024
,LEE VALLEY WATERWORKS CENTRE,PREMISES RELATED EXPENDITURE,GM MAIN CONTRACT SCHEDULED,2141,May-23,25/6/2023 00:00:00,275148,265.73,GL0214,GLENDALE GROUNDS MANAGEMENT LIMITED,29/5/2023 00:00:00,25/6/2023 00:00:00,P03-2024
,LEE VALLEY WATERWORKS CENTRE,PREMISES RELATED EXPENDITURE,GM MAIN CONTRACT SCHEDULED,2141,May-23,25/6/2023 00:00:00,275148,606.12,GL0214,GLENDALE GROUNDS MANAGEMENT LIMITED,29/5/2023 00:00:00,25/6/2023 00:00:00,P03-2024
,LEE VALLEY FARM HAYES HILL,PREMISES RELATED EXPENDITURE,GM MAIN CONTRACT SCHEDULED,2141,May-23,25/6/2023 00:00:00,275148,149.68,GL0214,GLENDALE GROUNDS MANAGEMENT LIMITED,29/5/2023 00:00:00,25/6/2023 00:00:00,P03-2024
P&V,EAST INDIA DOCK AND BOW CREEK,PREMISES RELATED EXPENDITURE,GM MAIN CONTRACT SCHEDULED,2141,May-23,25/6/2023 00:00:00,275148,949.09,GL0214,GLENDALE GROUNDS MANAGEMENT LIMITED,29/5/2023 00:00:00,25/6/2023 00:00:00,P03-2024
P&V,EAST INDIA DOCK AND BOW CREEK,PREMISES RELATED EXPENDITURE,GM MAIN CONTRACT SCHEDULED,2141,May-23,25/6/2023 00:00:00,275148,849.88,GL0214,GLENDALE GROUNDS MANAGEMENT LIMITED,29/5/2023 00:00:00,25/6/2023 00:00:00,P03-2024
P&V,NORTH AREA RANGERS,PREMISES RELATED EXPENDITURE,GM MAIN CONTRACT SCHEDULED,2141,May-23,25/6/2023 00:00:00,275148,5770.15,GL0214,GLENDALE GROUNDS MANAGEMENT LIMITED,29/5/2023 00:00:00,25/6/2023 00:00:00,P03-2024
P&V,SOUTH AREA RANGERS,PREMISES RELATED EXPENDITURE,GM MAIN CONTRACT SCHEDULED,2141,May-23,25/6/2023 00:00:00,275148,6528.09,GL0214,GLENDALE GROUNDS MANAGEMENT LIMITED,29/5/2023 00:00:00,25/6/2023 00:00:00,P03-2024
P&V,SOUTH AREA RANGERS,PREMISES RELATED EXPENDITURE,GM MAIN CONTRACT SCHEDULED,2141,May-23,25/6/2023 00:00:00,275148,379.63,GL0214,GLENDALE GROUNDS MANAGEMENT LIMITED,29/5/2023 00:00:00,25/6/2023 00:00:00,P03-2024
P&V,ABBEY GARDENS,PREMISES RELATED EXPENDITURE,GM MAIN CONTRACT SCHEDULED,2141,May-23,25/6/2023 00:00:00,275148,2895.18,GL0214,GLENDALE GROUNDS MANAGEMENT LIMITED,29/5/2023 00:00:00,25/6/2023 00:00:00,P03-2024
P&V,GUNPOWDER PARK,PREMISES RELATED EXPENDITURE,GM MAIN CONTRACT SCHEDULED,2141,May-23,25/6/2023 00:00:00,275148,2850.5,GL0214,GLENDALE GROUNDS MANAGEMENT LIMITED,29/5/2023 00:00:00,25/6/2023 00:00:00,P03-2024
P&V,RIVER LEE COUNTRY PARK,PREMISES RELATED EXPENDITURE,GM MAIN CONTRACT SCHEDULED,2141,May-23,25/6/2023 00:00:00,275148,189.82,GL0214,GLENDALE GROUNDS MANAGEMENT LIMITED,29/5/2023 00:00:00,25/6/2023 00:00:00,P03-2024
P&V,RIVER LEE COUNTRY PARK,PREMISES RELATED EXPENDITURE,GM MAIN CONTRACT SCHEDULED,2141,May-23,25/6/2023 00:00:00,275148,16663.85,GL0214,GLENDALE GROUNDS MANAGEMENT LIMITED,29/5/2023 00:00:00,25/6/2023 00:00:00,P03-2024
,LEE VALLEY VELOPARK,PREMISES RELATED EXPENDITURE,GM MAIN CONTRACT SCHEDULED,2141,May-23,25/6/2023 00:00:00,275148,7243.95,GL0214,GLENDALE GROUNDS MANAGEMENT LIMITED,29/5/2023 00:00:00,25/6/2023 00:00:00,P03-2024
,LV HOCKEY AND TENNIS CENTRE,PREMISES RELATED EXPENDITURE,GM MAIN CONTRACT SCHEDULED,2141,May-23,25/6/2023 00:00:00,275148,4442.52,GL0214,GLENDALE GROUNDS MANAGEMENT LIMITED,29/5/2023 00:00:00,25/6/2023 00:00:00,P03-2024
P&V,THREE MILLS,PREMISES RELATED EXPENDITURE,GM MAIN CONTRACT SCHEDULED,2141,May-23,25/6/2023 00:00:00,275148,1623.64,GL0214,GLENDALE GROUNDS MANAGEMENT LIMITED,29/5/2023 00:00:00,25/6/2023 00:00:00,P03-2024
,LEE VALLEY RIDING CENTRE,PREMISES RELATED EXPENDITURE,GM MAIN CONTRACT SCHEDULED,2141,May-23,25/6/2023 00:00:00,275148,563.06,GL0214,GLENDALE GROUNDS MANAGEMENT LIMITED,29/5/2023 00:00:00,25/6/2023 00:00:00,P03-2024
,LEE VALLEY ICE CENTRE,PREMISES RELATED EXPENDITURE,GM MAIN CONTRACT SCHEDULED,2141,May-23,25/6/2023 00:00:00,275148,907.11,GL0214,GLENDALE GROUNDS MANAGEMENT LIMITED,29/5/2023 00:00:00,25/6/2023 00:00:00,P03-2024
P&V,FORMER LV LIDO SITE,PREMISES RELATED EXPENDITURE,GM MAIN CONTRACT SCHEDULED,2141,May-23,25/6/2023 00:00:00,275148,1112.21,GL0214,GLENDALE GROUNDS MANAGEMENT LIMITED,29/5/2023 00:00:00,25/6/2023 00:00:00,P03-2024
,LEE VALLEY ATHLETICS CENTRE,PREMISES RELATED EXPENDITURE,GM MAIN CONTRACT SCHEDULED,2141,May-23,25/6/2023 00:00:00,275148,672.8,GL0214,GLENDALE GROUNDS MANAGEMENT LIMITED,29/5/2023 00:00:00,25/6/2023 00:00:00,P03-2024
,LEE VALLEY WHITE WATER CENTRE,PREMISES RELATED EXPENDITURE,GM MAIN CONTRACT SCHEDULED,2141,May-23,25/6/2023 00:00:00,275148,3497.85,GL0214,GLENDALE GROUNDS MANAGEMENT LIMITED,29/5/2023 00:00:00,25/6/2023 00:00:00,P03-2024
P&V,SOUTH AREA RANGERS,PREMISES RELATED EXPENDITURE,GM MAIN CONTRACT UNSCHEDULED,2142,May-23,25/6/2023 00:00:00,275148,371.88,GL0214,GLENDALE GROUNDS MANAGEMENT LIMITED,29/5/2023 00:00:00,25/6/2023 00:00:00,P03-2024
P&V,RIVER LEE COUNTRY PARK,PREMISES RELATED EXPENDITURE,GM MAIN CONTRACT UNSCHEDULED,2142,P121346-SERVICE-Deep Litter Pick at Clayton Hill,13/6/2023 00:00:00,274589,980,JO0019,R G JOYCE,29/5/2023 00:00:00,25/6/2023 00:00:00,P03-2024
,LEE VALLEY WATERWORKS CENTRE,PREMISES RELATED EXPENDITURE,GM HORTICULTURE SCHEDULED,2143,May-23,25/6/2023 00:00:00,275148,169.95,GL0214,GLENDALE GROUNDS MANAGEMENT LIMITED,29/5/2023 00:00:00,25/6/2023 00:00:00,P03-2024
P&V,NORTH AREA RANGERS,PREMISES RELATED EXPENDITURE,GM HORTICULTURE SCHEDULED,2143,May-23,25/6/2023 00:00:00,275148,252.67,GL0214,GLENDALE GROUNDS MANAGEMENT LIMITED,29/5/2023 00:00:00,25/6/2023 00:00:00,P03-2024
P&V,SOUTH AREA RANGERS,PREMISES RELATED EXPENDITURE,GM HORTICULTURE SCHEDULED,2143,May-23,25/6/2023 00:00:00,275148,144.87,GL0214,GLENDALE GROUNDS MANAGEMENT LIMITED,29/5/2023 00:00:00,25/6/2023 00:00:00,P03-2024
P&V,ABBEY GARDENS,PREMISES RELATED EXPENDITURE,GM HORTICULTURE SCHEDULED,2143,May-23,25/6/2023 00:00:00,275148,1974.21,GL0214,GLENDALE GROUNDS MANAGEMENT LIMITED,29/5/2023 00:00:00,25/6/2023 00:00:00,P03-2024
P&V,GUNPOWDER PARK,PREMISES RELATED EXPENDITURE,GM HORTICULTURE SCHEDULED,2143,May-23,25/6/2023 00:00:00,275148,259.15,GL0214,GLENDALE GROUNDS MANAGEMENT LIMITED,29/5/2023 00:00:00,25/6/2023 00:00:00,P03-2024
P&V,RIVER LEE COUNTRY PARK,PREMISES RELATED EXPENDITURE,GM HORTICULTURE SCHEDULED,2143,May-23,25/6/2023 00:00:00,275148,134.48,GL0214,GLENDALE GROUNDS MANAGEMENT LIMITED,29/5/2023 00:00:00,25/6/2023 00:00:00,P03-2024
,LEE VALLEY VELOPARK,PREMISES RELATED EXPENDITURE,GM HORTICULTURE SCHEDULED,2143,May-23,25/6/2023 00:00:00,275148,1152.74,GL0214,GLENDALE GROUNDS MANAGEMENT LIMITED,29/5/2023 00:00:00,25/6/2023 00:00:00,P03-2024
,LV HOCKEY AND TENNIS CENTRE,PREMISES RELATED EXPENDITURE,GM HORTICULTURE SCHEDULED,2143,May-23,25/6/2023 00:00:00,275148,1660.02,GL0214,GLENDALE GROUNDS MANAGEMENT LIMITED,29/5/2023 00:00:00,25/6/2023 00:00:00,P03-2024
P&V,THREE MILLS,PREMISES RELATED EXPENDITURE,GM HORTICULTURE SCHEDULED,2143,May-23,25/6/2023 00:00:00,275148,53.88,GL0214,GLENDALE GROUNDS MANAGEMENT LIMITED,29/5/2023 00:00:00,25/6/2023 00:00:00,P03-2024
,LEE VALLEY RIDING CENTRE,PREMISES RELATED EXPENDITURE,GM HORTICULTURE SCHEDULED,2143,May-23,25/6/2023 00:00:00,275148,13.47,GL0214,GLENDALE GROUNDS MANAGEMENT LIMITED,29/5/2023 00:00:00,25/6/2023 00:00:00,P03-2024
P&V,FORMER LV LIDO SITE,PREMISES RELATED EXPENDITURE,GM HORTICULTURE SCHEDULED,2143,May-23,25/6/2023 00:00:00,275148,12.85,GL0214,GLENDALE GROUNDS MANAGEMENT LIMITED,29/5/2023 00:00:00,25/6/2023 00:00:00,P03-2024
,LEE VALLEY WHITE WATER CENTRE,PREMISES RELATED EXPENDITURE,GM HORTICULTURE SCHEDULED,2143,May-23,25/6/2023 00:00:00,275148,29.42,GL0214,GLENDALE GROUNDS MANAGEMENT LIMITED,29/5/2023 00:00:00,25/6/2023 00:00:00,P03-2024
,LEE VALLEY WATERWORKS CENTRE,PREMISES RELATED EXPENDITURE,GM NON MAIN CONT UNSCHEDULED,2147,P121711-SERVICE-Repair Doors Dog Agility Lock-up at WaterWork,13/6/2023 00:00:00,274682,800,JO0019,R G JOYCE,29/5/2023 00:00:00,25/6/2023 00:00:00,P03-2024
P&V,GUNPOWDER PARK,PREMISES RELATED EXPENDITURE,GM NON MAIN CONT UNSCHEDULED,2147,P122013-SERVICE-Repair ug on Bollard at Gunpowder Park,19/6/2023 00:00:00,274932,180,RE0094,REACT 2 IT (BUILDING & REFURBISHMENT) LTD,29/5/2023 00:00:00,25/6/2023 00:00:00,P03-2024
P&V,RIVER LEE COUNTRY PARK,PREMISES RELATED EXPENDITURE,GM NON MAIN CONT UNSCHEDULED,2147,P122072-SERVICE-Replace Bridge Bowyers Water - Causeway,13/6/2023 00:00:00,274590,700,JO0019,R G JOYCE,29/5/2023 00:00:00,25/6/2023 00:00:00,P03-2024
P&V,RIVER LEE COUNTRY PARK,PREMISES RELATED EXPENDITURE,GM NON MAIN CONT UNSCHEDULED,2147,P122071-SERVICE-Replace Bridge Bowyers Water,19/6/2023 00:00:00,274832,500,JO0019,R G JOYCE,29/5/2023 00:00:00,25/6/2023 00:00:00,P03-2024
,LEE VALLEY MARINA SPRINGFIELD,PREMISES RELATED EXPENDITURE,GENERAL WASTE,2211,P121653-SERVICE-General waste & Recyling April to Sept 2023,06/07/2023 00:00,274524,2.72,CL0037,VEOLIA ES (UK) LTD,29/5/2023 00:00:00,25/6/2023 00:00:00,P03-2024
,LEE VALLEY MARINA SPRINGFIELD,PREMISES RELATED EXPENDITURE,GENERAL WASTE,2211,P121653-SERVICE-General waste & Recyling April to Sept 2023,06/07/2023 00:00,274525,391.32,CL0037,VEOLIA ES (UK) LTD,29/5/2023 00:00:00,25/6/2023 00:00:00,P03-2024
,LEE VALLEY MARINA SPRINGFIELD,PREMISES RELATED EXPENDITURE,GENERAL WASTE,2211,P121653-SERVICE-General waste & Recyling April to Sept 2023,06/07/2023 00:00,274526,1217.55,CL0037,VEOLIA ES (UK) LTD,29/5/2023 00:00:00,25/6/2023 00:00:00,P03-2024
,LEE VALLEY MARINA STANSTEAD,PREMISES RELATED EXPENDITURE,GENERAL WASTE,2211,P121961-SERVICE-annual bin pick ups for RH & SM,06/07/2023 00:00,274519,291.12,CL0037,VEOLIA ES (UK) LTD,29/5/2023 00:00:00,25/6/2023 00:00:00,P03-2024
,LEE VALLEY MARINA STANSTEAD,PREMISES RELATED EXPENDITURE,GENERAL WASTE,2211,P121961-SERVICE-annual bin pick ups for RH & SM,06/07/2023 00:00,274522,1290.67,CL0037,VEOLIA ES (UK) LTD,29/5/2023 00:00:00,25/6/2023 00:00:00,P03-2024
,LEE VALLEY CAMPSITE,PREMISES RELATED EXPENDITURE,GENERAL WASTE,2211,P121610-SERVICE-Skip empty APRIL -JUN 23,19/6/2023 00:00:00,274523,1321.66,CL0037,VEOLIA ES (UK) LTD,29/5/2023 00:00:00,25/6/2023 00:00:00,P03-2024
,LEE VALLEY CARAVAN PARK,PREMISES RELATED EXPENDITURE,GENERAL WASTE,2211,P122233-SERVICE-Waste collections,13/6/2023 00:00:00,274520,2697.1,CL0037,VEOLIA ES (UK) LTD,29/5/2023 00:00:00,25/6/2023 00:00:00,P03-2024
P&V,RIVER LEE COUNTRY PARK,PREMISES RELATED EXPENDITURE,BUILDING SERVICE AGREEMENTS,2220,P121071-SERVICE-Sanitary Disposal - Ranger Base Office Holyfi,06/05/2023 00:00,274380,6.47,PE0015,PHS GROUP PLC,29/5/2023 00:00:00,25/6/2023 00:00:00,P03-2024
P&V,RIVER LEE COUNTRY PARK,PREMISES RELATED EXPENDITURE,BUILDING SERVICE AGREEMENTS,2220,P121074-SERVICE-Sanitary Disposal - Fishers Green Toilets,20/6/2023 00:00:00,274778,10.72,PE0015,PHS GROUP PLC,29/5/2023 00:00:00,25/6/2023 00:00:00,P03-2024
P&V,ALMOST WILD CAMPSITE,PREMISES RELATED EXPENDITURE,BUILDING SERVICE AGREEMENTS,2220,P122243-SERVICE-Increase Funds To Cover Invoice,23/6/2023 00:00:00,274812,38.25,TJ0009,T.J.FIRE & SECURITY,29/5/2023 00:00:00,25/6/2023 00:00:00,P03-2024
,LV LEISURE CENTRE CAMPSITE,PREMISES RELATED EXPENDITURE,BUILDING SERVICE AGREEMENTS,2220,P122048-SERVICE-Greenkeepers shed fire extinguishers,06/05/2023 00:00,274349,466.48,MO0478,MORGAN FIRE PROTECTION LTD,29/5/2023 00:00:00,25/6/2023 00:00:00,P03-2024
,LV LEISURE CENTRE CAMPSITE,PREMISES RELATED EXPENDITURE,BUILDING SERVICE AGREEMENTS,2220,P122352-SERVICE-blocked toilets and urinals pushed through ma,23/6/2023 00:00:00,274710,180,CO0550,CONVERT WATER LTD,29/5/2023 00:00:00,25/6/2023 00:00:00,P03-2024
,LV LEISURE CENTRE CAMPSITE,PREMISES RELATED EXPENDITURE,BUILDING SERVICE AGREEMENTS,2220,P122353-SERVICE-unblocked manhole cover,23/6/2023 00:00:00,274711,320,CO0550,CONVERT WATER LTD,29/5/2023 00:00:00,25/6/2023 00:00:00,P03-2024
,LV LEISURE CENTRE CAMPSITE,PREMISES RELATED EXPENDITURE,BUILDING SERVICE AGREEMENTS,2220,P121939-SERVICE-Compliance Ducts,23/6/2023 00:00:00,274763,210,JL0014,JLA LIMITED,29/5/2023 00:00:00,25/6/2023 00:00:00,P03-2024
,LV LEISURE CENTRE CAMPSITE,PREMISES RELATED EXPENDITURE,BUILDING SERVICE AGREEMENTS,2220,P121939-SERVICE-Compliance Ducts,23/6/2023 00:00:00,274764,210,JL0014,JLA LIMITED,29/5/2023 00:00:00,25/6/2023 00:00:00,P03-2024
,LV LEISURE CENTRE CAMPSITE,PREMISES RELATED EXPENDITURE,BUILDING SERVICE AGREEMENTS,2220,P122362-SERVICE-pest control  monthly,23/6/2023 00:00:00,274802,70,VE0006,VERMINATE CITY & RURAL PEST CONTROL LTD,29/5/2023 00:00:00,25/6/2023 00:00:00,P03-2024
,LV LEISURE CENTRE CAMPSITE,PREMISES RELATED EXPENDITURE,BUILDING SERVICE AGREEMENTS,2220,P122363-SERVICE-pest control june,23/6/2023 00:00:00,274803,70,VE0006,VERMINATE CITY & RURAL PEST CONTROL LTD,29/5/2023 00:00:00,25/6/2023 00:00:00,P03-2024
P&V,MYDDELTON HOUSE,PREMISES RELATED EXPENDITURE,BUILDING REPAIRS & MAINTENANCE,2222,P122054-SERVICE-Clean & Disinfect the Following Areas:,14/6/2023 00:00:00,274762,280,JA0177,JASUN ENVIROCARE PLC,29/5/2023 00:00:00,25/6/2023 00:00:00,P03-2024
CEO,RESIDENTIAL ACCOMMODATION,PREMISES RELATED EXPENDITURE,BUILDING REPAIRS & MAINTENANCE,2222,P122187-SERVICE-2 Bungalow Pest Control,20/6/2023 00:00:00,274368,410,WA0315,PAUL WALLACE ESTATE AGENTS,29/5/2023 00:00:00,25/6/2023 00:00:00,P03-2024
CEO,RESIDENTIAL ACCOMMODATION,PREMISES RELATED EXPENDITURE,BUILDING REPAIRS & MAINTENANCE,2222,P122083-SERVICE-Clear Fly Tipping at Connaught Close,06/07/2023 00:00,274495,715,CA0165,CASTLES,29/5/2023 00:00:00,25/6/2023 00:00:00,P03-2024
CEO,COMMERCIAL ACCOMMODATION,PREMISES RELATED EXPENDITURE,BUILDING REPAIRS & MAINTENANCE,2222,P121780-SERVICE-Concrete blocks Wharf Road,14/6/2023 00:00:00,274542,62,NA0171,NAIVETTE SERVICES LTD,29/5/2023 00:00:00,25/6/2023 00:00:00,P03-2024
,LEE VALLEY MARINA SPRINGFIELD,PREMISES RELATED EXPENDITURE,BUILDING REPAIRS & MAINTENANCE,2222,P119134-SERVICE-Chubb alarm repair,13/6/2023 00:00:00,266546,240.73,CH0088,CHUBB FIRE & SECURITY,29/5/2023 00:00:00,25/6/2023 00:00:00,P03-2024
,LEE VALLEY MARINA SPRINGFIELD,PREMISES RELATED EXPENDITURE,BUILDING REPAIRS & MAINTENANCE,2222,P122020-SERVICE-Replace motor on far side gate as per quote,06/05/2023 00:00,274369,1358,DE0013,DENNIS SECURITY CENTRE,29/5/2023 00:00:00,25/6/2023 00:00:00,P03-2024
,LEE VALLEY MARINA SPRINGFIELD,PREMISES RELATED EXPENDITURE,BUILDING REPAIRS & MAINTENANCE,2222,P122104-SERVICE-Supply and fit 11kw viessmann boiler,06/05/2023 00:00,274451,3180,SO0400,SOUTHERN GREEN SERVICES LIMITED,29/5/2023 00:00:00,25/6/2023 00:00:00,P03-2024
,LEE VALLEY MARINA SPRINGFIELD,PREMISES RELATED EXPENDITURE,BUILDING REPAIRS & MAINTENANCE,2222,P120845-SERVICE-To carry out chlorination works as per,06/05/2023 00:00,274452,540,SO0400,SOUTHERN GREEN SERVICES LIMITED,29/5/2023 00:00:00,25/6/2023 00:00:00,P03-2024
,LEE VALLEY MARINA SPRINGFIELD,PREMISES RELATED EXPENDITURE,BUILDING REPAIRS & MAINTENANCE,2222,P120791-SERVICE-Supply & fit new smart thermostat for Ambi,06/05/2023 00:00,274453,180,SO0400,SOUTHERN GREEN SERVICES LIMITED,29/5/2023 00:00:00,25/6/2023 00:00:00,P03-2024
,LEE VALLEY MARINA SPRINGFIELD,PREMISES RELATED EXPENDITURE,BUILDING REPAIRS & MAINTENANCE,2222,P120790-SERVICE-To service gas water heater,06/05/2023 00:00,274454,50,SO0400,SOUTHERN GREEN SERVICES LIMITED,29/5/2023 00:00:00,25/6/2023 00:00:00,P03-2024
,LEE VALLEY MARINA SPRINGFIELD,PREMISES RELATED EXPENDITURE,BUILDING REPAIRS & MAINTENANCE,2222,P120790-SERVICE-To service worcester heating boiler,06/05/2023 00:00,274454,210,SO0400,SOUTHERN GREEN SERVICES LIMITED,29/5/2023 00:00:00,25/6/2023 00:00:00,P03-2024
,LEE VALLEY MARINA SPRINGFIELD,PREMISES RELATED EXPENDITURE,BUILDING REPAIRS & MAINTENANCE,2222,P122103-SERVICE-Supply & fit new gas vent in workshop,06/05/2023 00:00,274455,95,SO0400,SOUTHERN GREEN SERVICES LIMITED,29/5/2023 00:00:00,25/6/2023 00:00:00,P03-2024
,LEE VALLEY MARINA SPRINGFIELD,PREMISES RELATED EXPENDITURE,BUILDING REPAIRS & MAINTENANCE,2222,P120791-SERVICE-Supply & fit new smart thermostat for Ambi,06/05/2023 00:00,274457,345,SO0400,SOUTHERN GREEN SERVICES LIMITED,29/5/2023 00:00:00,25/6/2023 00:00:00,P03-2024
,LEE VALLEY MARINA SPRINGFIELD,PREMISES RELATED EXPENDITURE,BUILDING REPAIRS & MAINTENANCE,2222,P120791-SERVICE-To carry out Gas safety inspection of whole,06/05/2023 00:00,274457,180,SO0400,SOUTHERN GREEN SERVICES LIMITED,29/5/2023 00:00:00,25/6/2023 00:00:00,P03-2024
,LEE VALLEY MARINA SPRINGFIELD,PREMISES RELATED EXPENDITURE,BUILDING REPAIRS & MAINTENANCE,2222,P122112-SERVICE-Refurbish fan on ambi rad unit,06/05/2023 00:00,274458,240,SO0400,SOUTHERN GREEN SERVICES LIMITED,29/5/2023 00:00:00,25/6/2023 00:00:00,P03-2024
,LEE VALLEY MARINA SPRINGFIELD,PREMISES RELATED EXPENDITURE,BUILDING REPAIRS & MAINTENANCE,2222,P120790-SERVICE-To service gas water heater,06/05/2023 00:00,274459,130,SO0400,SOUTHERN GREEN SERVICES LIMITED,29/5/2023 00:00:00,25/6/2023 00:00:00,P03-2024
,LEE VALLEY MARINA SPRINGFIELD,PREMISES RELATED EXPENDITURE,BUILDING REPAIRS & MAINTENANCE,2222,"P120790-SERVICE-To replace heating zone valve, refill system",06/05/2023 00:00,274459,80,SO0400,SOUTHERN GREEN SERVICES LIMITED,29/5/2023 00:00:00,25/6/2023 00:00:00,P03-2024
,LEE VALLEY MARINA SPRINGFIELD,PREMISES RELATED EXPENDITURE,BUILDING REPAIRS & MAINTENANCE,2222,"P120790-SERVICE-To replace heating zone valve, refill system",06/05/2023 00:00,274460,180,SO0400,SOUTHERN GREEN SERVICES LIMITED,29/5/2023 00:00:00,25/6/2023 00:00:00,P03-2024
,LEE VALLEY MARINA SPRINGFIELD,PREMISES RELATED EXPENDITURE,BUILDING REPAIRS & MAINTENANCE,2222,P122112-SERVICE-Supply & replace a 28mm zone val  & refill,06/05/2023 00:00,274461,260,SO0400,SOUTHERN GREEN SERVICES LIMITED,29/5/2023 00:00:00,25/6/2023 00:00:00,P03-2024
,LEE VALLEY MARINA SPRINGFIELD,PREMISES RELATED EXPENDITURE,BUILDING REPAIRS & MAINTENANCE,2222,P119134-SERVICE-Chubb alarm repair,13/6/2023 00:00:00,274715,-165.2,CH0088,CHUBB FIRE & SECURITY,29/5/2023 00:00:00,25/6/2023 00:00:00,P03-2024
,LEE VALLEY WATERWORKS CENTRE,PREMISES RELATED EXPENDITURE,BUILDING REPAIRS & MAINTENANCE,2222,P121250-SERVICE-Shutter Repair at Waterworks Centre,06/05/2023 00:00,274337,2175,GU0198,GUARDIAN INDUSTRIAL DOORS LIMITED,29/5/2023 00:00:00,25/6/2023 00:00:00,P03-2024
,LEE VALLEY WATERWORKS CENTRE,PREMISES RELATED EXPENDITURE,BUILDING REPAIRS & MAINTENANCE,2222,P122345-SERVICE-Unblock Urinals - Waterworks,25/6/2023 00:00:00,275046,44.36,CO0199,EQUANS FM LIMITED (frmlyENGIE FM LIMITED),29/5/2023 00:00:00,25/6/2023 00:00:00,P03-2024
P&V,LEE VALLEY FARM HOLYFIELDHALL,PREMISES RELATED EXPENDITURE,BUILDING REPAIRS & MAINTENANCE,2222,P122165-SERVICE-Service Pumping and Water Treatment,13/6/2023 00:00:00,274576,1292.71,PU0442,PUMPING SOLUTIONS (UK) LTD,29/5/2023 00:00:00,25/6/2023 00:00:00,P03-2024
P&V,RIVER LEE COUNTRY PARK,PREMISES RELATED EXPENDITURE,BUILDING REPAIRS & MAINTENANCE,2222,P122102-SERVICE-New Sockets Installed - Ranger Base Holyfield,06/05/2023 00:00,274123,100,BR0018,BRADSHAW ELECTRICAL LIMITED,29/5/2023 00:00:00,25/6/2023 00:00:00,P03-2024
P&V,RIVER LEE COUNTRY PARK,PREMISES RELATED EXPENDITURE,BUILDING REPAIRS & MAINTENANCE,2222,P122055-SERVICE-Engineer to Attend Foul Chamber - 25/05/2023,13/6/2023 00:00:00,274346,638,CO0550,CONVERT WATER LTD,29/5/2023 00:00:00,25/6/2023 00:00:00,P03-2024
,LV LEISURE CENTRE CAMPSITE,PREMISES RELATED EXPENDITURE,BUILDING REPAIRS & MAINTENANCE,2222,P122042-SERVICE-fix air con unit,06/05/2023 00:00,273670,500,PR0363,PRETTY COOL CUSTOMERS LTD,29/5/2023 00:00:00,25/6/2023 00:00:00,P03-2024
,LV LEISURE CENTRE CAMPSITE,PREMISES RELATED EXPENDITURE,BUILDING REPAIRS & MAINTENANCE,2222,P121458-SERVICE-Tumble dryer drawer box,13/6/2023 00:00:00,274494,175.52,AL0434,ALLSOP & FRANCIS,29/5/2023 00:00:00,25/6/2023 00:00:00,P03-2024
,LV LEISURE CENTRE CAMPSITE,PREMISES RELATED EXPENDITURE,BUILDING REPAIRS & MAINTENANCE,2222,P122302-SERVICE-repair lock main gas cupboard,20/6/2023 00:00:00,274938,132.95,BA0005,BARNET LOCK  & SECURITY LTD,29/5/2023 00:00:00,25/6/2023 00:00:00,P03-2024
,LV LEISURE CENTRE CAMPSITE,PREMISES RELATED EXPENDITURE,BUILDING REPAIRS & MAINTENANCE,2222,P121999-SERVICE-disabled alarm call set up,23/6/2023 00:00:00,274999,578,RV0035,RVTV SECURITY GROUP LTD,29/5/2023 00:00:00,25/6/2023 00:00:00,P03-2024
,LV LEISURE CENTRE GOLF COURSE,PREMISES RELATED EXPENDITURE,BUILDING REPAIRS & MAINTENANCE,2222,P121145-SERVICE-GroundsYard Emergency Lighting,06/07/2023 00:00,274468,245,BR0018,BRADSHAW ELECTRICAL LIMITED,29/5/2023 00:00:00,25/6/2023 00:00:00,P03-2024
,LV LEISURE CENTRE GOLF COURSE,PREMISES RELATED EXPENDITURE,BUILDING REPAIRS & MAINTENANCE,2222,P121145-SERVICE-Ground Yard Un-Satisfactory EICR Test-Repairs,06/07/2023 00:00,274468,580,BR0018,BRADSHAW ELECTRICAL LIMITED,29/5/2023 00:00:00,25/6/2023 00:00:00,P03-2024
CEO,LVLC SERVICE CHARGE,PREMISES RELATED EXPENDITURE,BUILDING REPAIRS & MAINTENANCE,2222,P121726-SERVICE-Contract Sweep,21/6/2023 00:00:00,274998,150,SE0374,SELECT SWEEPER HIRE LTD,29/5/2023 00:00:00,25/6/2023 00:00:00,P03-2024
P&V,GUNPOWDER PARK,SUPPLIES AND SERVICES,FENCES/GATES ETC.,2231,P122138-SERVICE-Fence Repairs at Rammey Marsh,13/6/2023 00:00:00,274706,750,JO0019,R G JOYCE,29/5/2023 00:00:00,25/6/2023 00:00:00,P03-2024
P&V,RIVER LEE COUNTRY PARK,SUPPLIES AND SERVICES,FENCES/GATES ETC.,2231,P121007-SERVICE-Gate Refurb - North of Park Various Sites,21/6/2023 00:00:00,274966,4680,RE0094,REACT 2 IT (BUILDING & REFURBISHMENT) LTD,29/5/2023 00:00:00,25/6/2023 00:00:00,P03-2024
P&V,RIVER LEE COUNTRY PARK,SUPPLIES AND SERVICES,FENCES/GATES ETC.,2231,"P121006-SERVICE-Height Barriers - Cornmill Meadows, Turnford",20/6/2023 00:00:00,274967,2970,RE0094,REACT 2 IT (BUILDING & REFURBISHMENT) LTD,29/5/2023 00:00:00,25/6/2023 00:00:00,P03-2024
P&V,MYDDELTON HOUSE,EXPENDITURE FROM REPAIRS FUND,EXPENDITURE FROM REPAIRS FUND,2240,P121329-SERVICE-Stable Block Clock Tower additional works,23/6/2023 00:00:00,275045,635,AL0247,ALBANY SUPPORT SERVICES LTD,29/5/2023 00:00:00,25/6/2023 00:00:00,P03-2024
P&V,MYDDELTON HOUSE,EXPENDITURE FROM REPAIRS FUND,EXPENDITURE FROM REPAIRS FUND,2240,P121329-SERVICE-Stable Block Clock Tower at Myddelton House,23/6/2023 00:00:00,275045,12683.6,AL0247,ALBANY SUPPORT SERVICES LTD,29/5/2023 00:00:00,25/6/2023 00:00:00,P03-2024
CEO,RESIDENTIAL ACCOMMODATION,EXPENDITURE FROM REPAIRS FUND,EXPENDITURE FROM REPAIRS FUND,2240,KENDALL & SONS LIMITED,06/05/2023 00:00,272992,709,KE0023,KENDALL & SONS LIMITED,29/5/2023 00:00:00,25/6/2023 00:00:00,P03-2024
CEO,RESIDENTIAL ACCOMMODATION,EXPENDITURE FROM REPAIRS FUND,EXPENDITURE FROM REPAIRS FUND,2240,KENDALL & SONS LIMITED,06/05/2023 00:00,272992,-2515,KE0023,KENDALL & SONS LIMITED,29/5/2023 00:00:00,25/6/2023 00:00:00,P03-2024
CEO,RESIDENTIAL ACCOMMODATION,EXPENDITURE FROM REPAIRS FUND,EXPENDITURE FROM REPAIRS FUND,2240,P121152-SERVICE-1 Gate Cottage at Holyfield Hall Farm,06/05/2023 00:00,272992,2515,KE0023,KENDALL & SONS LIMITED,29/5/2023 00:00:00,25/6/2023 00:00:00,P03-2024
CEO,RESIDENTIAL ACCOMMODATION,EXPENDITURE FROM REPAIRS FUND,EXPENDITURE FROM REPAIRS FUND,2240,KENDALL & SONS LIMITED,06/05/2023 00:00,272992,1806,KE0023,KENDALL & SONS LIMITED,29/5/2023 00:00:00,25/6/2023 00:00:00,P03-2024
CEO,COMMERCIAL ACCOMMODATION,PREMISES RELATED EXPENDITURE,EAST HALE ALLOTMENTS,2261,P121887-SERVICE-Allotment Bins,06/07/2023 00:00,274516,150.01,CL0037,VEOLIA ES (UK) LTD,29/5/2023 00:00:00,25/6/2023 00:00:00,P03-2024
CEO,COMMERCIAL ACCOMMODATION,PREMISES RELATED EXPENDITURE,EAST HALE ALLOTMENTS,2261,P121887-SERVICE-Allotment Bins,06/07/2023 00:00,274517,18.36,CL0037,VEOLIA ES (UK) LTD,29/5/2023 00:00:00,25/6/2023 00:00:00,P03-2024
P&V,MYDDELTON HOUSE,PREMISES RELATED EXPENDITURE,ENERGY COSTS (ELECTRICITY),2332,May-23,19/6/2023 00:00:00,274911,1886.26,KE0007,KENT COUNTY COUNCIL (KCS),29/5/2023 00:00:00,25/6/2023 00:00:00,P03-2024
P&V,MYDDELTON HOUSE,PREMISES RELATED EXPENDITURE,ENERGY COSTS (ELECTRICITY),2332,Aug-22,20/6/2023 00:00:00,275024,1392.24,KE0007,KENT COUNTY COUNCIL (KCS),29/5/2023 00:00:00,25/6/2023 00:00:00,P03-2024
P&V,MYDDELTON HOUSE,PREMISES RELATED EXPENDITURE,ENERGY COSTS (ELECTRICITY),2332,Sep-22,20/6/2023 00:00:00,275034,1328.12,KE0007,KENT COUNTY COUNCIL (KCS),29/5/2023 00:00:00,25/6/2023 00:00:00,P03-2024
P&V,MYDDELTON HOUSE,PREMISES RELATED EXPENDITURE,ENERGY COSTS (ELECTRICITY),2332,Oct-22,20/6/2023 00:00:00,275035,2519.82,KE0007,KENT COUNTY COUNCIL (KCS),29/5/2023 00:00:00,25/6/2023 00:00:00,P03-2024
P&V,MYDDELTON HOUSE,PREMISES RELATED EXPENDITURE,ENERGY COSTS (ELECTRICITY),2332,Nov-22,20/6/2023 00:00:00,275036,2933.13,KE0007,KENT COUNTY COUNCIL (KCS),29/5/2023 00:00:00,25/6/2023 00:00:00,P03-2024
P&V,MYDDELTON HOUSE,PREMISES RELATED EXPENDITURE,ENERGY COSTS (ELECTRICITY),2332,Dec-22,20/6/2023 00:00:00,275037,3114.66,KE0007,KENT COUNTY COUNCIL (KCS),29/5/2023 00:00:00,25/6/2023 00:00:00,P03-2024
P&V,MYDDELTON HOUSE,PREMISES RELATED EXPENDITURE,ENERGY COSTS (ELECTRICITY),2332,Jan-23,20/6/2023 00:00:00,275038,3184.57,KE0007,KENT COUNTY COUNCIL (KCS),29/5/2023 00:00:00,25/6/2023 00:00:00,P03-2024
P&V,MYDDELTON HOUSE,PREMISES RELATED EXPENDITURE,ENERGY COSTS (ELECTRICITY),2332,Feb-23,20/6/2023 00:00:00,275039,2763.54,KE0007,KENT COUNTY COUNCIL (KCS),29/5/2023 00:00:00,25/6/2023 00:00:00,P03-2024
P&V,MYDDELTON HOUSE,PREMISES RELATED EXPENDITURE,ENERGY COSTS (ELECTRICITY),2332,Mar-23,20/6/2023 00:00:00,275040,3070.88,KE0007,KENT COUNTY COUNCIL (KCS),29/5/2023 00:00:00,25/6/2023 00:00:00,P03-2024
P&V,MYDDELTON HOUSE,PREMISES RELATED EXPENDITURE,ENERGY COSTS (ELECTRICITY),2332,Apr-23,20/6/2023 00:00:00,275041,2695.15,KE0007,KENT COUNTY COUNCIL (KCS),29/5/2023 00:00:00,25/6/2023 00:00:00,P03-2024
P&V,MYDDELTON HOUSE,PREMISES RELATED EXPENDITURE,ENERGY COSTS (ELECTRICITY),2332,May-23,20/6/2023 00:00:00,275042,2630.78,KE0007,KENT COUNTY COUNCIL (KCS),29/5/2023 00:00:00,25/6/2023 00:00:00,P03-2024
CEO,RESIDENTIAL ACCOMMODATION,PREMISES RELATED EXPENDITURE,ENERGY COSTS (ELECTRICITY),2332,12/04/23-11/05/23,06/01/2023 00:00,274175,15.22,EO0398,E-ON NEXT ENERGY LTD,29/5/2023 00:00:00,25/6/2023 00:00:00,P03-2024
CEO,RESIDENTIAL ACCOMMODATION,PREMISES RELATED EXPENDITURE,ENERGY COSTS (ELECTRICITY),2332,May-23,21/6/2023 00:00:00,274742,112.01,EO0398,E-ON NEXT ENERGY LTD,29/5/2023 00:00:00,25/6/2023 00:00:00,P03-2024
CEO,RESIDENTIAL ACCOMMODATION,PREMISES RELATED EXPENDITURE,ENERGY COSTS (ELECTRICITY),2332,E-ON NEXT ENERGY LTD,21/6/2023 00:00:00,274754,24.49,EO0398,E-ON NEXT ENERGY LTD,29/5/2023 00:00:00,25/6/2023 00:00:00,P03-2024
CEO,RESIDENTIAL ACCOMMODATION,PREMISES RELATED EXPENDITURE,ENERGY COSTS (ELECTRICITY),2332,12/05/23-11/06/23,21/6/2023 00:00:00,274997,15.55,EO0398,E-ON NEXT ENERGY LTD,29/5/2023 00:00:00,25/6/2023 00:00:00,P03-2024
,LEE VALLEY MARINA SPRINGFIELD,PREMISES RELATED EXPENDITURE,ENERGY COSTS (ELECTRICITY),2332,May-23,20/6/2023 00:00:00,274909,3535.87,KE0007,KENT COUNTY COUNCIL (KCS),29/5/2023 00:00:00,25/6/2023 00:00:00,P03-2024
,LEE VALLEY MARINA STANSTEAD,PREMISES RELATED EXPENDITURE,ENERGY COSTS (ELECTRICITY),2332,Stanstead-Boat yard-Electric supply-May2,25/6/2023 00:00:00,274910,4882.2,KE0007,KENT COUNTY COUNCIL (KCS),29/5/2023 00:00:00,25/6/2023 00:00:00,P03-2024
,LEE VALLEY MARINA STANSTEAD,PREMISES RELATED EXPENDITURE,ENERGY COSTS (ELECTRICITY),2332,Stanstead-Undercover Boat Store-May 23,25/6/2023 00:00:00,274912,525.93,KE0007,KENT COUNTY COUNCIL (KCS),29/5/2023 00:00:00,25/6/2023 00:00:00,P03-2024
,LEE VALLEY MARINA STANSTEAD,PREMISES RELATED EXPENDITURE,ENERGY COSTS (ELECTRICITY),2332,Stanstead-Electric supply-May 23,25/6/2023 00:00:00,274917,196.66,KE0007,KENT COUNTY COUNCIL (KCS),29/5/2023 00:00:00,25/6/2023 00:00:00,P03-2024
,LEE VALLEY MARINA STANSTEAD,PREMISES RELATED EXPENDITURE,ENERGY COSTS (ELECTRICITY),2332,Stanstead(overcover boat)Mar-May23,25/6/2023 00:00:00,275032,-525.93,KE0007,KENT COUNTY COUNCIL (KCS),29/5/2023 00:00:00,25/6/2023 00:00:00,P03-2024
,LEE VALLEY MARINA STANSTEAD,PREMISES RELATED EXPENDITURE,ENERGY COSTS (ELECTRICITY),2332,Stanstead(overcover boat)Mar-May23,25/6/2023 00:00:00,275033,328.26,KE0007,KENT COUNTY COUNCIL (KCS),29/5/2023 00:00:00,25/6/2023 00:00:00,P03-2024
,LEE VALLEY WATERWORKS CENTRE,PREMISES RELATED EXPENDITURE,ENERGY COSTS (ELECTRICITY),2332,May-23,20/6/2023 00:00:00,274969,1062.22,NP0123,NPOWER LIMITED,29/5/2023 00:00:00,25/6/2023 00:00:00,P03-2024
P&V,LEE VALLEY FARM HOLYFIELDHALL,PREMISES RELATED EXPENDITURE,ENERGY COSTS (ELECTRICITY),2332,Holyfield-MPAN 1002002-Mar-May23,25/6/2023 00:00:00,274995,87.72,KE0007,KENT COUNTY COUNCIL (KCS),29/5/2023 00:00:00,25/6/2023 00:00:00,P03-2024
,LEE VALLEY CAMPSITE,PREMISES RELATED EXPENDITURE,ENERGY COSTS (ELECTRICITY),2332,May-23,19/6/2023 00:00:00,274907,2318.54,KE0007,KENT COUNTY COUNCIL (KCS),29/5/2023 00:00:00,25/6/2023 00:00:00,P03-2024
,LEE VALLEY CAMPSITE,PREMISES RELATED EXPENDITURE,ENERGY COSTS (ELECTRICITY),2332,May-23,19/6/2023 00:00:00,274908,3199.13,KE0007,KENT COUNTY COUNCIL (KCS),29/5/2023 00:00:00,25/6/2023 00:00:00,P03-2024
,LEE VALLEY CAMPSITE,PREMISES RELATED EXPENDITURE,ENERGY COSTS (ELECTRICITY),2332,Sewardstone-CR-Ref 257186,25/6/2023 00:00:00,275008,-564.07,KE0007,KENT COUNTY COUNCIL (KCS),29/5/2023 00:00:00,25/6/2023 00:00:00,P03-2024
,LEE VALLEY CAMPSITE,PREMISES RELATED EXPENDITURE,ENERGY COSTS (ELECTRICITY),2332,Sewardstone-01/09/21-30/11/21,25/6/2023 00:00:00,275009,299.33,KE0007,KENT COUNTY COUNCIL (KCS),29/5/2023 00:00:00,25/6/2023 00:00:00,P03-2024
,LEE VALLEY CAMPSITE,PREMISES RELATED EXPENDITURE,ENERGY COSTS (ELECTRICITY),2332,Sewardstone-CR- Ref 260851,25/6/2023 00:00:00,275010,-722.45,KE0007,KENT COUNTY COUNCIL (KCS),29/5/2023 00:00:00,25/6/2023 00:00:00,P03-2024
,LEE VALLEY CAMPSITE,PREMISES RELATED EXPENDITURE,ENERGY COSTS (ELECTRICITY),2332,Sewardstone-01/12/21-28/02/21,25/6/2023 00:00:00,275011,388.46,KE0007,KENT COUNTY COUNCIL (KCS),29/5/2023 00:00:00,25/6/2023 00:00:00,P03-2024
,LEE VALLEY CAMPSITE,PREMISES RELATED EXPENDITURE,ENERGY COSTS (ELECTRICITY),2332,Sewardstone - Credit- Ref 264301,25/6/2023 00:00:00,275012,-572.51,KE0007,KENT COUNTY COUNCIL (KCS),29/5/2023 00:00:00,25/6/2023 00:00:00,P03-2024
,LEE VALLEY CAMPSITE,PREMISES RELATED EXPENDITURE,ENERGY COSTS (ELECTRICITY),2332,Sewardstone-01/03/22 - 31/05/22,25/6/2023 00:00:00,275013,312.93,KE0007,KENT COUNTY COUNCIL (KCS),29/5/2023 00:00:00,25/6/2023 00:00:00,P03-2024
,LEE VALLEY CAMPSITE,PREMISES RELATED EXPENDITURE,ENERGY COSTS (ELECTRICITY),2332,Sewardstone-Credit- Ref 272173,25/6/2023 00:00:00,275014,-446.82,KE0007,KENT COUNTY COUNCIL (KCS),29/5/2023 00:00:00,25/6/2023 00:00:00,P03-2024
,LEE VALLEY CAMPSITE,PREMISES RELATED EXPENDITURE,ENERGY COSTS (ELECTRICITY),2332,Sewardstone-01/06/22-31/08/22,25/6/2023 00:00:00,275015,222.75,KE0007,KENT COUNTY COUNCIL (KCS),29/5/2023 00:00:00,25/6/2023 00:00:00,P03-2024
,LEE VALLEY CAMPSITE,PREMISES RELATED EXPENDITURE,ENERGY COSTS (ELECTRICITY),2332,Sewardstone-Credit - Ref 272208,25/6/2023 00:00:00,275016,-704.98,KE0007,KENT COUNTY COUNCIL (KCS),29/5/2023 00:00:00,25/6/2023 00:00:00,P03-2024
,LEE VALLEY CAMPSITE,PREMISES RELATED EXPENDITURE,ENERGY COSTS (ELECTRICITY),2332,Sewardstone-01/09/22-30/11/22,25/6/2023 00:00:00,275017,455.82,KE0007,KENT COUNTY COUNCIL (KCS),29/5/2023 00:00:00,25/6/2023 00:00:00,P03-2024
,LEE VALLEY CAMPSITE,PREMISES RELATED EXPENDITURE,ENERGY COSTS (ELECTRICITY),2332,Sewardstone-Credit-Ref 272209,25/6/2023 00:00:00,275018,-1121.93,KE0007,KENT COUNTY COUNCIL (KCS),29/5/2023 00:00:00,25/6/2023 00:00:00,P03-2024
,LEE VALLEY CAMPSITE,PREMISES RELATED EXPENDITURE,ENERGY COSTS (ELECTRICITY),2332,Sewardstone-01/12/22-28/02/23,25/6/2023 00:00:00,275019,749.34,KE0007,KENT COUNTY COUNCIL (KCS),29/5/2023 00:00:00,25/6/2023 00:00:00,P03-2024
,LEE VALLEY CARAVAN PARK,PREMISES RELATED EXPENDITURE,ENERGY COSTS (ELECTRICITY),2332,May-23,19/6/2023 00:00:00,274922,11449.42,KE0007,KENT COUNTY COUNCIL (KCS),29/5/2023 00:00:00,25/6/2023 00:00:00,P03-2024
,LEE VALLEY CARAVAN PARK,PREMISES RELATED EXPENDITURE,ENERGY COSTS (ELECTRICITY),2332,Sewardstone-Mgr Hse-Mar-May23,25/6/2023 00:00:00,274996,303.69,KE0007,KENT COUNTY COUNCIL (KCS),29/5/2023 00:00:00,25/6/2023 00:00:00,P03-2024
P&V,EAST INDIA DOCK AND BOW CREEK,PREMISES RELATED EXPENDITURE,ENERGY COSTS (ELECTRICITY),2332,01/03/23 - 31/05/23,20/6/2023 00:00:00,274921,80.11,KE0007,KENT COUNTY COUNCIL (KCS),29/5/2023 00:00:00,25/6/2023 00:00:00,P03-2024
P&V,RYE HOUSE GATEHOUSE,PREMISES RELATED EXPENDITURE,ENERGY COSTS (ELECTRICITY),2332,01/03/23 - 31/05/23,20/6/2023 00:00:00,274914,139.5,KE0007,KENT COUNTY COUNCIL (KCS),29/5/2023 00:00:00,25/6/2023 00:00:00,P03-2024
P&V,NORTH AREA RANGERS,PREMISES RELATED EXPENDITURE,ENERGY COSTS (ELECTRICITY),2332,01/03/23 - 31/05/23,20/6/2023 00:00:00,274913,87.72,KE0007,KENT COUNTY COUNCIL (KCS),29/5/2023 00:00:00,25/6/2023 00:00:00,P03-2024
P&V,NORTH AREA RANGERS,PREMISES RELATED EXPENDITURE,ENERGY COSTS (ELECTRICITY),2332,01/03/23 - 31/05/23,20/6/2023 00:00:00,274920,1141.87,KE0007,KENT COUNTY COUNCIL (KCS),29/5/2023 00:00:00,25/6/2023 00:00:00,P03-2024
P&V,NORTH AREA RANGERS,PREMISES RELATED EXPENDITURE,ENERGY COSTS (ELECTRICITY),2332,Rye G Farm-Alternative Fuel Pay,25/6/2023 00:00:00,275132,-150,KE0007,KENT COUNTY COUNCIL (KCS),29/5/2023 00:00:00,25/6/2023 00:00:00,P03-2024
P&V,SOUTH AREA RANGERS,PREMISES RELATED EXPENDITURE,ENERGY COSTS (ELECTRICITY),2332,01/03/23 - 31/05/23,20/6/2023 00:00:00,274919,398.26,KE0007,KENT COUNTY COUNCIL (KCS),29/5/2023 00:00:00,25/6/2023 00:00:00,P03-2024
P&V,ABBEY GARDENS,PREMISES RELATED EXPENDITURE,ENERGY COSTS (ELECTRICITY),2332,01/03/23 - 31/05/23,20/6/2023 00:00:00,274918,1108,KE0007,KENT COUNTY COUNCIL (KCS),29/5/2023 00:00:00,25/6/2023 00:00:00,P03-2024
P&V,GUNPOWDER PARK,PREMISES RELATED EXPENDITURE,ENERGY COSTS (ELECTRICITY),2332,May-23,20/6/2023 00:00:00,274916,551.88,KE0007,KENT COUNTY COUNCIL (KCS),29/5/2023 00:00:00,25/6/2023 00:00:00,P03-2024
P&V,GUNPOWDER PARK,PREMISES RELATED EXPENDITURE,ENERGY COSTS (ELECTRICITY),2332,01/03/23 - 31/05/23,20/6/2023 00:00:00,274923,111.37,KE0007,KENT COUNTY COUNCIL (KCS),29/5/2023 00:00:00,25/6/2023 00:00:00,P03-2024
P&V,RIVER LEE COUNTRY PARK,PREMISES RELATED EXPENDITURE,ENERGY COSTS (ELECTRICITY),2332,01/03/23 - 31/05/23,20/6/2023 00:00:00,274915,573.84,KE0007,KENT COUNTY COUNCIL (KCS),29/5/2023 00:00:00,25/6/2023 00:00:00,P03-2024
P&V,RIVER LEE COUNTRY PARK,PREMISES RELATED EXPENDITURE,ENERGY COSTS (ELECTRICITY),2332,01/03/23 - 31/05/23,20/6/2023 00:00:00,274991,118.55,KE0007,KENT COUNTY COUNCIL (KCS),29/5/2023 00:00:00,25/6/2023 00:00:00,P03-2024
P&V,QUEEN ELIZABETH OLYMPIC PARK,PREMISES RELATED EXPENDITURE,ENERGY COSTS (ELECTRICITY),2332,VELO-E20-MPAN ENDING 1966,20/6/2023 00:00:00,274902,86.93,KE0007,KENT COUNTY COUNCIL (KCS),29/5/2023 00:00:00,25/6/2023 00:00:00,P03-2024
P&V,QUEEN ELIZABETH OLYMPIC PARK,PREMISES RELATED EXPENDITURE,ENERGY COSTS (ELECTRICITY),2332,VELO-E20-MPAN ENDING 1966,20/6/2023 00:00:00,274902,1.02,KE0007,KENT COUNTY COUNCIL (KCS),29/5/2023 00:00:00,25/6/2023 00:00:00,P03-2024
P&V,QUEEN ELIZABETH OLYMPIC PARK,PREMISES RELATED EXPENDITURE,ENERGY COSTS (ELECTRICITY),2332,VELO-E13-MPAN ENDING 1204,20/6/2023 00:00:00,274903,150.72,KE0007,KENT COUNTY COUNCIL (KCS),29/5/2023 00:00:00,25/6/2023 00:00:00,P03-2024
P&V,QUEEN ELIZABETH OLYMPIC PARK,PREMISES RELATED EXPENDITURE,ENERGY COSTS (ELECTRICITY),2332,VELO-E20-MPAN ENDING 1203,20/6/2023 00:00:00,274904,1474.43,KE0007,KENT COUNTY COUNCIL (KCS),29/5/2023 00:00:00,25/6/2023 00:00:00,P03-2024
P&V,QUEEN ELIZABETH OLYMPIC PARK,PREMISES RELATED EXPENDITURE,ENERGY COSTS (ELECTRICITY),2332,VELO-E20-MPAN ENDING 1201,20/6/2023 00:00:00,274905,238.8,KE0007,KENT COUNTY COUNCIL (KCS),29/5/2023 00:00:00,25/6/2023 00:00:00,P03-2024
P&V,QUEEN ELIZABETH OLYMPIC PARK,PREMISES RELATED EXPENDITURE,ENERGY COSTS (ELECTRICITY),2332,VELO-E20-MPAN ENDING 1201,20/6/2023 00:00:00,274906,202.02,KE0007,KENT COUNTY COUNCIL (KCS),29/5/2023 00:00:00,25/6/2023 00:00:00,P03-2024
P&V,QUEEN ELIZABETH OLYMPIC PARK,PREMISES RELATED EXPENDITURE,ENERGY COSTS (ELECTRICITY),2332,Velopark-E20-MPAN 1202-Jul-Sept22,20/6/2023 00:00:00,274992,104.7,KE0007,KENT COUNTY COUNCIL (KCS),29/5/2023 00:00:00,25/6/2023 00:00:00,P03-2024
P&V,QUEEN ELIZABETH OLYMPIC PARK,PREMISES RELATED EXPENDITURE,ENERGY COSTS (ELECTRICITY),2332,Velopark-E20-MPAN 1202-Oct-Dect22,20/6/2023 00:00:00,274993,96.69,KE0007,KENT COUNTY COUNCIL (KCS),29/5/2023 00:00:00,25/6/2023 00:00:00,P03-2024
P&V,QUEEN ELIZABETH OLYMPIC PARK,PREMISES RELATED EXPENDITURE,ENERGY COSTS (ELECTRICITY),2332,Velopark-E20-MPAN 1202-Jan-Mar23,20/6/2023 00:00:00,274994,94.96,KE0007,KENT COUNTY COUNCIL (KCS),29/5/2023 00:00:00,25/6/2023 00:00:00,P03-2024
P&V,CAR PARK INCOME,PREMISES RELATED EXPENDITURE,ENERGY COSTS (ELECTRICITY),2332,May-23,20/6/2023 00:00:00,274968,33.02,NP0123,NPOWER LIMITED,29/5/2023 00:00:00,25/6/2023 00:00:00,P03-2024
P&V,CAR PARK INCOME,PREMISES RELATED EXPENDITURE,ENERGY COSTS (ELECTRICITY),2332,May-23,20/6/2023 00:00:00,274970,44.56,NP0123,NPOWER LIMITED,29/5/2023 00:00:00,25/6/2023 00:00:00,P03-2024
,LV LEISURE CENTRE CAMPSITE,PREMISES RELATED EXPENDITURE,ENERGY COSTS (ELECTRICITY),2332,Edmonton-Electric supply May23,25/6/2023 00:00:00,274971,8157.24,NP0123,NPOWER LIMITED,29/5/2023 00:00:00,25/6/2023 00:00:00,P03-2024
CEO,RESIDENTIAL ACCOMMODATION,PREMISES RELATED EXPENDITURE,ENERGY COSTS (GAS),2333,18/04/23-17/05/23,06/01/2023 00:00,274223,9.81,BR0654,BRITISH GAS TRADING LTD,29/5/2023 00:00:00,25/6/2023 00:00:00,P03-2024
,LEE VALLEY MARINA STANSTEAD,PREMISES RELATED EXPENDITURE,ENERGY COSTS (GAS),2333,May-23,19/6/2023 00:00:00,274813,130.34,KE0007,KENT COUNTY COUNCIL (KCS),29/5/2023 00:00:00,25/6/2023 00:00:00,P03-2024
,LEE VALLEY MARINA STANSTEAD,PREMISES RELATED EXPENDITURE,ENERGY COSTS (GAS),2333,May-23,19/6/2023 00:00:00,274819,200.52,KE0007,KENT COUNTY COUNCIL (KCS),29/5/2023 00:00:00,25/6/2023 00:00:00,P03-2024
,LEE VALLEY WATERWORKS CENTRE,PREMISES RELATED EXPENDITURE,ENERGY COSTS (GAS),2333,Apr-23,06/01/2023 00:00,273983,1052.52,KE0007,KENT COUNTY COUNCIL (KCS),29/5/2023 00:00:00,25/6/2023 00:00:00,P03-2024
P&V,LEE VALLEY FARM HOLYFIELDHALL,PREMISES RELATED EXPENDITURE,ENERGY COSTS (GAS),2333,Elect mtr Z18N283696-10 Mar-25 May23,25/6/2023 00:00:00,275125,97.8,BR0030,BRITISH GAS TRADING LTD,29/5/2023 00:00:00,25/6/2023 00:00:00,P03-2024
,LEE VALLEY CAMPSITE,PREMISES RELATED EXPENDITURE,ENERGY COSTS (GAS),2333,May-23,19/6/2023 00:00:00,274816,820.45,KE0007,KENT COUNTY COUNCIL (KCS),29/5/2023 00:00:00,25/6/2023 00:00:00,P03-2024
,LEE VALLEY CARAVAN PARK,PREMISES RELATED EXPENDITURE,ENERGY COSTS (GAS),2333,P122240-SERVICE-Gas delivery,13/6/2023 00:00:00,274592,2477.38,AV0327,AVANTI GAS LIMITED,29/5/2023 00:00:00,25/6/2023 00:00:00,P03-2024
,LEE VALLEY CARAVAN PARK,PREMISES RELATED EXPENDITURE,ENERGY COSTS (GAS),2333,P122339-SERVICE-Gas delivery,23/6/2023 00:00:00,274989,5,AV0327,AVANTI GAS LIMITED,29/5/2023 00:00:00,25/6/2023 00:00:00,P03-2024
P&V,GUNPOWDER PARK,PREMISES RELATED EXPENDITURE,ENERGY COSTS (GAS),2333,May-23,20/6/2023 00:00:00,274924,52.28,KE0007,KENT COUNTY COUNCIL (KCS),29/5/2023 00:00:00,25/6/2023 00:00:00,P03-2024
,LV LEISURE CENTRE CAMPSITE,PREMISES RELATED EXPENDITURE,ENERGY COSTS (GAS),2333,Edmonton-gas supply-Mat 2023,25/6/2023 00:00:00,274815,1995.83,KE0007,KENT COUNTY COUNCIL (KCS),29/5/2023 00:00:00,25/6/2023 00:00:00,P03-2024
,LEE VALLEY MARINA SPRINGFIELD,PREMISES RELATED EXPENDITURE,RENT (EXTERNAL),2442,01/06/23 - 31/08/23,06/01/2023 00:00,274224,2970,TH0020,THAMES WATER UTILITIES LIMITED,29/5/2023 00:00:00,25/6/2023 00:00:00,P03-2024
P&V,KING GEORGE RESERVOIR SOUTH,PREMISES RELATED EXPENDITURE,RENT (EXTERNAL),2442,Rent in Advance- July-Sept 23,21/6/2023 00:00:00,274948,3375,TH0020,THAMES WATER UTILITIES LIMITED,29/5/2023 00:00:00,25/6/2023 00:00:00,P03-2024
P&V,MYDDELTON HOUSE,PREMISES RELATED EXPENDITURE,WATER,2555,May-23,06/12/2023 00:00,274744,1478.49,CA0625,CASTLE WATER LIMITED,29/5/2023 00:00:00,25/6/2023 00:00:00,P03-2024
,LEE VALLEY MARINA SPRINGFIELD,PREMISES RELATED EXPENDITURE,WATER,2555,23-May,06/07/2023 00:00,274567,1088.95,CA0625,CASTLE WATER LIMITED,29/5/2023 00:00:00,25/6/2023 00:00:00,P03-2024
,LEE VALLEY MARINA SPRINGFIELD,PREMISES RELATED EXPENDITURE,WATER,2555,23-May,06/07/2023 00:00,274567,1738.96,CA0625,CASTLE WATER LIMITED,29/5/2023 00:00:00,25/6/2023 00:00:00,P03-2024
,LEE VALLEY MARINA STANSTEAD,PREMISES RELATED EXPENDITURE,WATER,2555,May-23,06/05/2023 00:00,274480,237.43,CA0625,CASTLE WATER LIMITED,29/5/2023 00:00:00,25/6/2023 00:00:00,P03-2024
,LEE VALLEY MARINA STANSTEAD,PREMISES RELATED EXPENDITURE,WATER,2555,May-23,06/05/2023 00:00,274480,230.75,CA0625,CASTLE WATER LIMITED,29/5/2023 00:00:00,25/6/2023 00:00:00,P03-2024
,LEE VALLEY WATERWORKS CENTRE,PREMISES RELATED EXPENDITURE,WATER,2555,May-23,06/05/2023 00:00,274481,116.72,CA0625,CASTLE WATER LIMITED,29/5/2023 00:00:00,25/6/2023 00:00:00,P03-2024
,LEE VALLEY CAMPSITE,PREMISES RELATED EXPENDITURE,WATER,2555,May-23,06/05/2023 00:00,274482,1844.73,CA0625,CASTLE WATER LIMITED,29/5/2023 00:00:00,25/6/2023 00:00:00,P03-2024
,LEE VALLEY CAMPSITE,PREMISES RELATED EXPENDITURE,WATER,2555,Sew- Adjustment Inv-01Mar-31May23,25/6/2023 00:00:00,275044,792.51,CA0625,CASTLE WATER LIMITED,29/5/2023 00:00:00,25/6/2023 00:00:00,P03-2024
,LEE VALLEY CARAVAN PARK,PREMISES RELATED EXPENDITURE,WATER,2555,May-23,06/12/2023 00:00,274515,1999.91,CA0625,CASTLE WATER LIMITED,29/5/2023 00:00:00,25/6/2023 00:00:00,P03-2024
,LEE VALLEY CARAVAN PARK,PREMISES RELATED EXPENDITURE,WATER,2555,May-23,06/12/2023 00:00,274515,3318.77,CA0625,CASTLE WATER LIMITED,29/5/2023 00:00:00,25/6/2023 00:00:00,P03-2024
,LEE VALLEY CARAVAN PARK,PREMISES RELATED EXPENDITURE,WATER,2555,01/04/23 - 31/05/23,21/6/2023 00:00:00,275043,55.95,CA0625,CASTLE WATER LIMITED,29/5/2023 00:00:00,25/6/2023 00:00:00,P03-2024
,LEE VALLEY CARAVAN PARK,PREMISES RELATED EXPENDITURE,WATER,2555,01/04/23 - 31/05/23,21/6/2023 00:00:00,275043,97.04,CA0625,CASTLE WATER LIMITED,29/5/2023 00:00:00,25/6/2023 00:00:00,P03-2024
,LV LEISURE CENTRE CAMPSITE,PREMISES RELATED EXPENDITURE,WATER,2555,May-23,06/12/2023 00:00,274566,44.49,CA0625,CASTLE WATER LIMITED,29/5/2023 00:00:00,25/6/2023 00:00:00,P03-2024
,LV LEISURE CENTRE CAMPSITE,PREMISES RELATED EXPENDITURE,WATER,2555,May-23,06/12/2023 00:00,274566,37.98,CA0625,CASTLE WATER LIMITED,29/5/2023 00:00:00,25/6/2023 00:00:00,P03-2024
,LV LEISURE CENTRE CAMPSITE,PREMISES RELATED EXPENDITURE,WATER,2555,Edmonton-meter-319016348-May23,25/6/2023 00:00:00,275129,613.8,CA0625,CASTLE WATER LIMITED,29/5/2023 00:00:00,25/6/2023 00:00:00,P03-2024
,LV LEISURE CENTRE CAMPSITE,PREMISES RELATED EXPENDITURE,WATER,2555,Edmonton-meter-319016348-May23,25/6/2023 00:00:00,275129,465.79,CA0625,CASTLE WATER LIMITED,29/5/2023 00:00:00,25/6/2023 00:00:00,P03-2024
,LV LEISURE CENTRE CAMPSITE,PREMISES RELATED EXPENDITURE,WATER,2555,Edm-Adjustment-319016348-Apr23,25/6/2023 00:00:00,275130,-134.47,CA0625,CASTLE WATER LIMITED,29/5/2023 00:00:00,25/6/2023 00:00:00,P03-2024
,LEE VALLEY MARINA SPRINGFIELD,PREMISES RELATED EXPENDITURE,CLEANING & DOMESTIC SUPPLIES,2666,P121660-SERVICE-Site Cleaning April to July 2023,06/05/2023 00:00,274388,1070.52,MA0015,MAYFAIR CLEANING COMPANY LIMITED,29/5/2023 00:00:00,25/6/2023 00:00:00,P03-2024
,LEE VALLEY MARINA STANSTEAD,PREMISES RELATED EXPENDITURE,CLEANING & DOMESTIC SUPPLIES,2666,P121972-SERVICE-loo rolls,14/6/2023 00:00:00,274743,97.5,IN0012,INITIAL WASHROOM HYGIENE,29/5/2023 00:00:00,25/6/2023 00:00:00,P03-2024
,LEE VALLEY CAMPSITE,PREMISES RELATED EXPENDITURE,CLEANING & DOMESTIC SUPPLIES,2666,P122144-SERVICE-site cleaning materials,19/6/2023 00:00:00,274719,29.46,HY0043,HYGIENE SYSTEMS LTD,29/5/2023 00:00:00,25/6/2023 00:00:00,P03-2024
,LEE VALLEY CAMPSITE,PREMISES RELATED EXPENDITURE,CLEANING & DOMESTIC SUPPLIES,2666,P121612-SERVICE-Site Cleaning Supplies,19/6/2023 00:00:00,274719,111.74,HY0043,HYGIENE SYSTEMS LTD,29/5/2023 00:00:00,25/6/2023 00:00:00,P03-2024
,LEE VALLEY CAMPSITE,PREMISES RELATED EXPENDITURE,CLEANING & DOMESTIC SUPPLIES,2666,P122144-SERVICE-site cleaning materials,23/6/2023 00:00:00,274954,32.41,HY0043,HYGIENE SYSTEMS LTD,29/5/2023 00:00:00,25/6/2023 00:00:00,P03-2024
,LEE VALLEY CARAVAN PARK,PREMISES RELATED EXPENDITURE,CLEANING & DOMESTIC SUPPLIES,2666,P122148-SERVICE-Cleaning materials,13/6/2023 00:00:00,274720,654.34,HY0043,HYGIENE SYSTEMS LTD,29/5/2023 00:00:00,25/6/2023 00:00:00,P03-2024
P&V,LEE VALLEY FARM HOLYFIELDHALL,TRANSPORT RELATED EXPENDITURE,TRANSPORT RUNNING EXPENSES,3333,P121504-SERVICE-Tractor Spares,06/07/2023 00:00,274347,390.76,OL0059,OLIVER LANDPOWER LIMITED,29/5/2023 00:00:00,25/6/2023 00:00:00,P03-2024
P&V,LEE VALLEY FARM HOLYFIELDHALL,TRANSPORT RELATED EXPENDITURE,TRANSPORT RUNNING EXPENSES,3333,P121508-SERVICE-Welding Sundries,06/07/2023 00:00,274363,156,BO0015,BOC LTD,29/5/2023 00:00:00,25/6/2023 00:00:00,P03-2024
P&V,LEE VALLEY FARM HOLYFIELDHALL,TRANSPORT RELATED EXPENDITURE,TRANSPORT RUNNING EXPENSES,3333,P121496-SERVICE-Workshop Sundries,06/07/2023 00:00,274479,66.75,GR0022,GROUP COMPONENTS LIMITED,29/5/2023 00:00:00,25/6/2023 00:00:00,P03-2024
P&V,LEE VALLEY FARM HOLYFIELDHALL,TRANSPORT RELATED EXPENDITURE,TRANSPORT RUNNING EXPENSES,3333,P121509-SERVICE-Tractor Spares,06/07/2023 00:00,274545,104.99,RW0257,R. W. CRAWFORD AGRICULTURAL MACHINERY LTD,29/5/2023 00:00:00,25/6/2023 00:00:00,P03-2024
P&V,FISHERIES MANAGEMENT,TRANSPORT RELATED EXPENDITURE,VEHICLE FUEL,3335,Fuel Card-May 2023,06/05/2023 00:00,274485,240.65,AR0035,ALLSTAR BUSINESS SOLUTIONS LTD,29/5/2023 00:00:00,25/6/2023 00:00:00,P03-2024
,LEE VALLEY MARINA SPRINGFIELD,TRANSPORT RELATED EXPENDITURE,VEHICLE FUEL,3335,P122000-SERVICE-White diesel 205 litres plus pump,06/05/2023 00:00,274348,435.5,SP0543,SPEEDY FUELS LIMITED,29/5/2023 00:00:00,25/6/2023 00:00:00,P03-2024
,LEE VALLEY MARINA STANSTEAD,TRANSPORT RELATED EXPENDITURE,VEHICLE FUEL,3335,Fuel Card-May 2023,06/05/2023 00:00,274485,71.53,AR0035,ALLSTAR BUSINESS SOLUTIONS LTD,29/5/2023 00:00:00,25/6/2023 00:00:00,P03-2024
,LEE VALLEY CAMPSITE,TRANSPORT RELATED EXPENDITURE,VEHICLE FUEL,3335,Fuel Card-May 2023,06/05/2023 00:00,274485,138.87,AR0035,ALLSTAR BUSINESS SOLUTIONS LTD,29/5/2023 00:00:00,25/6/2023 00:00:00,P03-2024
,LEE VALLEY CARAVAN PARK,TRANSPORT RELATED EXPENDITURE,VEHICLE FUEL,3335,Fuel Card-May 2023,06/05/2023 00:00,274485,369.28,AR0035,ALLSTAR BUSINESS SOLUTIONS LTD,29/5/2023 00:00:00,25/6/2023 00:00:00,P03-2024
P&V,SOUTH AREA RANGERS,TRANSPORT RELATED EXPENDITURE,VEHICLE FUEL,3335,Fuel Card-May 2023,06/05/2023 00:00,274485,225.56,AR0035,ALLSTAR BUSINESS SOLUTIONS LTD,29/5/2023 00:00:00,25/6/2023 00:00:00,P03-2024
P&V,RIVER LEE COUNTRY PARK,TRANSPORT RELATED EXPENDITURE,VEHICLE FUEL,3335,Fuel Card-May 2023,06/05/2023 00:00,274485,393.91,AR0035,ALLSTAR BUSINESS SOLUTIONS LTD,29/5/2023 00:00:00,25/6/2023 00:00:00,P03-2024
,LV LEISURE CENTRE CAMPSITE,TRANSPORT RELATED EXPENDITURE,VEHICLE FUEL,3335,Fuel Card-May 2023,06/05/2023 00:00,274485,30.65,AR0035,ALLSTAR BUSINESS SOLUTIONS LTD,29/5/2023 00:00:00,25/6/2023 00:00:00,P03-2024
,LV LEISURE CENTRE CAMPSITE,TRANSPORT RELATED EXPENDITURE,VEHICLE FUEL,3335,Fuel Card-May 2023,06/05/2023 00:00,274485,64.79,AR0035,ALLSTAR BUSINESS SOLUTIONS LTD,29/5/2023 00:00:00,25/6/2023 00:00:00,P03-2024
,LV LEISURE CENTRE GOLF COURSE,TRANSPORT RELATED EXPENDITURE,VEHICLE FUEL,3335,"P122287-SERVICE-Golf Course 1,800ltr Red Diesel",20/6/2023 00:00:00,275023,1296,HA0400,WATSON FUELS,29/5/2023 00:00:00,25/6/2023 00:00:00,P03-2024
P&V,RIVER LEE COUNTRY PARK,TRANSPORT RELATED EXPENDITURE,VEHICLE REPAIRS & MAINTENANCE,3338,P122040-SERVICE-Hand Brake Repairs Vehicle EY20TJZ,06/07/2023 00:00,274531,218.3,AB0153,ABBEY SERVICE CENTRE,29/5/2023 00:00:00,25/6/2023 00:00:00,P03-2024
P&V,RIVER LEE COUNTRY PARK,TRANSPORT RELATED EXPENDITURE,VEHICLE REPAIRS & MAINTENANCE,3338,VEHICLE PARTS,21/6/2023 00:00:00,274939,3.7,FI0001,DIRECTOR OF FINANCE - CASH,29/5/2023 00:00:00,25/6/2023 00:00:00,P03-2024
P&V,VOLUNTEERS (L&E),TRANSPORT RELATED EXPENDITURE,TRAVELLING EXPENSES,3344,Volunteer-01/04/-22/04/23,06/01/2023 00:00,274360,58.5,CH0762,MRS BRENDA CHANTER,29/5/2023 00:00:00,25/6/2023 00:00:00,P03-2024
,STANSTEAD RECHARGEABLE WORKS,SUPPLIES AND SERVICES,EQUIPMENT & MATERIALS,4111,P122162-SERVICE-Argoshield rental,06/07/2023 00:00,274364,156,BO0015,BOC LTD,29/5/2023 00:00:00,25/6/2023 00:00:00,P03-2024
,STANSTEAD RECHARGEABLE WORKS,SUPPLIES AND SERVICES,EQUIPMENT & MATERIALS,4111,P122254-SERVICE-blacking,25/6/2023 00:00:00,274823,2105.15,MI0200,MIDLAND CHANDLERS LIMITED,29/5/2023 00:00:00,25/6/2023 00:00:00,P03-2024
,LEE VALLEY CAMPSITE,SUPPLIES AND SERVICES,EQUIPMENT & MATERIALS,4111,P122045-SERVICE-Knee rails HH44- HH46,06/05/2023 00:00,274464,569.7,LE0012,LEASIDE TIMBER & BUILDERS MERCHANTS LTD,29/5/2023 00:00:00,25/6/2023 00:00:00,P03-2024
,LEE VALLEY CAMPSITE,SUPPLIES AND SERVICES,EQUIPMENT & MATERIALS,4111,P121609-SERVICE-Site Materials,19/6/2023 00:00:00,274509,80.23,SC0057,SCREWFIX DIRECT LTD,29/5/2023 00:00:00,25/6/2023 00:00:00,P03-2024
,LEE VALLEY CAMPSITE,SUPPLIES AND SERVICES,EQUIPMENT & MATERIALS,4111,P122145-SERVICE-Supply & replace Electric shower - Finch,19/6/2023 00:00:00,274572,300,SO0400,SOUTHERN GREEN SERVICES LIMITED,29/5/2023 00:00:00,25/6/2023 00:00:00,P03-2024
,LEE VALLEY CAMPSITE,SUPPLIES AND SERVICES,EQUIPMENT & MATERIALS,4111,P122213-SERVICE-SC Red Pull Cords Toilets and showers,19/6/2023 00:00:00,274758,27.1,AM0406,AMAZON PAYMENTS UK LIMITED,29/5/2023 00:00:00,25/6/2023 00:00:00,P03-2024
,LEE VALLEY CAMPSITE,SUPPLIES AND SERVICES,EQUIPMENT & MATERIALS,4111,P121608-SERVICE-Site Materials,23/6/2023 00:00:00,274981,40.42,BQ0164,TRADE UK ACCOUNT,29/5/2023 00:00:00,25/6/2023 00:00:00,P03-2024
,LEE VALLEY CAMPSITE,SUPPLIES AND SERVICES,EQUIPMENT & MATERIALS,4111,P122334-SERVICE-SC 1st Aid Accessories,23/6/2023 00:00:00,275146,11.1,TH0008,JKL SOLUTIONS LTD,29/5/2023 00:00:00,25/6/2023 00:00:00,P03-2024
,LEE VALLEY CARAVAN PARK,SUPPLIES AND SERVICES,EQUIPMENT & MATERIALS,4111,P122238-SERVICE-Install twin sockets in back office,13/6/2023 00:00:00,274586,230,BR0018,BRADSHAW ELECTRICAL LIMITED,29/5/2023 00:00:00,25/6/2023 00:00:00,P03-2024
,LEE VALLEY CARAVAN PARK,SUPPLIES AND SERVICES,EQUIPMENT & MATERIALS,4111,P122334-SERVICE-DW 1st Aid Accessories,23/6/2023 00:00:00,275146,16.69,TH0008,JKL SOLUTIONS LTD,29/5/2023 00:00:00,25/6/2023 00:00:00,P03-2024
P&V,MYDDELTON HOUSE GARDENS,SUPPLIES AND SERVICES,EQUIPMENT & MATERIALS,4111,P121912-SERVICE-pest control gardens 23/24,13/6/2023 00:00:00,274365,138.35,FA0149,FARGRO LIMITED,29/5/2023 00:00:00,25/6/2023 00:00:00,P03-2024
P&V,NORTH AREA RANGERS,SUPPLIES AND SERVICES,EQUIPMENT & MATERIALS,4111,P122106-SERVICE-Postage & Packing,13/6/2023 00:00:00,274544,15.82,TA0646,TAYNA LTD,29/5/2023 00:00:00,25/6/2023 00:00:00,P03-2024
P&V,NORTH AREA RANGERS,SUPPLIES AND SERVICES,EQUIPMENT & MATERIALS,4111,P122106-SERVICE-2x Leisure Batteries,13/6/2023 00:00:00,274544,194.78,TA0646,TAYNA LTD,29/5/2023 00:00:00,25/6/2023 00:00:00,P03-2024
P&V,NORTH AREA RANGERS,SUPPLIES AND SERVICES,EQUIPMENT & MATERIALS,4111,P122062-SERVICE-30x Hanson Fast Set Postfix Plastic Bag 20Kg,13/6/2023 00:00:00,274607,234.9,JE0011,SAINT-GOBAIN BUILDING DISTRIBUTION,29/5/2023 00:00:00,25/6/2023 00:00:00,P03-2024
P&V,NORTH AREA RANGERS,SUPPLIES AND SERVICES,EQUIPMENT & MATERIALS,4111,P122251-SERVICE-9x Chest Waders,19/6/2023 00:00:00,274933,349.93,SC0057,SCREWFIX DIRECT LTD,29/5/2023 00:00:00,25/6/2023 00:00:00,P03-2024
P&V,NORTH AREA RANGERS,SUPPLIES AND SERVICES,EQUIPMENT & MATERIALS,4111,P122297-SERVICE-3x Chest Waders,23/6/2023 00:00:00,275003,124.98,SN0029,SM GROUP EUROPE LTD RE:SNOWBEE (UK) LTD,29/5/2023 00:00:00,25/6/2023 00:00:00,P03-2024
P&V,NORTH AREA RANGERS,SUPPLIES AND SERVICES,EQUIPMENT & MATERIALS,4111,P122297-SERVICE-Delivery,23/6/2023 00:00:00,275003,8,SN0029,SM GROUP EUROPE LTD RE:SNOWBEE (UK) LTD,29/5/2023 00:00:00,25/6/2023 00:00:00,P03-2024
P&V,SOUTH AREA RANGERS,SUPPLIES AND SERVICES,EQUIPMENT & MATERIALS,4111,P122124-SERVICE-3x Waterproof Cement Quick Setting,06/07/2023 00:00,274530,36.23,SC0057,SCREWFIX DIRECT LTD,29/5/2023 00:00:00,25/6/2023 00:00:00,P03-2024
P&V,RIVER LEE COUNTRY PARK,SUPPLIES AND SERVICES,EQUIPMENT & MATERIALS,4111,TOOLS & EQUIPMENT,21/6/2023 00:00:00,274939,3.48,FI0001,DIRECTOR OF FINANCE - CASH,29/5/2023 00:00:00,25/6/2023 00:00:00,P03-2024
P&V,RIVER LEE COUNTRY PARK,SUPPLIES AND SERVICES,EQUIPMENT & MATERIALS,4111,TOOLS & EQUIPMENT,21/6/2023 00:00:00,274939,15,FI0001,DIRECTOR OF FINANCE - CASH,29/5/2023 00:00:00,25/6/2023 00:00:00,P03-2024
P&V,RIVER LEE COUNTRY PARK,SUPPLIES AND SERVICES,EQUIPMENT & MATERIALS,4111,TOOLS & EQUIPMENT,21/6/2023 00:00:00,274939,8.33,FI0001,DIRECTOR OF FINANCE - CASH,29/5/2023 00:00:00,25/6/2023 00:00:00,P03-2024
P&V,ALMOST WILD CAMPSITE,SUPPLIES AND SERVICES,EQUIPMENT & MATERIALS,4111,P122213-SERVICE-Solar Panel Power Bank,20/6/2023 00:00:00,274723,64.64,AM0406,AMAZON PAYMENTS UK LIMITED,29/5/2023 00:00:00,25/6/2023 00:00:00,P03-2024
P&V,ALMOST WILD CAMPSITE,SUPPLIES AND SERVICES,EQUIPMENT & MATERIALS,4111,"P122359-SERVICE-Gate Catch, Masonry Drill Bit, Squire Padlock",25/6/2023 00:00:00,274782,54.95,SC0057,SCREWFIX DIRECT LTD,29/5/2023 00:00:00,25/6/2023 00:00:00,P03-2024
,LV LEISURE CENTRE CAMPSITE,SUPPLIES AND SERVICES,EQUIPMENT & MATERIALS,4111,P122354-SERVICE-pitch 89 socket,23/6/2023 00:00:00,274955,110,BR0018,BRADSHAW ELECTRICAL LIMITED,29/5/2023 00:00:00,25/6/2023 00:00:00,P03-2024
,LV LEISURE CENTRE CAMPSITE,SUPPLIES AND SERVICES,EQUIPMENT & MATERIALS,4111,P122334-SERVICE-EC 1st Aid Accessories,23/6/2023 00:00:00,275146,15.69,TH0008,JKL SOLUTIONS LTD,29/5/2023 00:00:00,25/6/2023 00:00:00,P03-2024
,LV LEISURE CENTRE GOLF COURSE,SUPPLIES AND SERVICES,EQUIPMENT & MATERIALS,4111,P122118-SERVICE-Lake Balls,06/05/2023 00:00,273942,392,GR0144,BARRY GRIFFITHS,29/5/2023 00:00:00,25/6/2023 00:00:00,P03-2024
,LV LEISURE CENTRE GOLF COURSE,SUPPLIES AND SERVICES,EQUIPMENT & MATERIALS,4111,P122183-SERVICE-H&S Signs,20/6/2023 00:00:00,274941,234,SL0528,SLAM SIGNS LTD,29/5/2023 00:00:00,25/6/2023 00:00:00,P03-2024
,LV LEISURE CENTRE GOLF COURSE,SUPPLIES AND SERVICES,EQUIPMENT & MATERIALS,4111,P122335-SERVICE-Edmonton Golf Supplies,23/6/2023 00:00:00,274983,640.2,GR0144,BARRY GRIFFITHS,29/5/2023 00:00:00,25/6/2023 00:00:00,P03-2024
,LEE VALLEY CAMPSITE,SUPPLIES AND SERVICES,EQUIPMENT MAINTENANCE,4112,P122079-SERVICE-HH Area Power loss 18/05/23,06/05/2023 00:00,274122,420,BR0018,BRADSHAW ELECTRICAL LIMITED,29/5/2023 00:00:00,25/6/2023 00:00:00,P03-2024
,LEE VALLEY CAMPSITE,SUPPLIES AND SERVICES,EQUIPMENT MAINTENANCE,4112,P122080-SERVICE-repair token drawer in washer,06/05/2023 00:00,274134,145,AL0434,ALLSOP & FRANCIS,29/5/2023 00:00:00,25/6/2023 00:00:00,P03-2024
,LEE VALLEY CAMPSITE,SUPPLIES AND SERVICES,EQUIPMENT MAINTENANCE,4112,P121756-SERVICE-to cover credit note,23/6/2023 00:00:00,274370,85,DE0013,DENNIS SECURITY CENTRE,29/5/2023 00:00:00,25/6/2023 00:00:00,P03-2024
,LEE VALLEY CAMPSITE,SUPPLIES AND SERVICES,EQUIPMENT MAINTENANCE,4112,P121756-SERVICE-replace damaged barrier arm,23/6/2023 00:00:00,274370,844,DE0013,DENNIS SECURITY CENTRE,29/5/2023 00:00:00,25/6/2023 00:00:00,P03-2024
,LEE VALLEY CAMPSITE,SUPPLIES AND SERVICES,EQUIPMENT MAINTENANCE,4112,P122132-SERVICE-TYRE REPAIRS / REPLACEMENTS,13/6/2023 00:00:00,274511,50,FA0294,FARM TYRE SERVICES,29/5/2023 00:00:00,25/6/2023 00:00:00,P03-2024
,LEE VALLEY CAMPSITE,SUPPLIES AND SERVICES,EQUIPMENT MAINTENANCE,4112,P122134-SERVICE-HH44,19/6/2023 00:00:00,274535,120,BR0018,BRADSHAW ELECTRICAL LIMITED,29/5/2023 00:00:00,25/6/2023 00:00:00,P03-2024
,LEE VALLEY CAMPSITE,SUPPLIES AND SERVICES,EQUIPMENT MAINTENANCE,4112,P122134-SERVICE-HH31,19/6/2023 00:00:00,274536,130,BR0018,BRADSHAW ELECTRICAL LIMITED,29/5/2023 00:00:00,25/6/2023 00:00:00,P03-2024
,LEE VALLEY CAMPSITE,SUPPLIES AND SERVICES,EQUIPMENT MAINTENANCE,4112,P121756-SERVICE-to cover credit note,23/6/2023 00:00:00,274558,-85,DE0013,DENNIS SECURITY CENTRE,29/5/2023 00:00:00,25/6/2023 00:00:00,P03-2024
,LEE VALLEY CAMPSITE,SUPPLIES AND SERVICES,EQUIPMENT MAINTENANCE,4112,P122147-SERVICE-Replace  tap by cycle shed,19/6/2023 00:00:00,274570,90,SO0400,SOUTHERN GREEN SERVICES LIMITED,29/5/2023 00:00:00,25/6/2023 00:00:00,P03-2024
,LEE VALLEY CAMPSITE,SUPPLIES AND SERVICES,EQUIPMENT MAINTENANCE,4112,P122146-SERVICE-B block no hot water,19/6/2023 00:00:00,274571,200,SO0400,SOUTHERN GREEN SERVICES LIMITED,29/5/2023 00:00:00,25/6/2023 00:00:00,P03-2024
,LEE VALLEY CAMPSITE,SUPPLIES AND SERVICES,EQUIPMENT MAINTENANCE,4112,P122146-SERVICE-A block - no heating - Emergency call out  -,19/6/2023 00:00:00,274571,140,SO0400,SOUTHERN GREEN SERVICES LIMITED,29/5/2023 00:00:00,25/6/2023 00:00:00,P03-2024
,LEE VALLEY CAMPSITE,SUPPLIES AND SERVICES,EQUIPMENT MAINTENANCE,4112,P122145-SERVICE-supply & fit new water heaters x3 pods,19/6/2023 00:00:00,274572,1920,SO0400,SOUTHERN GREEN SERVICES LIMITED,29/5/2023 00:00:00,25/6/2023 00:00:00,P03-2024
,LEE VALLEY CARAVAN PARK,SUPPLIES AND SERVICES,EQUIPMENT MAINTENANCE,4112,P120846-SERVICE-Legionella Risk Assessment,06/05/2023 00:00,274371,1064.8,KI0090,KINGFISHER ENVIRONMENTAL SERVICES LTD,29/5/2023 00:00:00,25/6/2023 00:00:00,P03-2024
,LEE VALLEY CARAVAN PARK,SUPPLIES AND SERVICES,EQUIPMENT MAINTENANCE,4112,P122142-SERVICE-Door stops,06/05/2023 00:00,274384,23.13,SC0057,SCREWFIX DIRECT LTD,29/5/2023 00:00:00,25/6/2023 00:00:00,P03-2024
,LEE VALLEY CARAVAN PARK,SUPPLIES AND SERVICES,EQUIPMENT MAINTENANCE,4112,P122143-SERVICE-RCD tripping and inspection,06/05/2023 00:00,274471,100,BR0018,BRADSHAW ELECTRICAL LIMITED,29/5/2023 00:00:00,25/6/2023 00:00:00,P03-2024
,LEE VALLEY CARAVAN PARK,SUPPLIES AND SERVICES,EQUIPMENT MAINTENANCE,4112,"P122235-SERVICE-Bolt, screws and padlock",13/6/2023 00:00:00,274529,13.89,SC0057,SCREWFIX DIRECT LTD,29/5/2023 00:00:00,25/6/2023 00:00:00,P03-2024
,LEE VALLEY CARAVAN PARK,SUPPLIES AND SERVICES,EQUIPMENT MAINTENANCE,4112,P122236-SERVICE-Maintenance materials,13/6/2023 00:00:00,274579,89.18,SC0057,SCREWFIX DIRECT LTD,29/5/2023 00:00:00,25/6/2023 00:00:00,P03-2024
,LEE VALLEY CARAVAN PARK,SUPPLIES AND SERVICES,EQUIPMENT MAINTENANCE,4112,P122236-SERVICE-Maintenance materials,13/6/2023 00:00:00,274580,-9.48,SC0057,SCREWFIX DIRECT LTD,29/5/2023 00:00:00,25/6/2023 00:00:00,P03-2024
,LEE VALLEY CARAVAN PARK,SUPPLIES AND SERVICES,EQUIPMENT MAINTENANCE,4112,P122237-SERVICE-Tray paint set,13/6/2023 00:00:00,274581,11.65,SC0057,SCREWFIX DIRECT LTD,29/5/2023 00:00:00,25/6/2023 00:00:00,P03-2024
,LEE VALLEY CARAVAN PARK,SUPPLIES AND SERVICES,EQUIPMENT MAINTENANCE,4112,P122386-SERVICE-Hot tub sampling,23/6/2023 00:00:00,275134,121.72,KI0090,KINGFISHER ENVIRONMENTAL SERVICES LTD,29/5/2023 00:00:00,25/6/2023 00:00:00,P03-2024
P&V,SOUTH AREA RANGERS,SUPPLIES AND SERVICES,EQUIPMENT MAINTENANCE,4112,GM core works,25/6/2023 00:00:00,274549,69654.25,GL0214,GLENDALE GROUNDS MANAGEMENT LIMITED,29/5/2023 00:00:00,25/6/2023 00:00:00,P03-2024
P&V,SOUTH AREA RANGERS,SUPPLIES AND SERVICES,EQUIPMENT MAINTENANCE,4112,Refer to Comp Ref 274549,25/6/2023 00:00:00,275163,-69654.25,GL0214,GLENDALE GROUNDS MANAGEMENT LIMITED,29/5/2023 00:00:00,25/6/2023 00:00:00,P03-2024
,LV LEISURE CENTRE CAMPSITE,SUPPLIES AND SERVICES,EQUIPMENT MAINTENANCE,4112,P122360-SERVICE-milk coffe sterilising tablets,23/6/2023 00:00:00,274473,184.97,RI0176,RIJO 42 INGREDIENTS LIMITED,29/5/2023 00:00:00,25/6/2023 00:00:00,P03-2024
,LV LEISURE CENTRE CAMPSITE,SUPPLIES AND SERVICES,EQUIPMENT MAINTENANCE,4112,P122360-SERVICE-milk coffe sterilising tablets,23/6/2023 00:00:00,274473,29.45,RI0176,RIJO 42 INGREDIENTS LIMITED,29/5/2023 00:00:00,25/6/2023 00:00:00,P03-2024
,LV LEISURE CENTRE CAMPSITE,SUPPLIES AND SERVICES,EQUIPMENT MAINTENANCE,4112,P122360-SERVICE-milk coffe sterilising tablets,23/6/2023 00:00:00,274473,155.52,RI0176,RIJO 42 INGREDIENTS LIMITED,29/5/2023 00:00:00,25/6/2023 00:00:00,P03-2024
,LV LEISURE CENTRE CAMPSITE,SUPPLIES AND SERVICES,EQUIPMENT MAINTENANCE,4112,P122360-SERVICE-milk coffe sterilising tablets,23/6/2023 00:00:00,274473,-184.97,RI0176,RIJO 42 INGREDIENTS LIMITED,29/5/2023 00:00:00,25/6/2023 00:00:00,P03-2024
,LV LEISURE CENTRE CAMPSITE,SUPPLIES AND SERVICES,EQUIPMENT MAINTENANCE,4112,P122135-SERVICE-tyres for compound equipment,13/6/2023 00:00:00,274510,129.17,FA0294,FARM TYRE SERVICES,29/5/2023 00:00:00,25/6/2023 00:00:00,P03-2024
,LV LEISURE CENTRE CAMPSITE,SUPPLIES AND SERVICES,EQUIPMENT MAINTENANCE,4112,P122358-SERVICE-Helmet sashlock fan,23/6/2023 00:00:00,274821,-92.78,SC0057,SCREWFIX DIRECT LTD,29/5/2023 00:00:00,25/6/2023 00:00:00,P03-2024
,LV LEISURE CENTRE CAMPSITE,SUPPLIES AND SERVICES,EQUIPMENT MAINTENANCE,4112,P122358-SERVICE-Helmet sashlock fan,23/6/2023 00:00:00,274821,62.79,SC0057,SCREWFIX DIRECT LTD,29/5/2023 00:00:00,25/6/2023 00:00:00,P03-2024
,LV LEISURE CENTRE CAMPSITE,SUPPLIES AND SERVICES,EQUIPMENT MAINTENANCE,4112,P122358-SERVICE-Helmet sashlock fan,23/6/2023 00:00:00,274821,92.78,SC0057,SCREWFIX DIRECT LTD,29/5/2023 00:00:00,25/6/2023 00:00:00,P03-2024
,LV LEISURE CENTRE CAMPSITE,SUPPLIES AND SERVICES,EQUIPMENT MAINTENANCE,4112,P122358-SERVICE-Helmet sashlock fan,23/6/2023 00:00:00,274821,29.99,SC0057,SCREWFIX DIRECT LTD,29/5/2023 00:00:00,25/6/2023 00:00:00,P03-2024
,LV LEISURE CENTRE CAMPSITE,SUPPLIES AND SERVICES,EQUIPMENT MAINTENANCE,4112,P122115-SERVICE-fix  blue compactor,19/6/2023 00:00:00,274940,309.46,PD0171,PDE WASTE TECHNOLOGIES,29/5/2023 00:00:00,25/6/2023 00:00:00,P03-2024
,LV LEISURE CENTRE CAMPSITE,SUPPLIES AND SERVICES,EQUIPMENT MAINTENANCE,4112,P122361-SERVICE-brackets ladder braces etc,23/6/2023 00:00:00,274962,232.38,SC0057,SCREWFIX DIRECT LTD,29/5/2023 00:00:00,25/6/2023 00:00:00,P03-2024
,LV LEISURE CENTRE CAMPSITE,SUPPLIES AND SERVICES,EQUIPMENT MAINTENANCE,4112,P121814-SERVICE-remedial risk assess repairs,23/6/2023 00:00:00,274965,915,DE0013,DENNIS SECURITY CENTRE,29/5/2023 00:00:00,25/6/2023 00:00:00,P03-2024
R&B,INFORMATION TECHNOLOGY,SUPPLIES AND SERVICES,IT CORE SYSTEMS,4113,P121421-SERVICE-CIPHR Payroll April 2023 - March 2024 @ 569.,13/6/2023 00:00:00,274569,569.58,CI0721,CIPHR,29/5/2023 00:00:00,25/6/2023 00:00:00,P03-2024
R&B,INFORMATION TECHNOLOGY,SUPPLIES AND SERVICES,IT CORE SYSTEMS,4113,P121892-SERVICE-Support & Data Apr 23 - Mar 24,13/6/2023 00:00:00,274582,160.53,CY0653,CYBERTILL,29/5/2023 00:00:00,25/6/2023 00:00:00,P03-2024
R&B,INFORMATION TECHNOLOGY,SUPPLIES AND SERVICES,IT CORE SYSTEMS,4113,P121193-SERVICE-Gema parks Campsite monthly subs April 2023 -,13/6/2023 00:00:00,274721,605,NE0218,NETGUIDES LIMITED,29/5/2023 00:00:00,25/6/2023 00:00:00,P03-2024
R&B,INFORMATION TECHNOLOGY,SUPPLIES AND SERVICES,IT CORE SYSTEMS,4113,"P121499-SERVICE-Efin monthly managed fees @ 1,466.82",14/6/2023 00:00:00,274789,1466.82,CE0021,ADVANCED BUSINESS SOLUTIONS,29/5/2023 00:00:00,25/6/2023 00:00:00,P03-2024
R&B,INFORMATION TECHNOLOGY,SUPPLIES AND SERVICES,IT NETWORK & TELECOMS COSTS,4114,P121817-SERVICE-Monthly SIP charges Apr 2023 - Mar 2024,06/07/2023 00:00,274499,161.5,FR0131,VOICEFLEX LTD,29/5/2023 00:00:00,25/6/2023 00:00:00,P03-2024
R&B,INFORMATION TECHNOLOGY,SUPPLIES AND SERVICES,IT NETWORK & TELECOMS COSTS,4114,P121559-SERVICE-Campsites Circuits 1GB for Public WiFi - Apri,20/6/2023 00:00:00,274930,835,PP0200,PPSNET LIMITED,29/5/2023 00:00:00,25/6/2023 00:00:00,P03-2024
R&B,INFORMATION TECHNOLOGY,SUPPLIES AND SERVICES,IT NETWORK & TELECOMS COSTS,4114,P121558-SERVICE-MPLS for all sites April - September 2023,20/6/2023 00:00:00,274931,8757.36,PP0200,PPSNET LIMITED,29/5/2023 00:00:00,25/6/2023 00:00:00,P03-2024
R&B,INFORMATION TECHNOLOGY,SUPPLIES AND SERVICES,IT HARDWARE & SOFTWARE COSTS,4116,P122122-SERVICE-Mimecast S1 6 monthly payment includes:,06/07/2023 00:00,274377,1791,IQ0022,IQUAL,29/5/2023 00:00:00,25/6/2023 00:00:00,P03-2024
R&B,INFORMATION TECHNOLOGY,SUPPLIES AND SERVICES,IT HARDWARE & SOFTWARE COSTS,4116,"P122332-SERVICE-EPOS - Sennheiser PC 8 USB, Qty 15 at unit pr",23/6/2023 00:00:00,275141,300,CC0711,CCS MEDIA LIMITED,29/5/2023 00:00:00,25/6/2023 00:00:00,P03-2024
R&B,INFORMATION TECHNOLOGY,SUPPLIES AND SERVICES,IT MAINTENANCE AGREEMENTS,4119,P121793-SERVICE-Digiticket monthly ticketing service,19/6/2023 00:00:00,274593,4007,DI0304,DIGITAL TICKETING SYSTEMS LTD (DIGITICKETS),29/5/2023 00:00:00,25/6/2023 00:00:00,P03-2024
R&B,INFORMATION TECHNOLOGY,SUPPLIES AND SERVICES,IT MAINTENANCE AGREEMENTS,4119,P121793-SERVICE-Digiticket monthly ticketing service,19/6/2023 00:00:00,274765,673,DI0304,DIGITAL TICKETING SYSTEMS LTD (DIGITICKETS),29/5/2023 00:00:00,25/6/2023 00:00:00,P03-2024
P&V,SOUTH AREA RANGERS,SUPPLIES AND SERVICES,MATERIALS (LOCKS),4124,P122206-SERVICE-2x Combi Locks,20/6/2023 00:00:00,274726,6.66,SC0057,SCREWFIX DIRECT LTD,29/5/2023 00:00:00,25/6/2023 00:00:00,P03-2024
P&V,SOUTH AREA RANGERS,SUPPLIES AND SERVICES,MATERIALS (LOCKS),4124,P122206-SERVICE-6x Vulcan Combi Locks 50mm,20/6/2023 00:00:00,274726,13.34,SC0057,SCREWFIX DIRECT LTD,29/5/2023 00:00:00,25/6/2023 00:00:00,P03-2024
P&V,SOUTH AREA RANGERS,SUPPLIES AND SERVICES,MATERIALS (LOCKS),4124,P122206-SERVICE-2x Combi Locks,20/6/2023 00:00:00,274727,26.68,SC0057,SCREWFIX DIRECT LTD,29/5/2023 00:00:00,25/6/2023 00:00:00,P03-2024
P&V,SOUTH AREA RANGERS,SUPPLIES AND SERVICES,MATERIALS (LOCKS),4124,P122206-SERVICE-6x Vulcan Combi Locks 50mm,20/6/2023 00:00:00,274727,80.05,SC0057,SCREWFIX DIRECT LTD,29/5/2023 00:00:00,25/6/2023 00:00:00,P03-2024
P&V,SOUTH AREA RANGERS,SUPPLIES AND SERVICES,MATERIALS (LOCKS),4124,P122206-SERVICE-6x Vulcan Combi Locks 50mm,20/6/2023 00:00:00,274728,-13.34,SC0057,SCREWFIX DIRECT LTD,29/5/2023 00:00:00,25/6/2023 00:00:00,P03-2024
P&V,SOUTH AREA RANGERS,SUPPLIES AND SERVICES,MATERIALS (LOCKS),4124,P122206-SERVICE-6x Vulcan Combi Locks 50mm,20/6/2023 00:00:00,274780,108,SC0057,SCREWFIX DIRECT LTD,29/5/2023 00:00:00,25/6/2023 00:00:00,P03-2024
P&V,SOUTH AREA RANGERS,SUPPLIES AND SERVICES,MATERIALS (LOCKS),4124,P122206-SERVICE-6x Vulcan Combi Locks 50mm,20/6/2023 00:00:00,274781,-80.05,SC0057,SCREWFIX DIRECT LTD,29/5/2023 00:00:00,25/6/2023 00:00:00,P03-2024
,LV LEISURE CENTRE GOLF COURSE,SUPPLIES AND SERVICES,MATERIALS (LOCKS),4124,P121765-SERVICE-Delivery to address below FAO Leanne Smith,06/05/2023 00:00,274391,6,LO0020,LOCK AND KEY SERVICES,29/5/2023 00:00:00,25/6/2023 00:00:00,P03-2024
,LV LEISURE CENTRE GOLF COURSE,SUPPLIES AND SERVICES,MATERIALS (LOCKS),4124,P121765-SERVICE-1x ASSA Key - C1-1-4,06/05/2023 00:00,274391,14.73,LO0020,LOCK AND KEY SERVICES,29/5/2023 00:00:00,25/6/2023 00:00:00,P03-2024
,LV LEISURE CENTRE GOLF COURSE,SUPPLIES AND SERVICES,MATERIALS (LOCKS),4124,P121874-SERVICE-1x ASSA Lock - C1-1-4,06/05/2023 00:00,274392,92.25,LO0020,LOCK AND KEY SERVICES,29/5/2023 00:00:00,25/6/2023 00:00:00,P03-2024
,LV LEISURE CENTRE GOLF COURSE,SUPPLIES AND SERVICES,MATERIALS (LOCKS),4124,P121874-SERVICE-Delivery to address below FAO Leanne Smith,06/05/2023 00:00,274392,6,LO0020,LOCK AND KEY SERVICES,29/5/2023 00:00:00,25/6/2023 00:00:00,P03-2024
,LEE VALLEY CARAVAN PARK,SUPPLIES AND SERVICES,MATERIALS (GROUNDS MAINT),4125,P122077-SERVICE-Spray of Hog Weed On Site - HH32,23/6/2023 00:00:00,275006,495,GO0044,S.H.GOSS & CO LTD,29/5/2023 00:00:00,25/6/2023 00:00:00,P03-2024
,LV LEISURE CENTRE GOLF COURSE,SUPPLIES AND SERVICES,MATERIALS (GROUNDS MAINT),4125,P122119-SERVICE-Edmonton Golf Tractor Parts,13/6/2023 00:00:00,274444,269.03,LE0279,REESINK TURFCARE UK LIMITED,29/5/2023 00:00:00,25/6/2023 00:00:00,P03-2024
,LV LEISURE CENTRE GOLF COURSE,SUPPLIES AND SERVICES,MATERIALS (GROUNDS MAINT),4125,P122182-SERVICE-Hayter Axle Kit,20/6/2023 00:00:00,274793,1095.11,CA0698,CAMBRIDGE GOLF COMPANY,29/5/2023 00:00:00,25/6/2023 00:00:00,P03-2024
,LEE VALLEY MARINA SPRINGFIELD,SUPPLIES AND SERVICES,MATERIALS (TOOLS & PLANT),4127,P121402-SERVICE-To supply 4 x Adams Argon Co2 20 Ltr Cylinder,06/07/2023 00:00,274574,290.84,EL0281,ELTHAM WELDING SUPPLIES LIMITED,29/5/2023 00:00:00,25/6/2023 00:00:00,P03-2024
,STANSTEAD RECHARGEABLE WORKS,SUPPLIES AND SERVICES,MATERIALS (TOOLS & PLANT),4127,P122114-SERVICE-pressure washer stanstead marina,06/05/2023 00:00,274462,769,EN0309,PRH ENGINEERING LIMITED,29/5/2023 00:00:00,25/6/2023 00:00:00,P03-2024
,STANSTEAD RECHARGEABLE WORKS,SUPPLIES AND SERVICES,MATERIALS (TOOLS & PLANT),4127,P122123-SERVICE-hyab for 1 day lorry loader,14/6/2023 00:00:00,274806,650,IN0207,INDEPENDENT CONTRACT LIFTING SERVICES LTD,29/5/2023 00:00:00,25/6/2023 00:00:00,P03-2024
,STANSTEAD RECHARGEABLE WORKS,SUPPLIES AND SERVICES,MATERIALS (TOOLS & PLANT),4127,P122286-SERVICE-PRH - anodes,23/6/2023 00:00:00,274937,3500,EN0309,PRH ENGINEERING LIMITED,29/5/2023 00:00:00,25/6/2023 00:00:00,P03-2024
P&V,ALMOST WILD CAMPSITE,SUPPLIES AND SERVICES,MATERIALS (MEDICAL),4132,"P122364-SERVICE-First Aid Kit, Burns Gel,",25/6/2023 00:00:00,274681,50.82,SC0057,SCREWFIX DIRECT LTD,29/5/2023 00:00:00,25/6/2023 00:00:00,P03-2024
P&V,LEE VALLEY FARM HOLYFIELDHALL,SUPPLIES AND SERVICES,SPRAYS,4136,P122166-SERVICE-Sprays,06/07/2023 00:00,274374,192.2,HA0013,HARLOW AGRICULTURAL MERCHANTS,29/5/2023 00:00:00,25/6/2023 00:00:00,P03-2024
P&V,LEE VALLEY FARM HOLYFIELDHALL,SUPPLIES AND SERVICES,SPRAYS,4136,P122166-SERVICE-Sprays,06/07/2023 00:00,274375,549,HA0013,HARLOW AGRICULTURAL MERCHANTS,29/5/2023 00:00:00,25/6/2023 00:00:00,P03-2024
P&V,LEE VALLEY FARM HOLYFIELDHALL,SUPPLIES AND SERVICES,FERTILIZER,4137,P122293-SERVICE-Soil Analysis Tests,19/6/2023 00:00:00,274748,248,HA0013,HARLOW AGRICULTURAL MERCHANTS,29/5/2023 00:00:00,25/6/2023 00:00:00,P03-2024
P&V,LEE VALLEY FARM HOLYFIELDHALL,SUPPLIES AND SERVICES,DAIRY SUNDRIES,4138,P121601-SERVICE-Dairy Sundries,06/07/2023 00:00,274372,39.65,MI0023,MILL DAIRY SERVICES,29/5/2023 00:00:00,25/6/2023 00:00:00,P03-2024
P&V,LEE VALLEY FARM HOLYFIELDHALL,SUPPLIES AND SERVICES,DAIRY SUNDRIES,4138,P122181-SERVICE-Oxyseal/Sidewall Film,06/07/2023 00:00,274506,637,SI0695,SILOSTOP AGRI LTD,29/5/2023 00:00:00,25/6/2023 00:00:00,P03-2024
P&V,LEE VALLEY FARM HOLYFIELDHALL,SUPPLIES AND SERVICES,DAIRY SUNDRIES,4138,P121601-SERVICE-Dairy Sundries,06/07/2023 00:00,274528,214.85,MI0023,MILL DAIRY SERVICES,29/5/2023 00:00:00,25/6/2023 00:00:00,P03-2024
P&V,LEE VALLEY FARM HOLYFIELDHALL,SUPPLIES AND SERVICES,DAIRY SUNDRIES,4138,P122011-SERVICE-Liquid Nitrogen,06/07/2023 00:00,274564,78,GE0005,GENUS BREEDING LTD,29/5/2023 00:00:00,25/6/2023 00:00:00,P03-2024
,LV CAMPSITE CARAVAN SALES,SUPPLIES AND SERVICES,MISCELLANEOUS CARAVAN COSTS,4174,P121914-SERVICE-31 SC Aerial Connections,06/05/2023 00:00,273779,225,AS0343,ASCENT AERIALS,29/5/2023 00:00:00,25/6/2023 00:00:00,P03-2024
,LV CAMPSITE CARAVAN SALES,SUPPLIES AND SERVICES,MISCELLANEOUS CARAVAN COSTS,4174,P122120-SERVICE-Introdustion 33 SC Sale,06/07/2023 00:00,274543,1000,RA0356,RAINBOW ESTATE AGENTS (SE) LTD,29/5/2023 00:00:00,25/6/2023 00:00:00,P03-2024
,LEE VALLEY CARAVAN PARK,SUPPLIES AND SERVICES,MISCELLANEOUS CARAVAN COSTS,4174,P122053-SERVICE-Household items for Riverside Cottage,06/05/2023 00:00,274474,154.71,PA0415,PATTERSONS,29/5/2023 00:00:00,25/6/2023 00:00:00,P03-2024
,LEE VALLEY CARAVAN PARK,SUPPLIES AND SERVICES,MISCELLANEOUS CARAVAN COSTS,4174,P122053-SERVICE-Household items for Riverside Cottage,13/6/2023 00:00:00,274609,54.91,PA0415,PATTERSONS,29/5/2023 00:00:00,25/6/2023 00:00:00,P03-2024
,LEE VALLEY CARAVAN PARK,SUPPLIES AND SERVICES,MISCELLANEOUS CARAVAN COSTS,4174,P122053-SERVICE-Household items for Riverside Cottage,13/6/2023 00:00:00,274610,139.88,PA0415,PATTERSONS,29/5/2023 00:00:00,25/6/2023 00:00:00,P03-2024
,LEE VALLEY CARAVAN PARK,SUPPLIES AND SERVICES,MISCELLANEOUS CARAVAN COSTS,4174,P122365-SERVICE-Various Kitchen Utenstils - Riverside Cottage,25/6/2023 00:00:00,274829,133.52,PA0415,PATTERSONS,29/5/2023 00:00:00,25/6/2023 00:00:00,P03-2024
,LEE VALLEY CARAVAN PARK,SUPPLIES AND SERVICES,CONSUMABLES - LODGES,4181,P121677-SERVICE-Lighting Changed in six pecky pods 165 each,06/05/2023 00:00,274470,990,BR0018,BRADSHAW ELECTRICAL LIMITED,29/5/2023 00:00:00,25/6/2023 00:00:00,P03-2024
,LEE VALLEY MARINA SPRINGFIELD,SUPPLIES AND SERVICES,CLOTHING & UNIFORMS,4225,Springfield -PPE,06/05/2023 00:00,274322,163.52,SA0008,SAFETEC DIRECT LTD,29/5/2023 00:00:00,25/6/2023 00:00:00,P03-2024
,LEE VALLEY MARINA SPRINGFIELD,SUPPLIES AND SERVICES,CLOTHING & UNIFORMS,4225,P121813-SERVICE-To supply PPE as requested,06/05/2023 00:00,274322,279.05,SA0008,SAFETEC DIRECT LTD,29/5/2023 00:00:00,25/6/2023 00:00:00,P03-2024
,LEE VALLEY MARINA SPRINGFIELD,SUPPLIES AND SERVICES,CLOTHING & UNIFORMS,4225,Springfield -PPE,06/05/2023 00:00,274322,115.53,SA0008,SAFETEC DIRECT LTD,29/5/2023 00:00:00,25/6/2023 00:00:00,P03-2024
,LEE VALLEY MARINA SPRINGFIELD,SUPPLIES AND SERVICES,CLOTHING & UNIFORMS,4225,Springfield -PPE,06/05/2023 00:00,274322,-279.05,SA0008,SAFETEC DIRECT LTD,29/5/2023 00:00:00,25/6/2023 00:00:00,P03-2024
,LEE VALLEY MARINA SPRINGFIELD,SUPPLIES AND SERVICES,CLOTHING & UNIFORMS,4225,P121813-SERVICE-To supply PPE as requested,06/05/2023 00:00,274366,197.58,SA0008,SAFETEC DIRECT LTD,29/5/2023 00:00:00,25/6/2023 00:00:00,P03-2024
,LEE VALLEY MARINA SPRINGFIELD,SUPPLIES AND SERVICES,CLOTHING & UNIFORMS,4225,Springfield- supply PPE,06/05/2023 00:00,274366,-197.58,SA0008,SAFETEC DIRECT LTD,29/5/2023 00:00:00,25/6/2023 00:00:00,P03-2024
,LEE VALLEY MARINA SPRINGFIELD,SUPPLIES AND SERVICES,CLOTHING & UNIFORMS,4225,Springfield- supply PPE,06/05/2023 00:00,274366,53.95,SA0008,SAFETEC DIRECT LTD,29/5/2023 00:00:00,25/6/2023 00:00:00,P03-2024
,LEE VALLEY MARINA SPRINGFIELD,SUPPLIES AND SERVICES,CLOTHING & UNIFORMS,4225,Springfield- supply PPE,06/05/2023 00:00,274366,143.63,SA0008,SAFETEC DIRECT LTD,29/5/2023 00:00:00,25/6/2023 00:00:00,P03-2024
,LEE VALLEY MARINA STANSTEAD,SUPPLIES AND SERVICES,CLOTHING & UNIFORMS,4225,P122289-SERVICE-summer uniform,23/6/2023 00:00:00,274901,279.05,DI0017,DIRECT BOOT & SHOE SUPPLIES,29/5/2023 00:00:00,25/6/2023 00:00:00,P03-2024
P&V,RIVER LEE COUNTRY PARK,SUPPLIES AND SERVICES,CLOTHING & UNIFORMS,4225,P122207-SERVICE-6x Crewsaver Crewfit 150N Workvest - SKU 9202,20/6/2023 00:00:00,274774,449.76,CR0283,CREWSAFE MARINE LTD,29/5/2023 00:00:00,25/6/2023 00:00:00,P03-2024
P&V,RIVER LEE COUNTRY PARK,SUPPLIES AND SERVICES,CLOTHING & UNIFORMS,4225,P122207-SERVICE-Delivery,20/6/2023 00:00:00,274774,4.16,CR0283,CREWSAFE MARINE LTD,29/5/2023 00:00:00,25/6/2023 00:00:00,P03-2024
CEO,LEGAL SERVICES,SUPPLIES AND SERVICES,OFFICE EXPENSES,4311,P122204-SERVICE-A4 Notebooks Pack of 5 (SV43692),19/6/2023 00:00:00,274776,14.22,TH0008,JKL SOLUTIONS LTD,29/5/2023 00:00:00,25/6/2023 00:00:00,P03-2024
,LEE VALLEY MARINA STANSTEAD,SUPPLIES AND SERVICES,OFFICE EXPENSES,4311,P122227-SERVICE-stationery fans and blue tack,23/6/2023 00:00:00,274831,117.91,TH0008,JKL SOLUTIONS LTD,29/5/2023 00:00:00,25/6/2023 00:00:00,P03-2024
,LEE VALLEY CAMPSITE,SUPPLIES AND SERVICES,OFFICE EXPENSES,4311,P121645-SERVICE-increase to cover invoice,20/6/2023 00:00:00,274226,16.28,TH0008,JKL SOLUTIONS LTD,29/5/2023 00:00:00,25/6/2023 00:00:00,P03-2024
,LEE VALLEY CAMPSITE,SUPPLIES AND SERVICES,OFFICE EXPENSES,4311,P121645-SERVICE-Stationery,20/6/2023 00:00:00,274226,109.65,TH0008,JKL SOLUTIONS LTD,29/5/2023 00:00:00,25/6/2023 00:00:00,P03-2024
,LEE VALLEY CAMPSITE,SUPPLIES AND SERVICES,OFFICE EXPENSES,4311,P121645-SERVICE-Stationery,06/05/2023 00:00,274324,-13.09,TH0008,JKL SOLUTIONS LTD,29/5/2023 00:00:00,25/6/2023 00:00:00,P03-2024
,LEE VALLEY CAMPSITE,SUPPLIES AND SERVICES,OFFICE EXPENSES,4311,P121645-SERVICE-Stationery,06/05/2023 00:00,274367,10.73,TH0008,JKL SOLUTIONS LTD,29/5/2023 00:00:00,25/6/2023 00:00:00,P03-2024
,LEE VALLEY CARAVAN PARK,SUPPLIES AND SERVICES,OFFICE EXPENSES,4311,P122149-SERVICE-Stationery,13/6/2023 00:00:00,274611,100.26,TH0008,JKL SOLUTIONS LTD,29/5/2023 00:00:00,25/6/2023 00:00:00,P03-2024
P&V,RIVER LEE COUNTRY PARK,SUPPLIES AND SERVICES,OFFICE EXPENSES,4311,STATIONARY,21/6/2023 00:00:00,274939,5.55,FI0001,DIRECTOR OF FINANCE - CASH,29/5/2023 00:00:00,25/6/2023 00:00:00,P03-2024
R&B,INFORMATION TECHNOLOGY,SUPPLIES AND SERVICES,PHOTOCOPYING,4314,JUNE-SEPT 2023,06/12/2023 00:00,274724,1566.78,KO0071,KONICA MINOLTA BUSINESS SOLUTIONS ( UK) LTD,29/5/2023 00:00:00,25/6/2023 00:00:00,P03-2024
R&B,INFORMATION TECHNOLOGY,SUPPLIES AND SERVICES,PHOTOCOPYING,4314,KONICA MINOLTA BUSINESS SOLUTI,20/6/2023 00:00:00,274900,498.98,KO0071,KONICA MINOLTA BUSINESS SOLUTIONS ( UK) LTD,29/5/2023 00:00:00,25/6/2023 00:00:00,P03-2024
R&B,INFORMATION TECHNOLOGY,SUPPLIES AND SERVICES,PHOTOCOPYING,4314,IT-Waste Toner bottle,25/6/2023 00:00:00,274960,25.1,KO0071,KONICA MINOLTA BUSINESS SOLUTIONS ( UK) LTD,29/5/2023 00:00:00,25/6/2023 00:00:00,P03-2024
CEO,PR/COMMUNICATIONS,SUPPLIES AND SERVICES,PRINTING CORPORATE BROCHURES,4321,P122151-SERVICE-Booking confirmation #80612,19/6/2023 00:00:00,274775,185.5,LB0477,LBOX COMMUNICATIONS,29/5/2023 00:00:00,25/6/2023 00:00:00,P03-2024
P&V,BIODIVERSITY ACTION PLAN,SUPPLIES AND SERVICES,PERIODICALS & REFERENCE BOOKS,4332,P122157-SERVICE-Corporate Membership of London Natural Histor,13/6/2023 00:00:00,274692,20,LO0030,LONDON NATURAL HISTORY SOCIETY,29/5/2023 00:00:00,25/6/2023 00:00:00,P03-2024
CEO,LEGAL SERVICES,SUPPLIES AND SERVICES,SUBSCRIPTIONS,4334,P121054-SERVICE-Public Law Partnership Subscription,06/12/2023 00:00,274746,400,ES0268,ESSEX COUNTY COUNCIL,29/5/2023 00:00:00,25/6/2023 00:00:00,P03-2024
P&V,MYDDELTON HOUSE,SUPPLIES AND SERVICES,POSTAGE & MAILING,4445,Md House Serial  7173026,14/6/2023 00:00:00,274761,4.64,PI0021,PITNEY BOWES PURCHASE POWER,29/5/2023 00:00:00,25/6/2023 00:00:00,P03-2024
P&V,VOLUNTEERS (L&E),SUPPLIES AND SERVICES,POSTAGE & MAILING,4445,ROYAL MAIL GROUP PLC,25/6/2023 00:00:00,275000,99.9,RO0022,ROYAL MAIL GROUP PLC,29/5/2023 00:00:00,25/6/2023 00:00:00,P03-2024
R&B,INFORMATION TECHNOLOGY,SUPPLIES AND SERVICES,TELEPHONES (OFFICE),4481,IT-Md House,06/01/2023 00:00,274379,29.5,ZE0007,ZEN INTERNET LTD,29/5/2023 00:00:00,25/6/2023 00:00:00,P03-2024
R&B,INFORMATION TECHNOLOGY,SUPPLIES AND SERVICES,TELEPHONES (OFFICE),4481,May-23,19/6/2023 00:00:00,274707,2480.1,ID0002,DAISY COMMUNICATIONS LTD,29/5/2023 00:00:00,25/6/2023 00:00:00,P03-2024
R&B,INFORMATION TECHNOLOGY,SUPPLIES AND SERVICES,TELEPHONES (OFFICE),4481,IT- Migration,19/6/2023 00:00:00,274769,38,ZE0007,ZEN INTERNET LTD,29/5/2023 00:00:00,25/6/2023 00:00:00,P03-2024
R&B,INFORMATION TECHNOLOGY,SUPPLIES AND SERVICES,TELEPHONES (OFFICE),4481,IT-monthly serviceJune-July 20,19/6/2023 00:00:00,274770,31.32,ZE0007,ZEN INTERNET LTD,29/5/2023 00:00:00,25/6/2023 00:00:00,P03-2024
R&B,INFORMATION TECHNOLOGY,SUPPLIES AND SERVICES,TELEPHONES (OFFICE),4481,IT-monthly charge,25/6/2023 00:00:00,275197,29.5,ZE0007,ZEN INTERNET LTD,29/5/2023 00:00:00,25/6/2023 00:00:00,P03-2024
R&B,INFORMATION TECHNOLOGY,SUPPLIES AND SERVICES,TELEPHONES (MOBILE),4484,May-23,06/07/2023 00:00,274483,20,VO0010,VODAFONE  LIMITED (CORPORATE),29/5/2023 00:00:00,25/6/2023 00:00:00,P03-2024
R&B,INFORMATION TECHNOLOGY,SUPPLIES AND SERVICES,TELEPHONES (MOBILE),4484,May-23,06/07/2023 00:00,274483,883,VO0010,VODAFONE  LIMITED (CORPORATE),29/5/2023 00:00:00,25/6/2023 00:00:00,P03-2024
R&B,INFORMATION TECHNOLOGY,SUPPLIES AND SERVICES,TELEPHONES (MOBILE),4484,May-23,06/12/2023 00:00,274734,5.72,GA0432,GAMMA TELECOM LTD,29/5/2023 00:00:00,25/6/2023 00:00:00,P03-2024
P&V,RIVER LEE COUNTRY PARK,SUPPLIES AND SERVICES,HOSPITALITY,4505,HOSPITALITY,21/6/2023 00:00:00,274939,4.54,FI0001,DIRECTOR OF FINANCE - CASH,29/5/2023 00:00:00,25/6/2023 00:00:00,P03-2024
P&V,RIVER LEE COUNTRY PARK,SUPPLIES AND SERVICES,HOSPITALITY,4505,HOSPITALITY,21/6/2023 00:00:00,274939,8,FI0001,DIRECTOR OF FINANCE - CASH,29/5/2023 00:00:00,25/6/2023 00:00:00,P03-2024
P&V,RIVER LEE COUNTRY PARK,SUPPLIES AND SERVICES,VOLUNTEERS EXPENSES,4506,VOLUNTEER REFRESHMENTS,21/6/2023 00:00:00,274939,3.6,FI0001,DIRECTOR OF FINANCE - CASH,29/5/2023 00:00:00,25/6/2023 00:00:00,P03-2024
P&V,RIVER LEE COUNTRY PARK,SUPPLIES AND SERVICES,VOLUNTEERS EXPENSES,4506,VOLUNTEER REFRESHMENTS,21/6/2023 00:00:00,274939,4.25,FI0001,DIRECTOR OF FINANCE - CASH,29/5/2023 00:00:00,25/6/2023 00:00:00,P03-2024
P&V,RIVER LEE COUNTRY PARK,SUPPLIES AND SERVICES,VOLUNTEERS EXPENSES,4506,VOLUNTEER REFRESHMENTS,21/6/2023 00:00:00,274939,3.15,FI0001,DIRECTOR OF FINANCE - CASH,29/5/2023 00:00:00,25/6/2023 00:00:00,P03-2024
P&V,NORTH AREA RANGERS,SUPPLIES AND SERVICES,PEST CONTROL,4625,P122082-SERVICE-Pest Control - North Sites - May,14/6/2023 00:00:00,274794,73.33,VE0006,VERMINATE CITY & RURAL PEST CONTROL LTD,29/5/2023 00:00:00,25/6/2023 00:00:00,P03-2024
P&V,NORTH AREA RANGERS,SUPPLIES AND SERVICES,PEST CONTROL,4625,P122060-SERVICE-Pest Control - Ware Town Centre - May,14/6/2023 00:00:00,274796,70,VE0006,VERMINATE CITY & RURAL PEST CONTROL LTD,29/5/2023 00:00:00,25/6/2023 00:00:00,P03-2024
P&V,SOUTH AREA RANGERS,SUPPLIES AND SERVICES,PEST CONTROL,4625,P122058-SERVICE-Pest Control - Tottenham Marshes - May,14/6/2023 00:00:00,274804,70,VE0006,VERMINATE CITY & RURAL PEST CONTROL LTD,29/5/2023 00:00:00,25/6/2023 00:00:00,P03-2024
P&V,ABBEY GARDENS,SUPPLIES AND SERVICES,PEST CONTROL,4625,P122082-SERVICE-Pest Control - North Sites - May,14/6/2023 00:00:00,274794,36.67,VE0006,VERMINATE CITY & RURAL PEST CONTROL LTD,29/5/2023 00:00:00,25/6/2023 00:00:00,P03-2024
P&V,RIVER LEE COUNTRY PARK,SUPPLIES AND SERVICES,PEST CONTROL,4625,P122082-SERVICE-Pest Control - North Sites - May,14/6/2023 00:00:00,274794,73.33,VE0006,VERMINATE CITY & RURAL PEST CONTROL LTD,29/5/2023 00:00:00,25/6/2023 00:00:00,P03-2024
P&V,FORMER LV LIDO SITE,SUPPLIES AND SERVICES,PEST CONTROL,4625,P122082-SERVICE-Pest Control - North Sites - May,14/6/2023 00:00:00,274794,36.67,VE0006,VERMINATE CITY & RURAL PEST CONTROL LTD,29/5/2023 00:00:00,25/6/2023 00:00:00,P03-2024
,LEE VALLEY MARINA SPRINGFIELD,SUPPLIES AND SERVICES,MERCHANT PROCESSING CHARGES,4641,Marinas-payment processing,06/01/2023 00:00,274385,30,WO0338,WORLDPAY,29/5/2023 00:00:00,25/6/2023 00:00:00,P03-2024
,LEE VALLEY MARINA STANSTEAD,SUPPLIES AND SERVICES,MERCHANT PROCESSING CHARGES,4641,Marinas-payment processing,06/01/2023 00:00,274385,30,WO0338,WORLDPAY,29/5/2023 00:00:00,25/6/2023 00:00:00,P03-2024
P&V,MYDDELTON HOUSE,SUPPLIES AND SERVICES,CASH COLLECTIONS,4642,P121351-SERVICE-Myddelton House,19/6/2023 00:00:00,264923,26,G40445,G4S CASH SOLUTIONS (UK) LTD,29/5/2023 00:00:00,25/6/2023 00:00:00,P03-2024
P&V,MYDDELTON HOUSE,SUPPLIES AND SERVICES,CASH COLLECTIONS,4642,P122337-SERVICE-Myddelton house 24/5/23,23/6/2023 00:00:00,274700,12.43,SE0692,SECURITY PLUS LTD,29/5/2023 00:00:00,25/6/2023 00:00:00,P03-2024
,LEE VALLEY MARINA SPRINGFIELD,SUPPLIES AND SERVICES,CASH COLLECTIONS,4642,P122337-SERVICE-Stanstead marina 10 & 24/5/23,23/6/2023 00:00:00,274700,24.86,SE0692,SECURITY PLUS LTD,29/5/2023 00:00:00,25/6/2023 00:00:00,P03-2024
,LEE VALLEY MARINA STANSTEAD,SUPPLIES AND SERVICES,CASH COLLECTIONS,4642,P121351-SERVICE-Springfield marina,19/6/2023 00:00:00,248048,65,G40445,G4S CASH SOLUTIONS (UK) LTD,29/5/2023 00:00:00,25/6/2023 00:00:00,P03-2024
,LEE VALLEY MARINA STANSTEAD,SUPPLIES AND SERVICES,CASH COLLECTIONS,4642,P121351-SERVICE-Springfield marina,19/6/2023 00:00:00,248854,52,G40445,G4S CASH SOLUTIONS (UK) LTD,29/5/2023 00:00:00,25/6/2023 00:00:00,P03-2024
,LEE VALLEY MARINA STANSTEAD,SUPPLIES AND SERVICES,CASH COLLECTIONS,4642,P121351-SERVICE-Springfield marina,19/6/2023 00:00:00,264923,26,G40445,G4S CASH SOLUTIONS (UK) LTD,29/5/2023 00:00:00,25/6/2023 00:00:00,P03-2024
,LEE VALLEY MARINA STANSTEAD,SUPPLIES AND SERVICES,CASH COLLECTIONS,4642,P122337-SERVICE-Springfield marina 3/5/23,23/6/2023 00:00:00,274700,12.43,SE0692,SECURITY PLUS LTD,29/5/2023 00:00:00,25/6/2023 00:00:00,P03-2024
,LEE VALLEY CAMPSITE,SUPPLIES AND SERVICES,CASH COLLECTIONS,4642,P121351-SERVICE-Sewardstone campsite,19/6/2023 00:00:00,248048,65,G40445,G4S CASH SOLUTIONS (UK) LTD,29/5/2023 00:00:00,25/6/2023 00:00:00,P03-2024
,LEE VALLEY CAMPSITE,SUPPLIES AND SERVICES,CASH COLLECTIONS,4642,P121351-SERVICE-Sewardstone campsite,19/6/2023 00:00:00,248854,52,G40445,G4S CASH SOLUTIONS (UK) LTD,29/5/2023 00:00:00,25/6/2023 00:00:00,P03-2024
,LEE VALLEY CAMPSITE,SUPPLIES AND SERVICES,CASH COLLECTIONS,4642,P121351-SERVICE-Sewardstone campsite,19/6/2023 00:00:00,264923,39,G40445,G4S CASH SOLUTIONS (UK) LTD,29/5/2023 00:00:00,25/6/2023 00:00:00,P03-2024
,LEE VALLEY CAMPSITE,SUPPLIES AND SERVICES,CASH COLLECTIONS,4642,"P122337-SERVICE-Sewardstone 10, 17, 24 7 31/5/23",23/6/2023 00:00:00,274700,49.72,SE0692,SECURITY PLUS LTD,29/5/2023 00:00:00,25/6/2023 00:00:00,P03-2024
,LEE VALLEY CARAVAN PARK,SUPPLIES AND SERVICES,CASH COLLECTIONS,4642,P121351-SERVICE-Dobbs Weir Campsite,19/6/2023 00:00:00,248048,65,G40445,G4S CASH SOLUTIONS (UK) LTD,29/5/2023 00:00:00,25/6/2023 00:00:00,P03-2024
,LEE VALLEY CARAVAN PARK,SUPPLIES AND SERVICES,CASH COLLECTIONS,4642,P121351-SERVICE-Dobbs Weir Campsite,19/6/2023 00:00:00,248854,52,G40445,G4S CASH SOLUTIONS (UK) LTD,29/5/2023 00:00:00,25/6/2023 00:00:00,P03-2024
,LEE VALLEY CARAVAN PARK,SUPPLIES AND SERVICES,CASH COLLECTIONS,4642,P121351-SERVICE-Dobbs Weir Campsite,19/6/2023 00:00:00,264923,39,G40445,G4S CASH SOLUTIONS (UK) LTD,29/5/2023 00:00:00,25/6/2023 00:00:00,P03-2024
,LEE VALLEY CARAVAN PARK,SUPPLIES AND SERVICES,CASH COLLECTIONS,4642,P122337-SERVICE-Dobbs Weir 3 & 10/5/23,23/6/2023 00:00:00,274700,24.86,SE0692,SECURITY PLUS LTD,29/5/2023 00:00:00,25/6/2023 00:00:00,P03-2024
,LEE VALLEY ICE CENTRE,SUPPLIES AND SERVICES,CASH COLLECTIONS,4642,P121351-SERVICE-Ice Centre,19/6/2023 00:00:00,248048,26,G40445,G4S CASH SOLUTIONS (UK) LTD,29/5/2023 00:00:00,25/6/2023 00:00:00,P03-2024
,LEE VALLEY ICE CENTRE,SUPPLIES AND SERVICES,CASH COLLECTIONS,4642,P121351-SERVICE-Ice Centre,19/6/2023 00:00:00,248854,26,G40445,G4S CASH SOLUTIONS (UK) LTD,29/5/2023 00:00:00,25/6/2023 00:00:00,P03-2024
,LV LEISURE CENTRE CAMPSITE,SUPPLIES AND SERVICES,CASH COLLECTIONS,4642,G4S CASH SOLUTIONS (UK) LTD,19/6/2023 00:00:00,248048,65,G40445,G4S CASH SOLUTIONS (UK) LTD,29/5/2023 00:00:00,25/6/2023 00:00:00,P03-2024
,LV LEISURE CENTRE CAMPSITE,SUPPLIES AND SERVICES,CASH COLLECTIONS,4642,G4S CASH SOLUTIONS (UK) LTD,19/6/2023 00:00:00,248854,52,G40445,G4S CASH SOLUTIONS (UK) LTD,29/5/2023 00:00:00,25/6/2023 00:00:00,P03-2024
,LV LEISURE CENTRE CAMPSITE,SUPPLIES AND SERVICES,CASH COLLECTIONS,4642,G4S CASH SOLUTIONS (UK) LTD,19/6/2023 00:00:00,264923,39,G40445,G4S CASH SOLUTIONS (UK) LTD,29/5/2023 00:00:00,25/6/2023 00:00:00,P03-2024
,LV LEISURE CENTRE GOLF COURSE,SUPPLIES AND SERVICES,CASH COLLECTIONS,4642,P121351-SERVICE-Edmonton Campsite,19/6/2023 00:00:00,248048,65,G40445,G4S CASH SOLUTIONS (UK) LTD,29/5/2023 00:00:00,25/6/2023 00:00:00,P03-2024
,LV LEISURE CENTRE GOLF COURSE,SUPPLIES AND SERVICES,CASH COLLECTIONS,4642,G4S CASH SOLUTIONS (UK) LTD,19/6/2023 00:00:00,248048,-65,G40445,G4S CASH SOLUTIONS (UK) LTD,29/5/2023 00:00:00,25/6/2023 00:00:00,P03-2024
,LV LEISURE CENTRE GOLF COURSE,SUPPLIES AND SERVICES,CASH COLLECTIONS,4642,G4S CASH SOLUTIONS (UK) LTD,19/6/2023 00:00:00,248854,-52,G40445,G4S CASH SOLUTIONS (UK) LTD,29/5/2023 00:00:00,25/6/2023 00:00:00,P03-2024
,LV LEISURE CENTRE GOLF COURSE,SUPPLIES AND SERVICES,CASH COLLECTIONS,4642,P121351-SERVICE-Edmonton Campsite,19/6/2023 00:00:00,248854,52,G40445,G4S CASH SOLUTIONS (UK) LTD,29/5/2023 00:00:00,25/6/2023 00:00:00,P03-2024
,LV LEISURE CENTRE GOLF COURSE,SUPPLIES AND SERVICES,CASH COLLECTIONS,4642,P121351-SERVICE-Edmonton Campsite,19/6/2023 00:00:00,264923,39,G40445,G4S CASH SOLUTIONS (UK) LTD,29/5/2023 00:00:00,25/6/2023 00:00:00,P03-2024
,LV LEISURE CENTRE GOLF COURSE,SUPPLIES AND SERVICES,CASH COLLECTIONS,4642,G4S CASH SOLUTIONS (UK) LTD,19/6/2023 00:00:00,264923,-39,G40445,G4S CASH SOLUTIONS (UK) LTD,29/5/2023 00:00:00,25/6/2023 00:00:00,P03-2024
,LV LEISURE CENTRE GOLF COURSE,SUPPLIES AND SERVICES,CASH COLLECTIONS,4642,"P122337-SERVICE-Edmonton campsite 3,10,17,24 & 31/5/23",23/6/2023 00:00:00,274700,62.15,SE0692,SECURITY PLUS LTD,29/5/2023 00:00:00,25/6/2023 00:00:00,P03-2024
R&B,FINANCE & RESOURCES MANAGEMENT,SUPPLIES AND SERVICES,DEBT RECOVERY FEES,4646,P121343-SERVICE-DEBT RECOVERY FEES 2023/2024,21/6/2023 00:00:00,275025,145.9,LE0069,LEGAL RECOVERIES AND COLLECTIONS LIMITED,29/5/2023 00:00:00,25/6/2023 00:00:00,P03-2024
,LEE VALLEY MARINA STANSTEAD,SUPPLIES AND SERVICES,SECURITY,4650,P122271-SERVICE-instal and program new key fob,14/6/2023 00:00:00,271098,365.42,CH0088,CHUBB FIRE & SECURITY,29/5/2023 00:00:00,25/6/2023 00:00:00,P03-2024
,LEE VALLEY MARINA STANSTEAD,SUPPLIES AND SERVICES,SECURITY,4650,P122271-SERVICE-instal and program new key fob,14/6/2023 00:00:00,274714,-148.3,CH0088,CHUBB FIRE & SECURITY,29/5/2023 00:00:00,25/6/2023 00:00:00,P03-2024
P&V,NORTH AREA RANGERS,SUPPLIES AND SERVICES,SECURITY,4650,P122126-SERVICE-Security - North of Park,06/07/2023 00:00,274128,5806.59,PA0059,PARKGUARD LTD,29/5/2023 00:00:00,25/6/2023 00:00:00,P03-2024
P&V,SOUTH AREA RANGERS,SUPPLIES AND SERVICES,SECURITY,4650,P122127-SERVICE-Security - South of Park,06/07/2023 00:00,274129,9168.76,PA0059,PARKGUARD LTD,29/5/2023 00:00:00,25/6/2023 00:00:00,P03-2024
CEO,LVLC SERVICE CHARGE,SUPPLIES AND SERVICES,SECURITY,4650,P122188-SERVICE-April Security,20/6/2023 00:00:00,274537,815.04,SA0626,SAFE SITE SECURITY SOLUTIONS LTD,29/5/2023 00:00:00,25/6/2023 00:00:00,P03-2024
CEO,LVLC SERVICE CHARGE,SUPPLIES AND SERVICES,SECURITY,4650,P121975-SERVICE-Security,21/6/2023 00:00:00,274598,1118,PA0059,PARKGUARD LTD,29/5/2023 00:00:00,25/6/2023 00:00:00,P03-2024
P&V,GUNPOWDER PARK,SUPPLIES AND SERVICES,UNAUTHORISED INCURSIONS,4651,P122388-SERVICE-Traveller Eviction - Gunpowder Park,25/6/2023 00:00:00,275204,3350,GR0236,G R C BAILIFFS,29/5/2023 00:00:00,25/6/2023 00:00:00,P03-2024
CEO,PR/COMMUNICATIONS,SUPPLIES AND SERVICES,ARTWORK,4664,P121790-SERVICE-Where to watch wildlife brochure amends,19/6/2023 00:00:00,274790,100,TO0631,TOP FLOOR CREATIVE,29/5/2023 00:00:00,25/6/2023 00:00:00,P03-2024
R&B,PERFORMANCE MANAGEMENT,SUPPLIES AND SERVICES,OFFSITE ARCHIVED STORAGE,4667,P122275-SERVICE-Confidential Shredding,20/6/2023 00:00:00,274488,84,CS0287,CURTIS SECURITY SHREDDING LTD,29/5/2023 00:00:00,25/6/2023 00:00:00,P03-2024
R&B,PERFORMANCE MANAGEMENT,SUPPLIES AND SERVICES,OFFSITE ARCHIVED STORAGE,4667,P122338-SERVICE-Off Site storage May 2023,23/6/2023 00:00:00,274565,491.94,DA0154,RESTORE PLC,29/5/2023 00:00:00,25/6/2023 00:00:00,P03-2024
P&V,MYDDELTON HOUSE,SUPPLIES AND SERVICES,ENTERTAINMENT & OTHER LICENCES,4711,P122152-SERVICE-Myddelton House TV License,06/05/2023 00:00,274484,159,TV0065,TV LICENSING,29/5/2023 00:00:00,25/6/2023 00:00:00,P03-2024
P&V,LEE VALLEY FARM HOLYFIELDHALL,THIRD PARTY PAYMENTS,VETERINARY SERVICES,4718,P122292-SERVICE-Vets,19/6/2023 00:00:00,274708,355.29,HA0443,HAMPDEN VETERINARY HOSPITAL,29/5/2023 00:00:00,25/6/2023 00:00:00,P03-2024
P&V,YOUTH AND SCHOOLS,SUPPLIES AND SERVICES,ACTIVITIES (SCHOOLS),4725,P122014-SERVICE- 20 Pairs Briers kid rigger gardening gloves,20/6/2023 00:00:00,274228,119.6,SA0647,SAFETY GLOVES.CO.UK,29/5/2023 00:00:00,25/6/2023 00:00:00,P03-2024
P&V,YOUTH AND SCHOOLS,SUPPLIES AND SERVICES,ACTIVITIES (SCHOOLS),4725,P121249-SERVICE-10 x opticron taiga 8x25 Binoculars,14/6/2023 00:00:00,274527,742.5,IN0067,IN FOCUS,29/5/2023 00:00:00,25/6/2023 00:00:00,P03-2024
P&V,MYDDLETON HSE HERITAGE CENTRE,SUPPLIES AND SERVICES,CATERING PURCHASES (CORPORATE),4772,BTR-food & drinks,13/6/2023 00:00:00,274344,119.51,360001,BIDFOOD,29/5/2023 00:00:00,25/6/2023 00:00:00,P03-2024
P&V,MYDDLETON HSE HERITAGE CENTRE,SUPPLIES AND SERVICES,CATERING PURCHASES (CORPORATE),4772,BTR-food & drinks,13/6/2023 00:00:00,274344,-265.74,360001,BIDFOOD,29/5/2023 00:00:00,25/6/2023 00:00:00,P03-2024
P&V,MYDDLETON HSE HERITAGE CENTRE,SUPPLIES AND SERVICES,CATERING PURCHASES (CORPORATE),4772,BTR-food & drinks,13/6/2023 00:00:00,274344,146.23,360001,BIDFOOD,29/5/2023 00:00:00,25/6/2023 00:00:00,P03-2024
P&V,MYDDLETON HSE HERITAGE CENTRE,SUPPLIES AND SERVICES,CATERING PURCHASES (CORPORATE),4772,P122095-SERVICE-Food & Drink,13/6/2023 00:00:00,274344,265.74,360001,BIDFOOD,29/5/2023 00:00:00,25/6/2023 00:00:00,P03-2024
P&V,MYDDLETON HSE HERITAGE CENTRE,SUPPLIES AND SERVICES,CATERING PURCHASES (CORPORATE),4772,BTR-food & drinks,13/6/2023 00:00:00,274345,139.18,360001,BIDFOOD,29/5/2023 00:00:00,25/6/2023 00:00:00,P03-2024
P&V,MYDDLETON HSE HERITAGE CENTRE,SUPPLIES AND SERVICES,CATERING PURCHASES (CORPORATE),4772,BTR-food & drinks,13/6/2023 00:00:00,274345,-150.73,360001,BIDFOOD,29/5/2023 00:00:00,25/6/2023 00:00:00,P03-2024
P&V,MYDDLETON HSE HERITAGE CENTRE,SUPPLIES AND SERVICES,CATERING PURCHASES (CORPORATE),4772,P122095-SERVICE-Food & Drink,13/6/2023 00:00:00,274345,150.73,360001,BIDFOOD,29/5/2023 00:00:00,25/6/2023 00:00:00,P03-2024
P&V,MYDDLETON HSE HERITAGE CENTRE,SUPPLIES AND SERVICES,CATERING PURCHASES (CORPORATE),4772,BTR-food & drinks,13/6/2023 00:00:00,274345,11.55,360001,BIDFOOD,29/5/2023 00:00:00,25/6/2023 00:00:00,P03-2024
P&V,MYDDLETON HSE HERITAGE CENTRE,SUPPLIES AND SERVICES,CATERING PURCHASES (CORPORATE),4772,P122095-SERVICE-Food & Drink,13/6/2023 00:00:00,274393,120,360001,BIDFOOD,29/5/2023 00:00:00,25/6/2023 00:00:00,P03-2024
P&V,MYDDLETON HSE HERITAGE CENTRE,SUPPLIES AND SERVICES,CATERING PURCHASES (CORPORATE),4772,BTR-food & drinks,13/6/2023 00:00:00,274393,-120,360001,BIDFOOD,29/5/2023 00:00:00,25/6/2023 00:00:00,P03-2024
P&V,MYDDLETON HSE HERITAGE CENTRE,SUPPLIES AND SERVICES,CATERING PURCHASES (CORPORATE),4772,BTR-food & drinks,13/6/2023 00:00:00,274393,96.02,360001,BIDFOOD,29/5/2023 00:00:00,25/6/2023 00:00:00,P03-2024
P&V,MYDDLETON HSE HERITAGE CENTRE,SUPPLIES AND SERVICES,CATERING PURCHASES (CORPORATE),4772,BTR-food & drinks,13/6/2023 00:00:00,274393,23.98,360001,BIDFOOD,29/5/2023 00:00:00,25/6/2023 00:00:00,P03-2024
P&V,MYDDLETON HSE HERITAGE CENTRE,SUPPLIES AND SERVICES,CATERING PURCHASES (CORPORATE),4772,P122095-SERVICE-Food & Drink,13/6/2023 00:00:00,274546,-34.78,360001,BIDFOOD,29/5/2023 00:00:00,25/6/2023 00:00:00,P03-2024
P&V,MYDDLETON HSE HERITAGE CENTRE,SUPPLIES AND SERVICES,CATERING PURCHASES (CORPORATE),4772,P122095-SERVICE-Food & Drink,13/6/2023 00:00:00,274547,498.31,360001,BIDFOOD,29/5/2023 00:00:00,25/6/2023 00:00:00,P03-2024
P&V,MYDDLETON HSE HERITAGE CENTRE,SUPPLIES AND SERVICES,NET CATERING PURCHASES,4777,P122044-SERVICE-Food & Drink order wk com 22 May 2023,13/6/2023 00:00:00,274345,688.6,360001,BIDFOOD,29/5/2023 00:00:00,25/6/2023 00:00:00,P03-2024
P&V,MYDDLETON HSE HERITAGE CENTRE,SUPPLIES AND SERVICES,NET CATERING PURCHASES,4777,BTR-food/drinks,13/6/2023 00:00:00,274547,44.57,360001,BIDFOOD,29/5/2023 00:00:00,25/6/2023 00:00:00,P03-2024
P&V,MYDDLETON HSE HERITAGE CENTRE,SUPPLIES AND SERVICES,NET CATERING PURCHASES,4777,BTR-food/drinks,13/6/2023 00:00:00,274547,-144.29,360001,BIDFOOD,29/5/2023 00:00:00,25/6/2023 00:00:00,P03-2024
P&V,MYDDLETON HSE HERITAGE CENTRE,SUPPLIES AND SERVICES,NET CATERING PURCHASES,4777,P122241-SERVICE-food/drink order june 23,13/6/2023 00:00:00,274547,144.29,360001,BIDFOOD,29/5/2023 00:00:00,25/6/2023 00:00:00,P03-2024
P&V,MYDDLETON HSE HERITAGE CENTRE,SUPPLIES AND SERVICES,NET CATERING PURCHASES,4777,BTR-food/drinks,13/6/2023 00:00:00,274547,99.72,360001,BIDFOOD,29/5/2023 00:00:00,25/6/2023 00:00:00,P03-2024
P&V,MYDDLETON HSE HERITAGE CENTRE,SUPPLIES AND SERVICES,NET CATERING PURCHASES,4777,P122027-SERVICE-Coffee & Puly cleaner order week com 22 May 2,13/6/2023 00:00:00,274577,215.7,TU0194,TUDOR TEA & COFFEE,29/5/2023 00:00:00,25/6/2023 00:00:00,P03-2024
P&V,MYDDLETON HSE HERITAGE CENTRE,SUPPLIES AND SERVICES,NET CATERING PURCHASES,4777,BTR-coffee supply,13/6/2023 00:00:00,274577,-215.7,TU0194,TUDOR TEA & COFFEE,29/5/2023 00:00:00,25/6/2023 00:00:00,P03-2024
P&V,MYDDLETON HSE HERITAGE CENTRE,SUPPLIES AND SERVICES,NET CATERING PURCHASES,4777,BTR-coffee supply,13/6/2023 00:00:00,274577,138,TU0194,TUDOR TEA & COFFEE,29/5/2023 00:00:00,25/6/2023 00:00:00,P03-2024
P&V,MYDDLETON HSE HERITAGE CENTRE,SUPPLIES AND SERVICES,NET CATERING PURCHASES,4777,BTR-coffee supply,13/6/2023 00:00:00,274577,77.7,TU0194,TUDOR TEA & COFFEE,29/5/2023 00:00:00,25/6/2023 00:00:00,P03-2024
P&V,MYDDLETON HSE HERITAGE CENTRE,SUPPLIES AND SERVICES,NET CATERING PURCHASES,4777,P121783-SERVICE-Coffee order weeek com 01 May 2023,13/6/2023 00:00:00,274578,138,TU0194,TUDOR TEA & COFFEE,29/5/2023 00:00:00,25/6/2023 00:00:00,P03-2024
P&V,MYDDLETON HSE HERITAGE CENTRE,SUPPLIES AND SERVICES,NET CATERING PURCHASES,4777,BTR-food/drinks,13/6/2023 00:00:00,274684,-318.96,360001,BIDFOOD,29/5/2023 00:00:00,25/6/2023 00:00:00,P03-2024
P&V,MYDDLETON HSE HERITAGE CENTRE,SUPPLIES AND SERVICES,NET CATERING PURCHASES,4777,P122241-SERVICE-food/drink order june 23,13/6/2023 00:00:00,274684,318.96,360001,BIDFOOD,29/5/2023 00:00:00,25/6/2023 00:00:00,P03-2024
P&V,MYDDLETON HSE HERITAGE CENTRE,SUPPLIES AND SERVICES,NET CATERING PURCHASES,4777,BTR-food/drinks,13/6/2023 00:00:00,274684,259.33,360001,BIDFOOD,29/5/2023 00:00:00,25/6/2023 00:00:00,P03-2024
P&V,MYDDLETON HSE HERITAGE CENTRE,SUPPLIES AND SERVICES,NET CATERING PURCHASES,4777,BTR-food/drinks,13/6/2023 00:00:00,274684,59.63,360001,BIDFOOD,29/5/2023 00:00:00,25/6/2023 00:00:00,P03-2024
P&V,MYDDLETON HSE HERITAGE CENTRE,SUPPLIES AND SERVICES,NET CATERING PURCHASES,4777,BTR-bread,20/6/2023 00:00:00,274718,8.55,FI0001,DIRECTOR OF FINANCE - CASH,29/5/2023 00:00:00,25/6/2023 00:00:00,P03-2024
P&V,MYDDLETON HSE HERITAGE CENTRE,SUPPLIES AND SERVICES,NET CATERING PURCHASES,4777,BTR-bread,20/6/2023 00:00:00,274718,6.05,FI0001,DIRECTOR OF FINANCE - CASH,29/5/2023 00:00:00,25/6/2023 00:00:00,P03-2024
P&V,MYDDLETON HSE HERITAGE CENTRE,SUPPLIES AND SERVICES,NET CATERING PURCHASES,4777,BTR-bread,20/6/2023 00:00:00,274718,2.3,FI0001,DIRECTOR OF FINANCE - CASH,29/5/2023 00:00:00,25/6/2023 00:00:00,P03-2024
P&V,MYDDLETON HSE HERITAGE CENTRE,SUPPLIES AND SERVICES,NET CATERING PURCHASES,4777,BTR-bread,20/6/2023 00:00:00,274718,2.75,FI0001,DIRECTOR OF FINANCE - CASH,29/5/2023 00:00:00,25/6/2023 00:00:00,P03-2024
P&V,MYDDLETON HSE HERITAGE CENTRE,SUPPLIES AND SERVICES,NET CATERING PURCHASES,4777,BIDFOOD,14/6/2023 00:00:00,274733,92.52,360001,BIDFOOD,29/5/2023 00:00:00,25/6/2023 00:00:00,P03-2024
P&V,MYDDLETON HSE HERITAGE CENTRE,SUPPLIES AND SERVICES,NET CATERING PURCHASES,4777,P122205-SERVICE-Food/drink 05/06/2023,14/6/2023 00:00:00,274733,430.57,360001,BIDFOOD,29/5/2023 00:00:00,25/6/2023 00:00:00,P03-2024
P&V,MYDDLETON HSE HERITAGE CENTRE,SUPPLIES AND SERVICES,NET CATERING PURCHASES,4777,P122241-SERVICE-food/drink order june 23,14/6/2023 00:00:00,274733,536.75,360001,BIDFOOD,29/5/2023 00:00:00,25/6/2023 00:00:00,P03-2024
P&V,MYDDLETON HSE HERITAGE CENTRE,SUPPLIES AND SERVICES,NET CATERING PURCHASES,4777,BIDFOOD,14/6/2023 00:00:00,274733,-430.57,360001,BIDFOOD,29/5/2023 00:00:00,25/6/2023 00:00:00,P03-2024
P&V,MYDDLETON HSE HERITAGE CENTRE,SUPPLIES AND SERVICES,NET CATERING PURCHASES,4777,BIDFOOD,14/6/2023 00:00:00,274733,338.05,360001,BIDFOOD,29/5/2023 00:00:00,25/6/2023 00:00:00,P03-2024
P&V,MYDDLETON HSE HERITAGE CENTRE,SUPPLIES AND SERVICES,NET CATERING PURCHASES,4777,P122205-SERVICE-Food/drink 05/06/2023,19/6/2023 00:00:00,274791,-13.85,360001,BIDFOOD,29/5/2023 00:00:00,25/6/2023 00:00:00,P03-2024
P&V,MYDDLETON HSE HERITAGE CENTRE,SUPPLIES AND SERVICES,NET CATERING PURCHASES,4777,P122303-SERVICE-Food/Drink order week com 12 Jun 2023,19/6/2023 00:00:00,274809,112.31,360001,BIDFOOD,29/5/2023 00:00:00,25/6/2023 00:00:00,P03-2024
P&V,MYDDLETON HSE HERITAGE CENTRE,SUPPLIES AND SERVICES,NET CATERING PURCHASES,4777,BIDFOOD,19/6/2023 00:00:00,274809,532.5,360001,BIDFOOD,29/5/2023 00:00:00,25/6/2023 00:00:00,P03-2024
P&V,MYDDLETON HSE HERITAGE CENTRE,SUPPLIES AND SERVICES,NET CATERING PURCHASES,4777,BIDFOOD,19/6/2023 00:00:00,274809,-583.28,360001,BIDFOOD,29/5/2023 00:00:00,25/6/2023 00:00:00,P03-2024
P&V,MYDDLETON HSE HERITAGE CENTRE,SUPPLIES AND SERVICES,NET CATERING PURCHASES,4777,P122205-SERVICE-Food/drink 05/06/2023,19/6/2023 00:00:00,274809,583.28,360001,BIDFOOD,29/5/2023 00:00:00,25/6/2023 00:00:00,P03-2024
P&V,MYDDLETON HSE HERITAGE CENTRE,SUPPLIES AND SERVICES,NET CATERING PURCHASES,4777,BIDFOOD,19/6/2023 00:00:00,274809,50.78,360001,BIDFOOD,29/5/2023 00:00:00,25/6/2023 00:00:00,P03-2024
,LEE VALLEY MARINA SPRINGFIELD,SUPPLIES AND SERVICES,TRADING AC - EXTERNAL PURCHASE,4875,P122113-SERVICE-Chandlery Stock,06/05/2023 00:00,274445,245.41,AQ0033,AQUAFAX LIMITED,29/5/2023 00:00:00,25/6/2023 00:00:00,P03-2024
,LEE VALLEY MARINA SPRINGFIELD,SUPPLIES AND SERVICES,TRADING AC - EXTERNAL PURCHASE,4875,P122113-SERVICE-Chandlery Stock,06/05/2023 00:00,274446,19.38,AQ0033,AQUAFAX LIMITED,29/5/2023 00:00:00,25/6/2023 00:00:00,P03-2024
,LEE VALLEY MARINA SPRINGFIELD,SUPPLIES AND SERVICES,TRADING AC - EXTERNAL PURCHASE,4875,Springifeld-grinding disc,06/05/2023 00:00,274463,-339.56,EL0281,ELTHAM WELDING SUPPLIES LIMITED,29/5/2023 00:00:00,25/6/2023 00:00:00,P03-2024
,LEE VALLEY MARINA SPRINGFIELD,SUPPLIES AND SERVICES,TRADING AC - EXTERNAL PURCHASE,4875,Springifeld-grinding disc,06/05/2023 00:00,274463,135,EL0281,ELTHAM WELDING SUPPLIES LIMITED,29/5/2023 00:00:00,25/6/2023 00:00:00,P03-2024
,LEE VALLEY MARINA SPRINGFIELD,SUPPLIES AND SERVICES,TRADING AC - EXTERNAL PURCHASE,4875,P122117-SERVICE-Adams Argon 50 Ltr Cylinder 200 Bar Gas & Dep,06/05/2023 00:00,274463,339.56,EL0281,ELTHAM WELDING SUPPLIES LIMITED,29/5/2023 00:00:00,25/6/2023 00:00:00,P03-2024
,LEE VALLEY MARINA SPRINGFIELD,SUPPLIES AND SERVICES,TRADING AC - EXTERNAL PURCHASE,4875,Springifeld-grinding disc,06/05/2023 00:00,274463,204.56,EL0281,ELTHAM WELDING SUPPLIES LIMITED,29/5/2023 00:00:00,25/6/2023 00:00:00,P03-2024
,LEE VALLEY MARINA SPRINGFIELD,SUPPLIES AND SERVICES,TRADING AC - EXTERNAL PURCHASE,4875,P122129-SERVICE-Electrical and plumbing items,06/07/2023 00:00,274489,277.71,AS0036,ASAP SUPPLIES,29/5/2023 00:00:00,25/6/2023 00:00:00,P03-2024
,LEE VALLEY MARINA SPRINGFIELD,SUPPLIES AND SERVICES,TRADING AC - EXTERNAL PURCHASE,4875,P122109-SERVICE-Chandlery Stock,06/07/2023 00:00,274507,18.9,MI0200,MIDLAND CHANDLERS LIMITED,29/5/2023 00:00:00,25/6/2023 00:00:00,P03-2024
,LEE VALLEY MARINA SPRINGFIELD,SUPPLIES AND SERVICES,TRADING AC - EXTERNAL PURCHASE,4875,P122109-SERVICE-Chandlery Stock,06/07/2023 00:00,274508,599.6,MI0200,MIDLAND CHANDLERS LIMITED,29/5/2023 00:00:00,25/6/2023 00:00:00,P03-2024
,LEE VALLEY MARINA SPRINGFIELD,SUPPLIES AND SERVICES,TRADING AC - EXTERNAL PURCHASE,4875,P122109-SERVICE-Chandlery Stock,13/6/2023 00:00:00,274568,3.78,MI0200,MIDLAND CHANDLERS LIMITED,29/5/2023 00:00:00,25/6/2023 00:00:00,P03-2024
,LEE VALLEY MARINA SPRINGFIELD,SUPPLIES AND SERVICES,TRADING AC - EXTERNAL PURCHASE,4875,Springfield-Chandlery stock-water pumps,13/6/2023 00:00:00,274591,1036.47,MI0200,MIDLAND CHANDLERS LIMITED,29/5/2023 00:00:00,25/6/2023 00:00:00,P03-2024
,LEE VALLEY MARINA SPRINGFIELD,SUPPLIES AND SERVICES,TRADING AC - EXTERNAL PURCHASE,4875,Springfield-Chandlery stock-water pumps,13/6/2023 00:00:00,274591,27.44,MI0200,MIDLAND CHANDLERS LIMITED,29/5/2023 00:00:00,25/6/2023 00:00:00,P03-2024
,LEE VALLEY MARINA SPRINGFIELD,SUPPLIES AND SERVICES,TRADING AC - EXTERNAL PURCHASE,4875,Springfield-Chandlery stock-water pumps,13/6/2023 00:00:00,274591,-1063.91,MI0200,MIDLAND CHANDLERS LIMITED,29/5/2023 00:00:00,25/6/2023 00:00:00,P03-2024
,LEE VALLEY MARINA SPRINGFIELD,SUPPLIES AND SERVICES,TRADING AC - EXTERNAL PURCHASE,4875,P122155-SERVICE-Chandlery Stock - water pumps and stock,13/6/2023 00:00:00,274591,1063.91,MI0200,MIDLAND CHANDLERS LIMITED,29/5/2023 00:00:00,25/6/2023 00:00:00,P03-2024
,LEE VALLEY MARINA SPRINGFIELD,SUPPLIES AND SERVICES,TRADING AC - EXTERNAL PURCHASE,4875,P122208-SERVICE-Tercoo Blasters,13/6/2023 00:00:00,274725,529.5,ME0484,MERIDIAN ZERO DISTRIBUTION LIMITED,29/5/2023 00:00:00,25/6/2023 00:00:00,P03-2024
,LEE VALLEY MARINA SPRINGFIELD,SUPPLIES AND SERVICES,TRADING AC - EXTERNAL PURCHASE,4875,P121952-SERVICE-Paint for customer,20/6/2023 00:00:00,274730,47.69,MI0200,MIDLAND CHANDLERS LIMITED,29/5/2023 00:00:00,25/6/2023 00:00:00,P03-2024
,LEE VALLEY MARINA SPRINGFIELD,SUPPLIES AND SERVICES,TRADING AC - EXTERNAL PURCHASE,4875,P122121-SERVICE-Gas order,13/6/2023 00:00:00,274747,864.75,SM0664,KG SMITH & SON,29/5/2023 00:00:00,25/6/2023 00:00:00,P03-2024
,LEE VALLEY MARINA SPRINGFIELD,SUPPLIES AND SERVICES,TRADING AC - EXTERNAL PURCHASE,4875,P122277-SERVICE-Paint order for customer,23/6/2023 00:00:00,274925,173.72,CR0651,CRAFTMASTER PAINTS,29/5/2023 00:00:00,25/6/2023 00:00:00,P03-2024
,LEE VALLEY MARINA SPRINGFIELD,SUPPLIES AND SERVICES,TRADING AC - EXTERNAL PURCHASE,4875,P122125-SERVICE-Painting supplies and tools,19/6/2023 00:00:00,274936,294.74,CE0510,CENTURION EUROPE LIMITED,29/5/2023 00:00:00,25/6/2023 00:00:00,P03-2024
,LEE VALLEY MARINA SPRINGFIELD,SUPPLIES AND SERVICES,TRADING AC - EXTERNAL PURCHASE,4875,P121952-SERVICE-Paint for customer,20/6/2023 00:00:00,274984,-47.69,MI0200,MIDLAND CHANDLERS LIMITED,29/5/2023 00:00:00,25/6/2023 00:00:00,P03-2024
,LEE VALLEY MARINA SPRINGFIELD,SUPPLIES AND SERVICES,TRADING AC - EXTERNAL PURCHASE,4875,P121890-SERVICE-Fridge for customer,23/6/2023 00:00:00,275138,464.85,MI0200,MIDLAND CHANDLERS LIMITED,29/5/2023 00:00:00,25/6/2023 00:00:00,P03-2024
,LEE VALLEY MARINA SPRINGFIELD,SUPPLIES AND SERVICES,TRADING AC - EXTERNAL PURCHASE,4875,P122356-SERVICE-Plumbing and fenders,23/6/2023 00:00:00,275149,386.02,AQ0033,AQUAFAX LIMITED,29/5/2023 00:00:00,25/6/2023 00:00:00,P03-2024
,LEE VALLEY MARINA SPRINGFIELD,SUPPLIES AND SERVICES,TRADING AC - EXTERNAL PURCHASE,4875,P122369-SERVICE-Customer orders,23/6/2023 00:00:00,275151,269.26,MI0200,MIDLAND CHANDLERS LIMITED,29/5/2023 00:00:00,25/6/2023 00:00:00,P03-2024
,LEE VALLEY MARINA SPRINGFIELD,SUPPLIES AND SERVICES,TRADING AC - EXTERNAL PURCHASE,4875,P122178-SERVICE-Paint for shop,23/6/2023 00:00:00,275153,1087.4,CR0651,CRAFTMASTER PAINTS,29/5/2023 00:00:00,25/6/2023 00:00:00,P03-2024
,LEE VALLEY MARINA SPRINGFIELD,SUPPLIES AND SERVICES,TRADING AC - EXTERNAL PURCHASE,4875,P122250-SERVICE-Hull blacking paint,23/6/2023 00:00:00,275154,2383.2,SM0658,SML PAINTS AND COATINGS,29/5/2023 00:00:00,25/6/2023 00:00:00,P03-2024
,LEE VALLEY MARINA SPRINGFIELD,SUPPLIES AND SERVICES,TRADING AC - EXTERNAL PURCHASE,4875,"P122328-SERVICE-Diesel 9,000 litres @ .7220 per litre",23/6/2023 00:00:00,275161,6498,SP0543,SPEEDY FUELS LIMITED,29/5/2023 00:00:00,25/6/2023 00:00:00,P03-2024
,SPRINGFIELD RECHARGEABLE WORKS,SUPPLIES AND SERVICES,TRADING AC - EXTERNAL PURCHASE,4875,P121807-SERVICE-To provide insurance @ 15%,13/6/2023 00:00:00,274694,210,BA0339,BALDWINS CRANE HIRE LTD,29/5/2023 00:00:00,25/6/2023 00:00:00,P03-2024
,SPRINGFIELD RECHARGEABLE WORKS,SUPPLIES AND SERVICES,TRADING AC - EXTERNAL PURCHASE,4875,P121807-SERVICE-To hire 110 ton Crane on 30-05-2023,13/6/2023 00:00:00,274694,1400,BA0339,BALDWINS CRANE HIRE LTD,29/5/2023 00:00:00,25/6/2023 00:00:00,P03-2024
,STANSTEAD RECHARGEABLE WORKS,SUPPLIES AND SERVICES,TRADING AC - EXTERNAL PURCHASE,4875,P122041-SERVICE-paint,06/05/2023 00:00,273951,393.63,CR0651,CRAFTMASTER PAINTS,29/5/2023 00:00:00,25/6/2023 00:00:00,P03-2024
,STANSTEAD RECHARGEABLE WORKS,SUPPLIES AND SERVICES,TRADING AC - EXTERNAL PURCHASE,4875,P121735-SERVICE-additional amount for invoice,06/05/2023 00:00,274003,18.36,MI0200,MIDLAND CHANDLERS LIMITED,29/5/2023 00:00:00,25/6/2023 00:00:00,P03-2024
,STANSTEAD RECHARGEABLE WORKS,SUPPLIES AND SERVICES,TRADING AC - EXTERNAL PURCHASE,4875,P121963-SERVICE-chandlery stock,06/05/2023 00:00,274136,9.27,MI0200,MIDLAND CHANDLERS LIMITED,29/5/2023 00:00:00,25/6/2023 00:00:00,P03-2024
,STANSTEAD RECHARGEABLE WORKS,SUPPLIES AND SERVICES,TRADING AC - EXTERNAL PURCHASE,4875,P121963-SERVICE-chandlery stock,06/05/2023 00:00,274136,106.06,MI0200,MIDLAND CHANDLERS LIMITED,29/5/2023 00:00:00,25/6/2023 00:00:00,P03-2024
,STANSTEAD RECHARGEABLE WORKS,SUPPLIES AND SERVICES,TRADING AC - EXTERNAL PURCHASE,4875,P121963-SERVICE-extra to cover invoice,06/07/2023 00:00,274192,28.5,MI0200,MIDLAND CHANDLERS LIMITED,29/5/2023 00:00:00,25/6/2023 00:00:00,P03-2024
,STANSTEAD RECHARGEABLE WORKS,SUPPLIES AND SERVICES,TRADING AC - EXTERNAL PURCHASE,4875,P122161-SERVICE-blue,06/07/2023 00:00,274211,11.19,MI0200,MIDLAND CHANDLERS LIMITED,29/5/2023 00:00:00,25/6/2023 00:00:00,P03-2024
,STANSTEAD RECHARGEABLE WORKS,SUPPLIES AND SERVICES,TRADING AC - EXTERNAL PURCHASE,4875,P122068-SERVICE-chandlery stock,06/05/2023 00:00,274362,484.09,AQ0033,AQUAFAX LIMITED,29/5/2023 00:00:00,25/6/2023 00:00:00,P03-2024
,STANSTEAD RECHARGEABLE WORKS,SUPPLIES AND SERVICES,TRADING AC - EXTERNAL PURCHASE,4875,P122019-SERVICE-chandlery stock,06/05/2023 00:00,274378,16.98,MI0200,MIDLAND CHANDLERS LIMITED,29/5/2023 00:00:00,25/6/2023 00:00:00,P03-2024
,STANSTEAD RECHARGEABLE WORKS,SUPPLIES AND SERVICES,TRADING AC - EXTERNAL PURCHASE,4875,P122068-SERVICE-chandlery stock,06/05/2023 00:00,274447,6.36,AQ0033,AQUAFAX LIMITED,29/5/2023 00:00:00,25/6/2023 00:00:00,P03-2024
,STANSTEAD RECHARGEABLE WORKS,SUPPLIES AND SERVICES,TRADING AC - EXTERNAL PURCHASE,4875,P122097-SERVICE-ASAP Chandlery items,06/05/2023 00:00,274448,6.16,AS0036,ASAP SUPPLIES,29/5/2023 00:00:00,25/6/2023 00:00:00,P03-2024
,STANSTEAD RECHARGEABLE WORKS,SUPPLIES AND SERVICES,TRADING AC - EXTERNAL PURCHASE,4875,P122097-SERVICE-ASAP Chandlery items,06/05/2023 00:00,274449,67.49,AS0036,ASAP SUPPLIES,29/5/2023 00:00:00,25/6/2023 00:00:00,P03-2024
,STANSTEAD RECHARGEABLE WORKS,SUPPLIES AND SERVICES,TRADING AC - EXTERNAL PURCHASE,4875,P122097-SERVICE-ASAP Chandlery items,14/6/2023 00:00:00,274450,35.72,AS0036,ASAP SUPPLIES,29/5/2023 00:00:00,25/6/2023 00:00:00,P03-2024
,STANSTEAD RECHARGEABLE WORKS,SUPPLIES AND SERVICES,TRADING AC - EXTERNAL PURCHASE,4875,P122097-SERVICE-extra for invoice,14/6/2023 00:00:00,274450,31.77,AS0036,ASAP SUPPLIES,29/5/2023 00:00:00,25/6/2023 00:00:00,P03-2024
,STANSTEAD RECHARGEABLE WORKS,SUPPLIES AND SERVICES,TRADING AC - EXTERNAL PURCHASE,4875,P122096-SERVICE-chandlery stock,06/07/2023 00:00,274490,147.34,CE0510,CENTURION EUROPE LIMITED,29/5/2023 00:00:00,25/6/2023 00:00:00,P03-2024
,STANSTEAD RECHARGEABLE WORKS,SUPPLIES AND SERVICES,TRADING AC - EXTERNAL PURCHASE,4875,"Stanstead-gas, logs & coal",13/6/2023 00:00:00,274532,-2898.5,SM0664,KG SMITH & SON,29/5/2023 00:00:00,25/6/2023 00:00:00,P03-2024
,STANSTEAD RECHARGEABLE WORKS,SUPPLIES AND SERVICES,TRADING AC - EXTERNAL PURCHASE,4875,"Stanstead-gas, logs & coal",13/6/2023 00:00:00,274532,840.5,SM0664,KG SMITH & SON,29/5/2023 00:00:00,25/6/2023 00:00:00,P03-2024
,STANSTEAD RECHARGEABLE WORKS,SUPPLIES AND SERVICES,TRADING AC - EXTERNAL PURCHASE,4875,"P121729-SERVICE-gas, logs & coal",13/6/2023 00:00:00,274532,2898.5,SM0664,KG SMITH & SON,29/5/2023 00:00:00,25/6/2023 00:00:00,P03-2024
,STANSTEAD RECHARGEABLE WORKS,SUPPLIES AND SERVICES,TRADING AC - EXTERNAL PURCHASE,4875,P121729-SERVICE-extra amount to cover invoice,13/6/2023 00:00:00,274532,20,SM0664,KG SMITH & SON,29/5/2023 00:00:00,25/6/2023 00:00:00,P03-2024
,STANSTEAD RECHARGEABLE WORKS,SUPPLIES AND SERVICES,TRADING AC - EXTERNAL PURCHASE,4875,"Stanstead-gas, logs & coal",13/6/2023 00:00:00,274532,2058,SM0664,KG SMITH & SON,29/5/2023 00:00:00,25/6/2023 00:00:00,P03-2024
,STANSTEAD RECHARGEABLE WORKS,SUPPLIES AND SERVICES,TRADING AC - EXTERNAL PURCHASE,4875,P122107-SERVICE-diesel,13/6/2023 00:00:00,274563,1459.26,SP0543,SPEEDY FUELS LIMITED,29/5/2023 00:00:00,25/6/2023 00:00:00,P03-2024
,STANSTEAD RECHARGEABLE WORKS,SUPPLIES AND SERVICES,TRADING AC - EXTERNAL PURCHASE,4875,P122163-SERVICE-paint,13/6/2023 00:00:00,274587,626.48,CR0651,CRAFTMASTER PAINTS,29/5/2023 00:00:00,25/6/2023 00:00:00,P03-2024
,STANSTEAD RECHARGEABLE WORKS,SUPPLIES AND SERVICES,TRADING AC - EXTERNAL PURCHASE,4875,P121931-SERVICE-chandlery stock,13/6/2023 00:00:00,274588,-11.19,MI0200,MIDLAND CHANDLERS LIMITED,29/5/2023 00:00:00,25/6/2023 00:00:00,P03-2024
,STANSTEAD RECHARGEABLE WORKS,SUPPLIES AND SERVICES,TRADING AC - EXTERNAL PURCHASE,4875,P121946-SERVICE-gas,13/6/2023 00:00:00,274604,237.75,SM0664,KG SMITH & SON,29/5/2023 00:00:00,25/6/2023 00:00:00,P03-2024
,STANSTEAD RECHARGEABLE WORKS,SUPPLIES AND SERVICES,TRADING AC - EXTERNAL PURCHASE,4875,Stanstead- Propane,13/6/2023 00:00:00,274604,218.25,SM0664,KG SMITH & SON,29/5/2023 00:00:00,25/6/2023 00:00:00,P03-2024
,STANSTEAD RECHARGEABLE WORKS,SUPPLIES AND SERVICES,TRADING AC - EXTERNAL PURCHASE,4875,Stanstead- Propane,13/6/2023 00:00:00,274604,-237.75,SM0664,KG SMITH & SON,29/5/2023 00:00:00,25/6/2023 00:00:00,P03-2024
,STANSTEAD RECHARGEABLE WORKS,SUPPLIES AND SERVICES,TRADING AC - EXTERNAL PURCHASE,4875,Stanstead- Propane,13/6/2023 00:00:00,274604,19.5,SM0664,KG SMITH & SON,29/5/2023 00:00:00,25/6/2023 00:00:00,P03-2024
,STANSTEAD RECHARGEABLE WORKS,SUPPLIES AND SERVICES,TRADING AC - EXTERNAL PURCHASE,4875,P122068-SERVICE-chandlery stock,13/6/2023 00:00:00,274605,20.86,AQ0033,AQUAFAX LIMITED,29/5/2023 00:00:00,25/6/2023 00:00:00,P03-2024
,STANSTEAD RECHARGEABLE WORKS,SUPPLIES AND SERVICES,TRADING AC - EXTERNAL PURCHASE,4875,P122153-SERVICE-cooker,13/6/2023 00:00:00,274606,256.03,MI0200,MIDLAND CHANDLERS LIMITED,29/5/2023 00:00:00,25/6/2023 00:00:00,P03-2024
,STANSTEAD RECHARGEABLE WORKS,SUPPLIES AND SERVICES,TRADING AC - EXTERNAL PURCHASE,4875,P122130-SERVICE-Midland chandlery items,13/6/2023 00:00:00,274697,1166.12,MI0200,MIDLAND CHANDLERS LIMITED,29/5/2023 00:00:00,25/6/2023 00:00:00,P03-2024
,STANSTEAD RECHARGEABLE WORKS,SUPPLIES AND SERVICES,TRADING AC - EXTERNAL PURCHASE,4875,P122175-SERVICE-propellor,13/6/2023 00:00:00,274698,301.57,MI0200,MIDLAND CHANDLERS LIMITED,29/5/2023 00:00:00,25/6/2023 00:00:00,P03-2024
,STANSTEAD RECHARGEABLE WORKS,SUPPLIES AND SERVICES,TRADING AC - EXTERNAL PURCHASE,4875,P122169-SERVICE-ice creams & derinks,13/6/2023 00:00:00,274703,254.41,360001,BIDFOOD,29/5/2023 00:00:00,25/6/2023 00:00:00,P03-2024
,STANSTEAD RECHARGEABLE WORKS,SUPPLIES AND SERVICES,TRADING AC - EXTERNAL PURCHASE,4875,P122210-SERVICE-chandlery stock,13/6/2023 00:00:00,274729,20.1,MI0200,MIDLAND CHANDLERS LIMITED,29/5/2023 00:00:00,25/6/2023 00:00:00,P03-2024
,STANSTEAD RECHARGEABLE WORKS,SUPPLIES AND SERVICES,TRADING AC - EXTERNAL PURCHASE,4875,P122267-SERVICE-gulper,14/6/2023 00:00:00,274751,145.82,MI0200,MIDLAND CHANDLERS LIMITED,29/5/2023 00:00:00,25/6/2023 00:00:00,P03-2024
,STANSTEAD RECHARGEABLE WORKS,SUPPLIES AND SERVICES,TRADING AC - EXTERNAL PURCHASE,4875,P122268-SERVICE-morco terminal,14/6/2023 00:00:00,274752,49.46,MI0200,MIDLAND CHANDLERS LIMITED,29/5/2023 00:00:00,25/6/2023 00:00:00,P03-2024
,STANSTEAD RECHARGEABLE WORKS,SUPPLIES AND SERVICES,TRADING AC - EXTERNAL PURCHASE,4875,P122210-SERVICE-chandlery stock,25/6/2023 00:00:00,274760,576.44,MI0200,MIDLAND CHANDLERS LIMITED,29/5/2023 00:00:00,25/6/2023 00:00:00,P03-2024
,STANSTEAD RECHARGEABLE WORKS,SUPPLIES AND SERVICES,TRADING AC - EXTERNAL PURCHASE,4875,P122246-SERVICE-chandlery stock,25/6/2023 00:00:00,274771,8.75,AQ0033,AQUAFAX LIMITED,29/5/2023 00:00:00,25/6/2023 00:00:00,P03-2024
,STANSTEAD RECHARGEABLE WORKS,SUPPLIES AND SERVICES,TRADING AC - EXTERNAL PURCHASE,4875,P122229-SERVICE-customer order,25/6/2023 00:00:00,274787,104.8,MI0200,MIDLAND CHANDLERS LIMITED,29/5/2023 00:00:00,25/6/2023 00:00:00,P03-2024
,STANSTEAD RECHARGEABLE WORKS,SUPPLIES AND SERVICES,TRADING AC - EXTERNAL PURCHASE,4875,P122210-SERVICE-chandlery stock,25/6/2023 00:00:00,274788,26.46,MI0200,MIDLAND CHANDLERS LIMITED,29/5/2023 00:00:00,25/6/2023 00:00:00,P03-2024
,STANSTEAD RECHARGEABLE WORKS,SUPPLIES AND SERVICES,TRADING AC - EXTERNAL PURCHASE,4875,P122246-SERVICE-chandlery stock,25/6/2023 00:00:00,274810,499.94,AQ0033,AQUAFAX LIMITED,29/5/2023 00:00:00,25/6/2023 00:00:00,P03-2024
,STANSTEAD RECHARGEABLE WORKS,SUPPLIES AND SERVICES,TRADING AC - EXTERNAL PURCHASE,4875,P122247-SERVICE-chandlery stock,25/6/2023 00:00:00,274811,1361.8,MI0200,MIDLAND CHANDLERS LIMITED,29/5/2023 00:00:00,25/6/2023 00:00:00,P03-2024
,STANSTEAD RECHARGEABLE WORKS,SUPPLIES AND SERVICES,TRADING AC - EXTERNAL PURCHASE,4875,Stanstead-Chandlery stock,25/6/2023 00:00:00,274811,12.9,MI0200,MIDLAND CHANDLERS LIMITED,29/5/2023 00:00:00,25/6/2023 00:00:00,P03-2024
,STANSTEAD RECHARGEABLE WORKS,SUPPLIES AND SERVICES,TRADING AC - EXTERNAL PURCHASE,4875,Stanstead-Chandlery stock,25/6/2023 00:00:00,274811,-1361.8,MI0200,MIDLAND CHANDLERS LIMITED,29/5/2023 00:00:00,25/6/2023 00:00:00,P03-2024
,STANSTEAD RECHARGEABLE WORKS,SUPPLIES AND SERVICES,TRADING AC - EXTERNAL PURCHASE,4875,Stanstead-Chandlery stock,25/6/2023 00:00:00,274811,1348.9,MI0200,MIDLAND CHANDLERS LIMITED,29/5/2023 00:00:00,25/6/2023 00:00:00,P03-2024
,STANSTEAD RECHARGEABLE WORKS,SUPPLIES AND SERVICES,TRADING AC - EXTERNAL PURCHASE,4875,P122210-SERVICE-chandlery stock,25/6/2023 00:00:00,274822,47.69,MI0200,MIDLAND CHANDLERS LIMITED,29/5/2023 00:00:00,25/6/2023 00:00:00,P03-2024
,STANSTEAD RECHARGEABLE WORKS,SUPPLIES AND SERVICES,TRADING AC - EXTERNAL PURCHASE,4875,P122210-SERVICE-chandlery stock,25/6/2023 00:00:00,274824,46.31,MI0200,MIDLAND CHANDLERS LIMITED,29/5/2023 00:00:00,25/6/2023 00:00:00,P03-2024
,STANSTEAD RECHARGEABLE WORKS,SUPPLIES AND SERVICES,TRADING AC - EXTERNAL PURCHASE,4875,P122269-SERVICE-bearing,25/6/2023 00:00:00,274927,122.75,MI0200,MIDLAND CHANDLERS LIMITED,29/5/2023 00:00:00,25/6/2023 00:00:00,P03-2024
,STANSTEAD RECHARGEABLE WORKS,SUPPLIES AND SERVICES,TRADING AC - EXTERNAL PURCHASE,4875,P122247-SERVICE-chandlery stock,25/6/2023 00:00:00,274928,51.49,MI0200,MIDLAND CHANDLERS LIMITED,29/5/2023 00:00:00,25/6/2023 00:00:00,P03-2024
,STANSTEAD RECHARGEABLE WORKS,SUPPLIES AND SERVICES,TRADING AC - EXTERNAL PURCHASE,4875,P122284-SERVICE-chandlery stock,25/6/2023 00:00:00,274929,213.78,AQ0033,AQUAFAX LIMITED,29/5/2023 00:00:00,25/6/2023 00:00:00,P03-2024
,STANSTEAD RECHARGEABLE WORKS,SUPPLIES AND SERVICES,TRADING AC - EXTERNAL PURCHASE,4875,P122284-SERVICE-chandlery stock,25/6/2023 00:00:00,274959,6.03,AQ0033,AQUAFAX LIMITED,29/5/2023 00:00:00,25/6/2023 00:00:00,P03-2024
,STANSTEAD RECHARGEABLE WORKS,SUPPLIES AND SERVICES,TRADING AC - EXTERNAL PURCHASE,4875,P122002-SERVICE-chandlery stock,25/6/2023 00:00:00,274985,9.05,MI0200,MIDLAND CHANDLERS LIMITED,29/5/2023 00:00:00,25/6/2023 00:00:00,P03-2024
,STANSTEAD RECHARGEABLE WORKS,SUPPLIES AND SERVICES,TRADING AC - EXTERNAL PURCHASE,4875,P122316-SERVICE-chandlery stock,25/6/2023 00:00:00,274986,38.1,MI0200,MIDLAND CHANDLERS LIMITED,29/5/2023 00:00:00,25/6/2023 00:00:00,P03-2024
,STANSTEAD RECHARGEABLE WORKS,SUPPLIES AND SERVICES,TRADING AC - EXTERNAL PURCHASE,4875,P122247-SERVICE-chandlery stock,25/6/2023 00:00:00,274987,19.28,MI0200,MIDLAND CHANDLERS LIMITED,29/5/2023 00:00:00,25/6/2023 00:00:00,P03-2024
,STANSTEAD RECHARGEABLE WORKS,SUPPLIES AND SERVICES,TRADING AC - EXTERNAL PURCHASE,4875,P122316-SERVICE-chandlery stock,25/6/2023 00:00:00,274988,609.85,MI0200,MIDLAND CHANDLERS LIMITED,29/5/2023 00:00:00,25/6/2023 00:00:00,P03-2024
,STANSTEAD RECHARGEABLE WORKS,SUPPLIES AND SERVICES,TRADING AC - EXTERNAL PURCHASE,4875,P122279-SERVICE-chandlery stock,25/6/2023 00:00:00,275021,246.08,CE0510,CENTURION EUROPE LIMITED,29/5/2023 00:00:00,25/6/2023 00:00:00,P03-2024
,STANSTEAD RECHARGEABLE WORKS,SUPPLIES AND SERVICES,TRADING AC - EXTERNAL PURCHASE,4875,P122002-SERVICE-chandlery stock,25/6/2023 00:00:00,275022,9.05,MI0200,MIDLAND CHANDLERS LIMITED,29/5/2023 00:00:00,25/6/2023 00:00:00,P03-2024
,STANSTEAD RECHARGEABLE WORKS,SUPPLIES AND SERVICES,TRADING AC - EXTERNAL PURCHASE,4875,P122279-SERVICE-chandlery stock,25/6/2023 00:00:00,275048,1.36,CE0510,CENTURION EUROPE LIMITED,29/5/2023 00:00:00,25/6/2023 00:00:00,P03-2024
,LEE VALLEY CAMPSITE,SUPPLIES AND SERVICES,TRADING AC - EXTERNAL PURCHASE,4875,Sewardstone-misc material,06/05/2023 00:00,273710,19.05,LO0473,LOGS DIRECT LTD,29/5/2023 00:00:00,25/6/2023 00:00:00,P03-2024
,LEE VALLEY CAMPSITE,SUPPLIES AND SERVICES,TRADING AC - EXTERNAL PURCHASE,4875,Sewardstone-misc material,06/05/2023 00:00,273710,-644.16,LO0473,LOGS DIRECT LTD,29/5/2023 00:00:00,25/6/2023 00:00:00,P03-2024
,LEE VALLEY CAMPSITE,SUPPLIES AND SERVICES,TRADING AC - EXTERNAL PURCHASE,4875,P121860-SERVICE-Shop stock logs kindling firelights,06/05/2023 00:00,273710,644.16,LO0473,LOGS DIRECT LTD,29/5/2023 00:00:00,25/6/2023 00:00:00,P03-2024
,LEE VALLEY CAMPSITE,SUPPLIES AND SERVICES,TRADING AC - EXTERNAL PURCHASE,4875,Sewardstone-misc material,06/05/2023 00:00,273710,625.11,LO0473,LOGS DIRECT LTD,29/5/2023 00:00:00,25/6/2023 00:00:00,P03-2024
,LEE VALLEY CAMPSITE,SUPPLIES AND SERVICES,TRADING AC - EXTERNAL PURCHASE,4875,P121860-SERVICE-Shop stock logs kindling firelights,06/05/2023 00:00,274007,140,LO0473,LOGS DIRECT LTD,29/5/2023 00:00:00,25/6/2023 00:00:00,P03-2024
,LEE VALLEY CAMPSITE,SUPPLIES AND SERVICES,TRADING AC - EXTERNAL PURCHASE,4875,P121860-SERVICE-Shop stock logs kindling firelights,06/05/2023 00:00,274476,-625.11,LO0473,LOGS DIRECT LTD,29/5/2023 00:00:00,25/6/2023 00:00:00,P03-2024
,LEE VALLEY CAMPSITE,SUPPLIES AND SERVICES,TRADING AC - EXTERNAL PURCHASE,4875,P121860-SERVICE-Shop stock logs kindling firelights,06/05/2023 00:00,274477,124,LO0473,LOGS DIRECT LTD,29/5/2023 00:00:00,25/6/2023 00:00:00,P03-2024
,LEE VALLEY CAMPSITE,SUPPLIES AND SERVICES,TRADING AC - EXTERNAL PURCHASE,4875,P121860-SERVICE-Shop stock logs kindling firelights,19/6/2023 00:00:00,274548,298.05,LO0473,LOGS DIRECT LTD,29/5/2023 00:00:00,25/6/2023 00:00:00,P03-2024
,LEE VALLEY CAMPSITE,SUPPLIES AND SERVICES,TRADING AC - EXTERNAL PURCHASE,4875,Sewardstone-kiln dried softwood nets,19/6/2023 00:00:00,274548,-298.05,LO0473,LOGS DIRECT LTD,29/5/2023 00:00:00,25/6/2023 00:00:00,P03-2024
,LEE VALLEY CAMPSITE,SUPPLIES AND SERVICES,TRADING AC - EXTERNAL PURCHASE,4875,Sewardstone-kiln dried softwood nets,19/6/2023 00:00:00,274548,279,LO0473,LOGS DIRECT LTD,29/5/2023 00:00:00,25/6/2023 00:00:00,P03-2024
,LEE VALLEY CAMPSITE,SUPPLIES AND SERVICES,TRADING AC - EXTERNAL PURCHASE,4875,Sewardstone-kiln dried softwood nets,19/6/2023 00:00:00,274548,19.05,LO0473,LOGS DIRECT LTD,29/5/2023 00:00:00,25/6/2023 00:00:00,P03-2024
,LEE VALLEY CAMPSITE,SUPPLIES AND SERVICES,TRADING AC - EXTERNAL PURCHASE,4875,P121860-SERVICE-Shop stock logs kindling firelights,19/6/2023 00:00:00,274573,-19.05,LO0473,LOGS DIRECT LTD,29/5/2023 00:00:00,25/6/2023 00:00:00,P03-2024
P&V,WILDLIFE DISCOVERY CENTRE,SUPPLIES AND SERVICES,TRADING AC - EXTERNAL PURCHASE,4875,BOVRIL( WDC SALES),21/6/2023 00:00:00,274939,2.97,FI0001,DIRECTOR OF FINANCE - CASH,29/5/2023 00:00:00,25/6/2023 00:00:00,P03-2024
P&V,WILDLIFE DISCOVERY CENTRE,SUPPLIES AND SERVICES,TRADING AC - EXTERNAL PURCHASE,4875,FUSED ADAPTOR,21/6/2023 00:00:00,274939,1.08,FI0001,DIRECTOR OF FINANCE - CASH,29/5/2023 00:00:00,25/6/2023 00:00:00,P03-2024
P&V,WILDLIFE DISCOVERY CENTRE,SUPPLIES AND SERVICES,TRADING AC - EXTERNAL PURCHASE,4875,BOVRIL (WDC SALES),21/6/2023 00:00:00,274939,0.99,FI0001,DIRECTOR OF FINANCE - CASH,29/5/2023 00:00:00,25/6/2023 00:00:00,P03-2024
P&V,ALMOST WILD CAMPSITE,SUPPLIES AND SERVICES,TRADING AC - EXTERNAL PURCHASE,4875,P122064-SERVICE-2 Palletts of Logs and 50 bags of Charcole,06/05/2023 00:00,274465,646,LO0473,LOGS DIRECT LTD,29/5/2023 00:00:00,25/6/2023 00:00:00,P03-2024
,LV LEISURE CENTRE CAMPSITE,SUPPLIES AND SERVICES,TRADING AC - EXTERNAL PURCHASE,4875,P122075-SERVICE-100 logs,13/6/2023 00:00:00,274466,279,LO0473,LOGS DIRECT LTD,29/5/2023 00:00:00,25/6/2023 00:00:00,P03-2024
,LEE VALLEY CAMPSITE,SUPPLIES AND SERVICES,TRAVEL CARDS,4876,P122133-SERVICE-250 x Children off peak zone 1-6,19/6/2023 00:00:00,274773,1710,PA0003,TRANSPORT TRADING LIMITED,29/5/2023 00:00:00,25/6/2023 00:00:00,P03-2024
,LEE VALLEY CAMPSITE,SUPPLIES AND SERVICES,TRAVEL CARDS,4876,P122133-SERVICE-500 x Adult off peak zone 1-6,19/6/2023 00:00:00,274773,6840,PA0003,TRANSPORT TRADING LIMITED,29/5/2023 00:00:00,25/6/2023 00:00:00,P03-2024
,LEE VALLEY CAMPSITE,SUPPLIES AND SERVICES,TRAVEL CARDS,4876,P122133-SERVICE-delivery,19/6/2023 00:00:00,274773,2.5,PA0003,TRANSPORT TRADING LIMITED,29/5/2023 00:00:00,25/6/2023 00:00:00,P03-2024
,LEE VALLEY CAMPSITE,SUPPLIES AND SERVICES,BOTTLED GAS,4877,P120451-SERVICE-Stock   47KG Gas cannisters,19/6/2023 00:00:00,274608,727.2,FL0147,FLOGAS BRITAIN LIMITED,29/5/2023 00:00:00,25/6/2023 00:00:00,P03-2024
CEO,CHIEF EXECUTIVE,SUPPLIES AND SERVICES,UNRECONCILED COMPANY CARD EXP,4880,P ANDREWS- CREDIT CARD STATEMENT-JUNE 2023,06/12/2023 00:00,274491,441.79,NA0007,NATWEST CARD CENTRE,29/5/2023 00:00:00,25/6/2023 00:00:00,P03-2024
P&V,MYDDELTON HOUSE,SUPPLIES AND SERVICES,UNRECONCILED COMPANY CARD EXP,4880,G FLAVIEN-CREDIT CARD STATEMENT-JUNE 2023,06/12/2023 00:00,274491,2065.62,NA0007,NATWEST CARD CENTRE,29/5/2023 00:00:00,25/6/2023 00:00:00,P03-2024
CEO,PR/COMMUNICATIONS,SUPPLIES AND SERVICES,UNRECONCILED COMPANY CARD EXP,4880,S BROMBERG-CREDIT CARD STATEMENT-JUNE 2023,06/12/2023 00:00,274491,2364.29,NA0007,NATWEST CARD CENTRE,29/5/2023 00:00:00,25/6/2023 00:00:00,P03-2024
R&B,DEMOCRATIC REPRESENTATION & MA,SUPPLIES AND SERVICES,UNRECONCILED COMPANY CARD EXP,4880,S BERTSCHIN-CREDIT CARD STATEMENT -JUNE 2023,06/12/2023 00:00,274491,330.2,NA0007,NATWEST CARD CENTRE,29/5/2023 00:00:00,25/6/2023 00:00:00,P03-2024
R&B,FINANCE & RESOURCES MANAGEMENT,SUPPLIES AND SERVICES,UNRECONCILED COMPANY CARD EXP,4880,L READ-CREDIT CARD STATEMENT-JUNE 2023,06/12/2023 00:00,274491,1372.5,NA0007,NATWEST CARD CENTRE,29/5/2023 00:00:00,25/6/2023 00:00:00,P03-2024
R&B,INFORMATION TECHNOLOGY,SUPPLIES AND SERVICES,UNRECONCILED COMPANY CARD EXP,4880,S CLARK-CREDIT CARD STATEMENT-JUNE 2023,06/12/2023 00:00,274491,2474.53,NA0007,NATWEST CARD CENTRE,29/5/2023 00:00:00,25/6/2023 00:00:00,P03-2024
,LEE VALLEY MARINA SPRINGFIELD,SUPPLIES AND SERVICES,UNRECONCILED COMPANY CARD EXP,4880,T BEAN-CREDIT CARD STATEMENT-JUNE 2023,06/12/2023 00:00,274491,38.41,NA0007,NATWEST CARD CENTRE,29/5/2023 00:00:00,25/6/2023 00:00:00,P03-2024
,LEE VALLEY MARINA STANSTEAD,SUPPLIES AND SERVICES,UNRECONCILED COMPANY CARD EXP,4880,J MANTON-CREDIT CARD STATEMENT-JUNE 2023,06/12/2023 00:00,274491,97.96,NA0007,NATWEST CARD CENTRE,29/5/2023 00:00:00,25/6/2023 00:00:00,P03-2024
P&V,LEE VALLEY FARM HOLYFIELDHALL,SUPPLIES AND SERVICES,UNRECONCILED COMPANY CARD EXP,4880,J PAINTER-CREDIT CARD STATEMENT-JUNE 2023,06/12/2023 00:00,274491,421.23,NA0007,NATWEST CARD CENTRE,29/5/2023 00:00:00,25/6/2023 00:00:00,P03-2024
,LEE VALLEY CAMPSITE,SUPPLIES AND SERVICES,UNRECONCILED COMPANY CARD EXP,4880,C CARTER-CREDIT CARD STATEMENT-JUNE 2023,06/12/2023 00:00,274491,4936.45,NA0007,NATWEST CARD CENTRE,29/5/2023 00:00:00,25/6/2023 00:00:00,P03-2024
,LEE VALLEY CARAVAN PARK,SUPPLIES AND SERVICES,UNRECONCILED COMPANY CARD EXP,4880,D SNOWDEN-CREDIT CARD STATEMENT-JUNE 2023,06/12/2023 00:00,274491,735.24,NA0007,NATWEST CARD CENTRE,29/5/2023 00:00:00,25/6/2023 00:00:00,P03-2024
,LEE VALLEY CARAVAN PARK,SUPPLIES AND SERVICES,UNRECONCILED COMPANY CARD EXP,4880,I RUSSELL-CREDIT CARD STATEMENT-JUNE 2023,06/12/2023 00:00,274491,5184.88,NA0007,NATWEST CARD CENTRE,29/5/2023 00:00:00,25/6/2023 00:00:00,P03-2024
P&V,MYDDELTON HOUSE GARDENS,SUPPLIES AND SERVICES,UNRECONCILED COMPANY CARD EXP,4880,R HARMES-CREDIT CARD STATEMENT-JUNE 2023,06/12/2023 00:00,274491,216.62,NA0007,NATWEST CARD CENTRE,29/5/2023 00:00:00,25/6/2023 00:00:00,P03-2024
P&V,MYDDLETON HSE HERITAGE CENTRE,SUPPLIES AND SERVICES,UNRECONCILED COMPANY CARD EXP,4880,E BOAKO-AGGGREY-CREDIT CARD STATEMENT-JUNE 2023,06/12/2023 00:00,274491,-28.4,NA0007,NATWEST CARD CENTRE,29/5/2023 00:00:00,25/6/2023 00:00:00,P03-2024
P&V,BIODIVERSITY ACTION PLAN,SUPPLIES AND SERVICES,UNRECONCILED COMPANY CARD EXP,4880,C PATRICK-CREDIT CARD STATEMENT-JUNE 2023,06/12/2023 00:00,274491,16.99,NA0007,NATWEST CARD CENTRE,29/5/2023 00:00:00,25/6/2023 00:00:00,P03-2024
P&V,OPERATIONAL MANAGEMENT (L&E),SUPPLIES AND SERVICES,UNRECONCILED COMPANY CARD EXP,4880,J HETHERINGTON-CREDIT CARD STATEMENT-JUNE 2023,06/12/2023 00:00,274491,84.55,NA0007,NATWEST CARD CENTRE,29/5/2023 00:00:00,25/6/2023 00:00:00,P03-2024
P&V,SPORT AND LEISURE,SUPPLIES AND SERVICES,UNRECONCILED COMPANY CARD EXP,4880,A SACKETT-CREDIT CARD STATEMENT-JUNE 2023,06/12/2023 00:00,274491,1857.03,NA0007,NATWEST CARD CENTRE,29/5/2023 00:00:00,25/6/2023 00:00:00,P03-2024
P&V,EVENTS MANAGEMENT (PR),SUPPLIES AND SERVICES,UNRECONCILED COMPANY CARD EXP,4880,S STONE-CREDIT CARD STATEMENT-JUNE 2023,06/12/2023 00:00,274491,136.03,NA0007,NATWEST CARD CENTRE,29/5/2023 00:00:00,25/6/2023 00:00:00,P03-2024
P&V,VOLUNTEERS (L&E),SUPPLIES AND SERVICES,UNRECONCILED COMPANY CARD EXP,4880,J WHITEHEAD-CREDIT CARD STATEMENT-JUNE 2023,06/12/2023 00:00,274491,40.88,NA0007,NATWEST CARD CENTRE,29/5/2023 00:00:00,25/6/2023 00:00:00,P03-2024
,LV LEISURE CENTRE CAMPSITE,SUPPLIES AND SERVICES,UNRECONCILED COMPANY CARD EXP,4880,L SMITH-CREDIT CARD STATEMENT-JUNE 2023,06/12/2023 00:00,274491,597.24,NA0007,NATWEST CARD CENTRE,29/5/2023 00:00:00,25/6/2023 00:00:00,P03-2024
CEO,COMMERCIAL ACCOMMODATION,SUPPLIES AND SERVICES,OTHER EXPENSES,4899,P121556-SERVICE-Land Registry Fees,06/05/2023 00:00,274373,12,HM0032,HM LAND REGISTRY,29/5/2023 00:00:00,25/6/2023 00:00:00,P03-2024
CEO,COMMERCIAL ACCOMMODATION,SUPPLIES AND SERVICES,OTHER EXPENSES,4899,P121556-SERVICE-Land Registry Fees,13/6/2023 00:00:00,274735,15,HM0032,HM LAND REGISTRY,29/5/2023 00:00:00,25/6/2023 00:00:00,P03-2024
CEO,COMMERCIAL ACCOMMODATION,SUPPLIES AND SERVICES,OTHER EXPENSES,4899,P121556-SERVICE-Land Registry Fees,19/6/2023 00:00:00,274830,9,HM0032,HM LAND REGISTRY,29/5/2023 00:00:00,25/6/2023 00:00:00,P03-2024
CEO,COMMERCIAL ACCOMMODATION,SUPPLIES AND SERVICES,OTHER EXPENSES,4899,P121556-SERVICE-Land Registry Fees,20/6/2023 00:00:00,274952,12,HM0032,HM LAND REGISTRY,29/5/2023 00:00:00,25/6/2023 00:00:00,P03-2024
CEO,COMMERCIAL ACCOMMODATION,SUPPLIES AND SERVICES,OTHER EXPENSES,4899,P121556-SERVICE-Land Registry Fees,23/6/2023 00:00:00,275159,20,HM0032,HM LAND REGISTRY,29/5/2023 00:00:00,25/6/2023 00:00:00,P03-2024
,LEE VALLEY MARINA STANSTEAD,SUPPLIES AND SERVICES,OTHER EXPENSES,4899,P122403-SERVICE-Island Woman disposal,25/6/2023 00:00:00,275199,2850,BO0661,BOATBREAKERS,29/5/2023 00:00:00,25/6/2023 00:00:00,P03-2024
P&V,RIVER LEE COUNTRY PARK,SUPPLIES AND SERVICES,OTHER EXPENSES,4899,P122101-SERVICE-Dead Animal Disposal,20/6/2023 00:00:00,275030,6,HO0033,HOLTS ABATTOIR LTD,29/5/2023 00:00:00,25/6/2023 00:00:00,P03-2024
,LV LEISURE CENTRE GOLF COURSE,SUPPLIES AND SERVICES,OTHER EXPENSES,4899,P122309-SERVICE-OPM Survey,23/6/2023 00:00:00,275055,200,CO0752,COMPLETE TREE CARE LTD,29/5/2023 00:00:00,25/6/2023 00:00:00,P03-2024
,LV LEISURE CENTRE GOLF COURSE,SUPPLIES AND SERVICES,OTHER EXPENSES,4899,P122310-SERVICE-Machine Inspection,23/6/2023 00:00:00,275062,263.25,GE0440,GTEC'S,29/5/2023 00:00:00,25/6/2023 00:00:00,P03-2024
P&V,SOUTH AREA RANGERS,S106 EXPENDITURE (REVENUE),S106 EXPENDITURE (REVENUE),4985,P122036-SERVICE-Wildlife Camera - Browning Spec Ops Elite HP5,13/6/2023 00:00:00,274359,198.31,NA0230,NATURESPY,29/5/2023 00:00:00,25/6/2023 00:00:00,P03-2024
P&V,SOUTH AREA RANGERS,S106 EXPENDITURE (REVENUE),S106 EXPENDITURE (REVENUE),4985,P122136-SERVICE-Delivery,13/6/2023 00:00:00,274594,15,SI0024,SIGNS EXPRESS (HARLOW),29/5/2023 00:00:00,25/6/2023 00:00:00,P03-2024
P&V,SOUTH AREA RANGERS,S106 EXPENDITURE (REVENUE),S106 EXPENDITURE (REVENUE),4985,P122136-SERVICE-2x Signage - 'Wildlife Refuge',13/6/2023 00:00:00,274594,37,SI0024,SIGNS EXPRESS (HARLOW),29/5/2023 00:00:00,25/6/2023 00:00:00,P03-2024
P&V,"ASSET PROTECTION, MAINT, DEVEL",CAPITAL EXPENDITURE,CAPITAL EXPENDITURE,4990,P121685-SERVICE-Velo - CCTV rental 1/4/23 - 30/6/23,14/6/2023 00:00:00,272790,2177.1,ST0642,SECURITAS TECHNOLOGY LIMITED(frmly Stanley S),29/5/2023 00:00:00,25/6/2023 00:00:00,P03-2024
P&V,"ASSET PROTECTION, MAINT, DEVEL",CAPITAL EXPENDITURE,CAPITAL EXPENDITURE,4990,P122098-SERVICE-HTC - West Plaza Sockets Additional Works,06/05/2023 00:00,274326,1878,BR0018,BRADSHAW ELECTRICAL LIMITED,29/5/2023 00:00:00,25/6/2023 00:00:00,P03-2024
P&V,"ASSET PROTECTION, MAINT, DEVEL",CAPITAL EXPENDITURE,CAPITAL EXPENDITURE,4990,P122023-SERVICE-Springfield Marina,06/05/2023 00:00,274386,2130,SO0400,SOUTHERN GREEN SERVICES LIMITED,29/5/2023 00:00:00,25/6/2023 00:00:00,P03-2024
P&V,"ASSET PROTECTION, MAINT, DEVEL",CAPITAL EXPENDITURE,CAPITAL EXPENDITURE,4990,"P122024-SERVICE-Plot 122, Dobbs weir caravan park",06/05/2023 00:00,274387,820,SO0400,SOUTHERN GREEN SERVICES LIMITED,29/5/2023 00:00:00,25/6/2023 00:00:00,P03-2024
P&V,"ASSET PROTECTION, MAINT, DEVEL",CAPITAL EXPENDITURE,CAPITAL EXPENDITURE,4990,"P121649-SERVICE-WWC - Install 4x Olympic FSW, provide 1x lega",06/05/2023 00:00,274389,11501,TO0640,TOTAL AUTOMATION AND POWER,29/5/2023 00:00:00,25/6/2023 00:00:00,P03-2024
P&V,"ASSET PROTECTION, MAINT, DEVEL",CAPITAL EXPENDITURE,CAPITAL EXPENDITURE,4990,P121648-SERVICE-WWC - Operational spares now required for,06/05/2023 00:00,274390,4304,TO0640,TOTAL AUTOMATION AND POWER,29/5/2023 00:00:00,25/6/2023 00:00:00,P03-2024
P&V,"ASSET PROTECTION, MAINT, DEVEL",CAPITAL EXPENDITURE,CAPITAL EXPENDITURE,4990,P119241-SERVICE-External Decorations at White Water Centre,06/07/2023 00:00,274498,2438,BE0563,BELL DECORATING  GROUP LTD,29/5/2023 00:00:00,25/6/2023 00:00:00,P03-2024
P&V,"ASSET PROTECTION, MAINT, DEVEL",CAPITAL EXPENDITURE,CAPITAL EXPENDITURE,4990,P119241-SERVICE-Additional works instructed,06/07/2023 00:00,274498,5590,BE0563,BELL DECORATING  GROUP LTD,29/5/2023 00:00:00,25/6/2023 00:00:00,P03-2024
P&V,"ASSET PROTECTION, MAINT, DEVEL",CAPITAL EXPENDITURE,CAPITAL EXPENDITURE,4990,P121685-SERVICE-Velo - CCTV rental 1/4/23 - 30/6/23,14/6/2023 00:00:00,274584,-2177.1,ST0642,SECURITAS TECHNOLOGY LIMITED(frmly Stanley S),29/5/2023 00:00:00,25/6/2023 00:00:00,P03-2024
P&V,"ASSET PROTECTION, MAINT, DEVEL",CAPITAL EXPENDITURE,CAPITAL EXPENDITURE,4990,P121824-SERVICE-Site Survey Lighting at Dobbs Weir Campsite,13/6/2023 00:00:00,274585,400,BR0018,BRADSHAW ELECTRICAL LIMITED,29/5/2023 00:00:00,25/6/2023 00:00:00,P03-2024
P&V,"ASSET PROTECTION, MAINT, DEVEL",CAPITAL EXPENDITURE,CAPITAL EXPENDITURE,4990,P121867-SERVICE-Vinyl Overlay - Coppermill Field,14/6/2023 00:00:00,274595,325,SI0024,SIGNS EXPRESS (HARLOW),29/5/2023 00:00:00,25/6/2023 00:00:00,P03-2024
P&V,"ASSET PROTECTION, MAINT, DEVEL",CAPITAL EXPENDITURE,CAPITAL EXPENDITURE,4990,P121768-SERVICE-Install prespex panels Gunpowder and Sewardst,06/07/2023 00:00,274596,-753.2,KE0023,KENDALL & SONS LIMITED,29/5/2023 00:00:00,25/6/2023 00:00:00,P03-2024
P&V,"ASSET PROTECTION, MAINT, DEVEL",CAPITAL EXPENDITURE,CAPITAL EXPENDITURE,4990,Gunpowder-install perspex,06/07/2023 00:00,274597,-753.2,KE0023,KENDALL & SONS LIMITED,29/5/2023 00:00:00,25/6/2023 00:00:00,P03-2024
P&V,"ASSET PROTECTION, MAINT, DEVEL",CAPITAL EXPENDITURE,CAPITAL EXPENDITURE,4990,P121768-SERVICE-Install prespex panels Gunpowder and Sewardst,06/07/2023 00:00,274597,753.2,KE0023,KENDALL & SONS LIMITED,29/5/2023 00:00:00,25/6/2023 00:00:00,P03-2024
P&V,"ASSET PROTECTION, MAINT, DEVEL",CAPITAL EXPENDITURE,CAPITAL EXPENDITURE,4990,Gunpowder-install perspex,06/07/2023 00:00,274597,543.2,KE0023,KENDALL & SONS LIMITED,29/5/2023 00:00:00,25/6/2023 00:00:00,P03-2024
P&V,"ASSET PROTECTION, MAINT, DEVEL",CAPITAL EXPENDITURE,CAPITAL EXPENDITURE,4990,Gunpowder-install perspex,06/07/2023 00:00,274597,210,KE0023,KENDALL & SONS LIMITED,29/5/2023 00:00:00,25/6/2023 00:00:00,P03-2024
P&V,"ASSET PROTECTION, MAINT, DEVEL",CAPITAL EXPENDITURE,CAPITAL EXPENDITURE,4990,P121401-SERVICE-LVRPA � White Water Slalom Ramp,19/6/2023 00:00:00,274612,201697.93,CA0508,CARMELCREST LTD,29/5/2023 00:00:00,25/6/2023 00:00:00,P03-2024
P&V,"ASSET PROTECTION, MAINT, DEVEL",CAPITAL EXPENDITURE,CAPITAL EXPENDITURE,4990,P121401-SERVICE-Increase of order value as per Mike Stevens,19/6/2023 00:00:00,274612,31451.39,CA0508,CARMELCREST LTD,29/5/2023 00:00:00,25/6/2023 00:00:00,P03-2024
P&V,"ASSET PROTECTION, MAINT, DEVEL",CAPITAL EXPENDITURE,CAPITAL EXPENDITURE,4990,P121768-SERVICE-Install prespex panels Gunpowder and Sewardst,06/07/2023 00:00,274679,-753.2,KE0023,KENDALL & SONS LIMITED,29/5/2023 00:00:00,25/6/2023 00:00:00,P03-2024
P&V,"ASSET PROTECTION, MAINT, DEVEL",CAPITAL EXPENDITURE,CAPITAL EXPENDITURE,4990,KENDALL & SONS LIMITED,06/07/2023 00:00,274679,753.2,KE0023,KENDALL & SONS LIMITED,29/5/2023 00:00:00,25/6/2023 00:00:00,P03-2024
P&V,"ASSET PROTECTION, MAINT, DEVEL",CAPITAL EXPENDITURE,CAPITAL EXPENDITURE,4990,KENDALL & SONS LIMITED,06/07/2023 00:00,274679,-210,KE0023,KENDALL & SONS LIMITED,29/5/2023 00:00:00,25/6/2023 00:00:00,P03-2024
P&V,"ASSET PROTECTION, MAINT, DEVEL",CAPITAL EXPENDITURE,CAPITAL EXPENDITURE,4990,KENDALL & SONS LIMITED,06/07/2023 00:00,274679,-543.2,KE0023,KENDALL & SONS LIMITED,29/5/2023 00:00:00,25/6/2023 00:00:00,P03-2024
P&V,"ASSET PROTECTION, MAINT, DEVEL",CAPITAL EXPENDITURE,CAPITAL EXPENDITURE,4990,P121768-SERVICE-Install prespex panels Gunpowder and Sewardst,06/07/2023 00:00,274680,753.2,KE0023,KENDALL & SONS LIMITED,29/5/2023 00:00:00,25/6/2023 00:00:00,P03-2024
P&V,"ASSET PROTECTION, MAINT, DEVEL",CAPITAL EXPENDITURE,CAPITAL EXPENDITURE,4990,P122174-SERVICE-Remove Sign from Waltham Abbey Gardens,13/6/2023 00:00:00,274731,235,KE0023,KENDALL & SONS LIMITED,29/5/2023 00:00:00,25/6/2023 00:00:00,P03-2024
P&V,"ASSET PROTECTION, MAINT, DEVEL",CAPITAL EXPENDITURE,CAPITAL EXPENDITURE,4990,WWC-re-fit lights,21/6/2023 00:00:00,275050,40,KE0023,KENDALL & SONS LIMITED,29/5/2023 00:00:00,25/6/2023 00:00:00,P03-2024
P&V,"ASSET PROTECTION, MAINT, DEVEL",CAPITAL EXPENDITURE,CAPITAL EXPENDITURE,4990,WWC-re-fit lights,21/6/2023 00:00:00,275050,258,KE0023,KENDALL & SONS LIMITED,29/5/2023 00:00:00,25/6/2023 00:00:00,P03-2024
P&V,"ASSET PROTECTION, MAINT, DEVEL",CAPITAL EXPENDITURE,CAPITAL EXPENDITURE,4990,WWC-re-fit lights,21/6/2023 00:00:00,275050,-298,KE0023,KENDALL & SONS LIMITED,29/5/2023 00:00:00,25/6/2023 00:00:00,P03-2024
P&V,"ASSET PROTECTION, MAINT, DEVEL",CAPITAL EXPENDITURE,CAPITAL EXPENDITURE,4990,P122280-SERVICE-Re-Fit Lights at White Water Cecntre,21/6/2023 00:00:00,275050,298,KE0023,KENDALL & SONS LIMITED,29/5/2023 00:00:00,25/6/2023 00:00:00,P03-2024
P&V,"ASSET PROTECTION, MAINT, DEVEL",CAPITAL EXPENDITURE,CAPITAL EXPENDITURE,4990,P122282-SERVICE-Emergency Repair of Bridge N161,21/6/2023 00:00:00,275051,746,KE0023,KENDALL & SONS LIMITED,29/5/2023 00:00:00,25/6/2023 00:00:00,P03-2024
P&V,"ASSET PROTECTION, MAINT, DEVEL",CAPITAL EXPENDITURE,CAPITAL EXPENDITURE,4990,Bridge N161-Emergency repairs,21/6/2023 00:00:00,275051,646,KE0023,KENDALL & SONS LIMITED,29/5/2023 00:00:00,25/6/2023 00:00:00,P03-2024
P&V,"ASSET PROTECTION, MAINT, DEVEL",CAPITAL EXPENDITURE,CAPITAL EXPENDITURE,4990,Bridge N161-Emergency repairs,21/6/2023 00:00:00,275051,100,KE0023,KENDALL & SONS LIMITED,29/5/2023 00:00:00,25/6/2023 00:00:00,P03-2024
P&V,"ASSET PROTECTION, MAINT, DEVEL",CAPITAL EXPENDITURE,CAPITAL EXPENDITURE,4990,Bridge N161-Emergency repairs,21/6/2023 00:00:00,275051,-746,KE0023,KENDALL & SONS LIMITED,29/5/2023 00:00:00,25/6/2023 00:00:00,P03-2024
P&V,"ASSET PROTECTION, MAINT, DEVEL",CAPITAL EXPENDITURE,CAPITAL EXPENDITURE,4990,P118406-SERVICE-Control System Schedule Upgrade at White Wate,23/6/2023 00:00:00,275140,1803,TO0640,TOTAL AUTOMATION AND POWER,29/5/2023 00:00:00,25/6/2023 00:00:00,P03-2024
P&V,"ASSET PROTECTION, MAINT, DEVEL",CAPITAL EXPENDITURE,CAPITAL EXPENDITURE,4990,P122252-SERVICE-CCTV survey works to analyse coverage and wea,25/6/2023 00:00:00,275171,3600,GR0097,GREENWICH LEISURE LTD,29/5/2023 00:00:00,25/6/2023 00:00:00,P03-2024
P&V,"ASSET PROTECTION, MAINT, DEVEL",CAPITAL EXPENDITURE,CAPITAL EXPENDITURE,4990,P122258-SERVICE-Training day on CCTV for World Championships,25/6/2023 00:00:00,275172,540,GR0097,GREENWICH LEISURE LTD,29/5/2023 00:00:00,25/6/2023 00:00:00,P03-2024
P&V,"ASSET PROTECTION, MAINT, DEVEL",CAPITAL EXPENDITURE,CAPITAL EXPENDITURE,4990,P122259-SERVICE-Renewal of and addition of sleepers to specta,25/6/2023 00:00:00,275173,11020,GR0097,GREENWICH LEISURE LTD,29/5/2023 00:00:00,25/6/2023 00:00:00,P03-2024
P&V,"ASSET PROTECTION, MAINT, DEVEL",CAPITAL EXPENDITURE,CAPITAL EXPENDITURE,4990,P122264-SERVICE-Crane hire at WWC for pump works,25/6/2023 00:00:00,275174,5474,GR0097,GREENWICH LEISURE LTD,29/5/2023 00:00:00,25/6/2023 00:00:00,P03-2024
P&V,"ASSET PROTECTION, MAINT, DEVEL",CAPITAL EXPENDITURE,CAPITAL EXPENDITURE,4990,P122265-SERVICE-Urgent pump hire at WWC,25/6/2023 00:00:00,275175,1428,GR0097,GREENWICH LEISURE LTD,29/5/2023 00:00:00,25/6/2023 00:00:00,P03-2024
P&V,"ASSET PROTECTION, MAINT, DEVEL",CAPITAL EXPENDITURE,CAPITAL EXPENDITURE,4990,P122261-SERVICE-Iinvestigative works at WWC tavern for leaks,25/6/2023 00:00:00,275176,1333,GR0097,GREENWICH LEISURE LTD,29/5/2023 00:00:00,25/6/2023 00:00:00,P03-2024
P&V,"ASSET PROTECTION, MAINT, DEVEL",CAPITAL EXPENDITURE,CAPITAL EXPENDITURE,4990,P122262-SERVICE-Installation of sub meters at BCU,25/6/2023 00:00:00,275177,1850.96,GR0097,GREENWICH LEISURE LTD,29/5/2023 00:00:00,25/6/2023 00:00:00,P03-2024
P&V,"ASSET PROTECTION, MAINT, DEVEL",CAPITAL EXPENDITURE,CAPITAL EXPENDITURE,4990,P122263-SERVICE-Install of Dummy camera at HTC compound,25/6/2023 00:00:00,275178,400,GR0097,GREENWICH LEISURE LTD,29/5/2023 00:00:00,25/6/2023 00:00:00,P03-2024
P&V,"ASSET PROTECTION, MAINT, DEVEL",CAPITAL EXPENDITURE,CAPITAL EXPENDITURE,4990,P122312-SERVICE-Taking down by hand of a dangerous brick wall,25/6/2023 00:00:00,275194,9000,LT0482,LTM CONSTRUCTION LTD,29/5/2023 00:00:00,25/6/2023 00:00:00,P03-2024
R&B,INFORMATION TECHNOLOGY,CAPITAL EXPENDITURE,CAPITAL EXPENDITURE,4990,"P121969-SERVICE-Lead CCS Cat 6 UTP x 15, unit price 2.50",06/07/2023 00:00,273904,37.5,RE0354,RENOVOTEC LTD,29/5/2023 00:00:00,25/6/2023 00:00:00,P03-2024
R&B,INFORMATION TECHNOLOGY,CAPITAL EXPENDITURE,CAPITAL EXPENDITURE,4990,"P121969-SERVICE-LigoWave Radio with internal Antenna x 15, un",06/07/2023 00:00,273904,1800,RE0354,RENOVOTEC LTD,29/5/2023 00:00:00,25/6/2023 00:00:00,P03-2024
R&B,INFORMATION TECHNOLOGY,CAPITAL EXPENDITURE,CAPITAL EXPENDITURE,4990,P121969-SERVICE-DPD next day delivery,06/07/2023 00:00,273904,20,RE0354,RENOVOTEC LTD,29/5/2023 00:00:00,25/6/2023 00:00:00,P03-2024
R&B,INFORMATION TECHNOLOGY,CAPITAL EXPENDITURE,CAPITAL EXPENDITURE,4990,P121969-SERVICE-Config,06/07/2023 00:00,273904,450,RE0354,RENOVOTEC LTD,29/5/2023 00:00:00,25/6/2023 00:00:00,P03-2024
R&B,INFORMATION TECHNOLOGY,CAPITAL EXPENDITURE,CAPITAL EXPENDITURE,4990,P121969-SERVICE-Zyxel EX3300-TO wireless router Dual-Band x 1,06/07/2023 00:00,273904,750,RE0354,RENOVOTEC LTD,29/5/2023 00:00:00,25/6/2023 00:00:00,P03-2024
R&B,INFORMATION TECHNOLOGY,CAPITAL EXPENDITURE,CAPITAL EXPENDITURE,4990,P121969-SERVICE-Config,06/07/2023 00:00,274018,-450,RE0354,RENOVOTEC LTD,29/5/2023 00:00:00,25/6/2023 00:00:00,P03-2024
R&B,INFORMATION TECHNOLOGY,CAPITAL EXPENDITURE,CAPITAL EXPENDITURE,4990,P118194-SERVICE-Finance System Upgrade - Implementation proje,06/05/2023 00:00,274361,210.52,CE0021,ADVANCED BUSINESS SOLUTIONS,29/5/2023 00:00:00,25/6/2023 00:00:00,P03-2024
R&B,INFORMATION TECHNOLOGY,CAPITAL EXPENDITURE,CAPITAL EXPENDITURE,4990,P121986-SERVICE-Setup new VLAN at HTC via the Velo for event,06/05/2023 00:00,274376,500,IQ0022,IQUAL,29/5/2023 00:00:00,25/6/2023 00:00:00,P03-2024
R&B,INFORMATION TECHNOLOGY,CAPITAL EXPENDITURE,CAPITAL EXPENDITURE,4990,P122248-SERVICE-Fit 8 x WiFi Beams for cabins at Dobbs Weir,25/6/2023 00:00:00,274951,900,JP0183,JPH CABLING SERVICES,29/5/2023 00:00:00,25/6/2023 00:00:00,P03-2024
R&B,INFORMATION TECHNOLOGY,CAPITAL EXPENDITURE,CAPITAL EXPENDITURE,4990,P122110-SERVICE-Data quote Dobbs Weir New Lodges,25/6/2023 00:00:00,275142,830,DE0318,DESIGN AND MANAGEMENT SYSTEMS LTD,29/5/2023 00:00:00,25/6/2023 00:00:00,P03-2024
R&B,INFORMATION TECHNOLOGY,CAPITAL EXPENDITURE,CAPITAL EXPENDITURE,4990,P122108-SERVICE-Data quote - Dobbs Weir Bungalow,25/6/2023 00:00:00,275143,680,DE0318,DESIGN AND MANAGEMENT SYSTEMS LTD,29/5/2023 00:00:00,25/6/2023 00:00:00,P03-2024
R&B,INFORMATION TECHNOLOGY,CAPITAL EXPENDITURE,CAPITAL EXPENDITURE,4990,P122111-SERVICE-External data cabinet Dobbs Weir quote,25/6/2023 00:00:00,275144,820,DE0318,DESIGN AND MANAGEMENT SYSTEMS LTD,29/5/2023 00:00:00,25/6/2023 00:00:00,P03-2024
,LEE VALLEY CAMPSITE,CAPITAL EXPENDITURE,CAPITAL EXPENDITURE,4990,P121826-SERVICE-Brushed Chrome accessories HSE,06/05/2023 00:00,274469,650,BR0018,BRADSHAW ELECTRICAL LIMITED,29/5/2023 00:00:00,25/6/2023 00:00:00,P03-2024
,LEE VALLEY CAMPSITE,CAPITAL EXPENDITURE,CAPITAL EXPENDITURE,4990,P122307-SERVICE-House Bathroom mirror & shower rail,23/6/2023 00:00:00,274964,118.33,BQ0164,TRADE UK ACCOUNT,29/5/2023 00:00:00,25/6/2023 00:00:00,P03-2024
,LEE VALLEY CAMPSITE,CAPITAL EXPENDITURE,CAPITAL EXPENDITURE,4990,P122355-SERVICE-HOUSE EXTRA S,23/6/2023 00:00:00,275139,710,BR0018,BRADSHAW ELECTRICAL LIMITED,29/5/2023 00:00:00,25/6/2023 00:00:00,P03-2024
,LEE VALLEY CARAVAN PARK,CAPITAL EXPENDITURE,CAPITAL EXPENDITURE,4990,P120410-SERVICE-Increase figure to cover Invoice,23/6/2023 00:00:00,274953,3249.91,SO0400,SOUTHERN GREEN SERVICES LIMITED,29/5/2023 00:00:00,25/6/2023 00:00:00,P03-2024
,LEE VALLEY CARAVAN PARK,CAPITAL EXPENDITURE,CAPITAL EXPENDITURE,4990,P120410-SERVICE-Bungalow,23/6/2023 00:00:00,274953,67585,SO0400,SOUTHERN GREEN SERVICES LIMITED,29/5/2023 00:00:00,25/6/2023 00:00:00,P03-2024
P&V,NORTH AREA RANGERS,CAPITAL EXPENDITURE,CAPITAL EXPENDITURE,4990,P122016-SERVICE-Flood Risk Assessemnet at St Paul's Field,14/6/2023 00:00:00,274772,850,UR0089,URBAN WATER,29/5/2023 00:00:00,25/6/2023 00:00:00,P03-2024
P&V,BIODIVERSITY ACTION PLAN,CAPITAL EXPENDITURE,CAPITAL EXPENDITURE,4990,P121797-SERVICE-2023-24 Service Level Agreement,06/07/2023 00:00,274575,3000,GR0126,GREENSPACE INFORMATION FOR GREATER LONDON,29/5/2023 00:00:00,25/6/2023 00:00:00,P03-2024
,LEE VALLEY ICE CENTRE,CAPITAL EXPENDITURE,CAPITAL EXPENDITURE,4990,P122273-SERVICE-Ice centre Redev Interim Certificate 023,15/6/2023 00:00:00,274757,491662.69,BU0634,BUCKINGHAM GROUP CONTRACTING LIMITED,29/5/2023 00:00:00,25/6/2023 00:00:00,P03-2024
P&V,RIVER LEE COUNTRY PARK,THIRD PARTY PAYMENTS,EVENTS,5101,P122156-SERVICE-2x 1/3 A4 Leaflet Holders,19/6/2023 00:00:00,274709,21.52,UK0023,UK POINT OF SALE GROUP LTD,29/5/2023 00:00:00,25/6/2023 00:00:00,P03-2024
P&V,RIVER LEE COUNTRY PARK,THIRD PARTY PAYMENTS,EVENTS,5101,P122156-SERVICE-2x A5 Leaflet Holders,19/6/2023 00:00:00,274709,27.16,UK0023,UK POINT OF SALE GROUP LTD,29/5/2023 00:00:00,25/6/2023 00:00:00,P03-2024
P&V,RIVER LEE COUNTRY PARK,THIRD PARTY PAYMENTS,EVENTS,5101,P122156-SERVICE-Delivery to address below,19/6/2023 00:00:00,274709,9.5,UK0023,UK POINT OF SALE GROUP LTD,29/5/2023 00:00:00,25/6/2023 00:00:00,P03-2024
R&B,HUMAN RESOURCES,THIRD PARTY PAYMENTS,CONSULTANTS (GENERAL),5110,P122274-SERVICE-OH RETAINER 01/04/2023 - 31/03/24,14/6/2023 00:00:00,274779,245,HE0347,HEALTH ASSURED LIMITED,29/5/2023 00:00:00,25/6/2023 00:00:00,P03-2024
CEO,PR/COMMUNICATIONS,THIRD PARTY PAYMENTS,CONSULTANTS (GENERAL),5110,P121681-SERVICE-Communications Support - LVRPA Corporate,23/6/2023 00:00:00,274826,2303,LO0024,LONDON COMMUNICATIONS AGENCY LTD,29/5/2023 00:00:00,25/6/2023 00:00:00,P03-2024
P&V,"ASSET PROTECTION, MAINT, DEVEL",THIRD PARTY PAYMENTS,CONSULTANTS (GENERAL),5110,P121918-SERVICE-Artwork for an entrance sign at Coppermill,13/6/2023 00:00:00,274478,325,PL0310,PLACEMARQUE LIMITED,29/5/2023 00:00:00,25/6/2023 00:00:00,P03-2024
P&V,"ASSET PROTECTION, MAINT, DEVEL",THIRD PARTY PAYMENTS,CONSULTANTS (GENERAL),5110,P122266-SERVICE-Annual bridgestation subscription 2023/24,19/6/2023 00:00:00,274732,3100,FS0251,FSW IT SOLUTIONS LIMITED,29/5/2023 00:00:00,25/6/2023 00:00:00,P03-2024
R&B,INTERNAL AUDIT/HEALTH & SAFETY,THIRD PARTY PAYMENTS,CONSULTANTS (GENERAL),5110,P122336-SERVICE-22/23 Audit plan 1 day LSC contract mgt,20/6/2023 00:00:00,275001,1701,CR0543,CROYDON CORPORATE DEBT RECOVERY SERVICE,29/5/2023 00:00:00,25/6/2023 00:00:00,P03-2024
CEO,LEGAL SERVICES,THIRD PARTY PAYMENTS,CONSULTANTS (GENERAL),5110,P122100-SERVICE-GLL Advice,06/05/2023 00:00,274351,3417.88,WO0344,WOMBLE BOND DICKINSON (UK) LLP,29/5/2023 00:00:00,25/6/2023 00:00:00,P03-2024
CEO,LEGAL SERVICES,THIRD PARTY PAYMENTS,CONSULTANTS (GENERAL),5110,P122086-SERVICE-Telecoms Lease - Roydon Road,06/05/2023 00:00,274353,546,WO0344,WOMBLE BOND DICKINSON (UK) LLP,29/5/2023 00:00:00,25/6/2023 00:00:00,P03-2024
CEO,LEGAL SERVICES,THIRD PARTY PAYMENTS,CONSULTANTS (GENERAL),5110,P122087-SERVICE-Lease Renewall - Boat Centre,06/05/2023 00:00,274354,294.5,WO0344,WOMBLE BOND DICKINSON (UK) LLP,29/5/2023 00:00:00,25/6/2023 00:00:00,P03-2024
CEO,LEGAL SERVICES,THIRD PARTY PAYMENTS,CONSULTANTS (GENERAL),5110,P122088-SERVICE-East Wing North - LVAC,06/05/2023 00:00,274355,279,WO0344,WOMBLE BOND DICKINSON (UK) LLP,29/5/2023 00:00:00,25/6/2023 00:00:00,P03-2024
CEO,LEGAL SERVICES,THIRD PARTY PAYMENTS,CONSULTANTS (GENERAL),5110,P122090-SERVICE-LVWWC - Report on Title,06/05/2023 00:00,274357,400,WO0344,WOMBLE BOND DICKINSON (UK) LLP,29/5/2023 00:00:00,25/6/2023 00:00:00,P03-2024
CEO,LEGAL SERVICES,THIRD PARTY PAYMENTS,CONSULTANTS (GENERAL),5110,"P122089-SERVICE-Lease Field Station, Sewardstone",06/05/2023 00:00,274358,1305.2,WO0344,WOMBLE BOND DICKINSON (UK) LLP,29/5/2023 00:00:00,25/6/2023 00:00:00,P03-2024
P&V,ABBEY GARDENS,THIRD PARTY PAYMENTS,CONSULTANTS (GENERAL),5110,P119529-SERVICE-Architects Fees Repair Walls 3 & 12 Waltham A,06/05/2023 00:00,274467,1086.68,PU0213,PURCELL ARCHITECTURE LTD,29/5/2023 00:00:00,25/6/2023 00:00:00,P03-2024
P&V,ABBEY GARDENS,THIRD PARTY PAYMENTS,CONSULTANTS (GENERAL),5110,P119529-SERVICE-Additional Fees for Wall 3,06/05/2023 00:00,274467,484.67,PU0213,PURCELL ARCHITECTURE LTD,29/5/2023 00:00:00,25/6/2023 00:00:00,P03-2024
P&V,ABBEY GARDENS,THIRD PARTY PAYMENTS,CONSULTANTS (GENERAL),5110,P119529-SERVICE-Additional Fees for Wall 12,06/07/2023 00:00,274512,52.83,PU0213,PURCELL ARCHITECTURE LTD,29/5/2023 00:00:00,25/6/2023 00:00:00,P03-2024
P&V,ABBEY GARDENS,THIRD PARTY PAYMENTS,CONSULTANTS (GENERAL),5110,P119529-SERVICE-Additional Fees for Wall 3,06/07/2023 00:00,274512,1225.33,PU0213,PURCELL ARCHITECTURE LTD,29/5/2023 00:00:00,25/6/2023 00:00:00,P03-2024
P&V,LEE VALLEY FARM HOLYFIELDHALL,THIRD PARTY PAYMENTS,CONTRACTORS,5118,P122291-SERVICE-Field Application Using Umbilical Cord,19/6/2023 00:00:00,274934,1712.55,TR0226,TRAMSPREAD,29/5/2023 00:00:00,25/6/2023 00:00:00,P03-2024
R&B,INTERNAL AUDIT/HEALTH & SAFETY,THIRD PARTY PAYMENTS,CONSULTANTS (HEALTH & SAFETY),5123,P121430-SERVICE-Annual H&S contract April - October 2023,20/6/2023 00:00:00,275002,11458.33,RI0053,RIGHT DIRECTIONS (MANAGEMENT) LTD,29/5/2023 00:00:00,25/6/2023 00:00:00,P03-2024
P&V,SPORTS DEVELOPMENT GRANTS & AG,THIRD PARTY PAYMENTS,ICE TRANSITION FUND (GRANTS),5144,P122231-SERVICE-Lee Valley Ice Centre launch catering - 14 Ju,23/6/2023 00:00:00,275064,651,GR0097,GREENWICH LEISURE LTD,29/5/2023 00:00:00,25/6/2023 00:00:00,P03-2024
P&V,SPORTS DEVELOPMENT GRANTS & AG,THIRD PARTY PAYMENTS,ICE TRANSITION FUND (GRANTS),5144,P122348-SERVICE-Lee Valley Ice Centre launch - 14 June 2023,23/6/2023 00:00:00,275145,126.75,CO0769,ROBIN COUSINS MBE,29/5/2023 00:00:00,25/6/2023 00:00:00,P03-2024
R&B,BALANCE SHEET (AUTHORITY),CREDITORS,EMPLOYEES INCOME TAX,6701,PAYE,06/12/2023 00:00,274736,59611.85,HM0368,HMRC,29/5/2023 00:00:00,25/6/2023 00:00:00,P03-2024
R&B,BALANCE SHEET (AUTHORITY),CREDITORS,EMPLOYEES NATIONAL INSURANCE,6702,PAYE,06/12/2023 00:00,274736,27663.61,HM0368,HMRC,29/5/2023 00:00:00,25/6/2023 00:00:00,P03-2024
R&B,BALANCE SHEET (AUTHORITY),CREDITORS,EMPLOYERS NATIONAL INSURANCE,6704,PAYE,06/12/2023 00:00,274736,43252.15,HM0368,HMRC,29/5/2023 00:00:00,25/6/2023 00:00:00,P03-2024
R&B,BALANCE SHEET (AUTHORITY),CREDITORS,EMPLOYEES PENSION LGPS,6706,EMPLOYEE CONTRIBUTIONS,06/12/2023 00:00,274737,27555.55,LO0334,LONDON PENSION FUND OPERATIONAL ACCOUNT,29/5/2023 00:00:00,25/6/2023 00:00:00,P03-2024
R&B,BALANCE SHEET (AUTHORITY),CREDITORS,EMPLOYEES PENSION LGPS,6706,avc Contributions,06/12/2023 00:00,274738,125,LO0455,LOCAL GOVERNMENT AVC DEPARTMENT,29/5/2023 00:00:00,25/6/2023 00:00:00,P03-2024
R&B,BALANCE SHEET (AUTHORITY),CREDITORS,EMPLOYERS PENSION LGPS,6707,EMPLOYER CONTRIBUTIONS,06/12/2023 00:00,274737,52704.49,LO0334,LONDON PENSION FUND OPERATIONAL ACCOUNT,29/5/2023 00:00:00,25/6/2023 00:00:00,P03-2024
R&B,BALANCE SHEET (AUTHORITY),CREDITORS,EMPLOYEES STUDENT LOANS,6709,PAYE,06/12/2023 00:00,274736,1382,HM0368,HMRC,29/5/2023 00:00:00,25/6/2023 00:00:00,P03-2024
R&B,BALANCE SHEET (AUTHORITY),CREDITORS,EMPLOYEES AEO/DEO,6710,Earning Deductions,06/12/2023 00:00,274740,155.44,HM0464,HMCTS- LONDON COLLECTION & COMPLIANCE,29/5/2023 00:00:00,25/6/2023 00:00:00,P03-2024
R&B,BALANCE SHEET (AUTHORITY),CREDITORS,EMPLOYEES UNION SUBSCRIPTIONS,6711,Membership fees,06/12/2023 00:00,274739,57,UN0002,UNISON Greater London Region,29/5/2023 00:00:00,25/6/2023 00:00:00,P03-2024
R&B,BALANCE SHEET (AUTHORITY),CREDITORS,CONSTRUCTION INDUSTRY SCHEME,6721,R G JOYCE,31/5/2023 00:00:00,274420,-80,JO0019,R G JOYCE,29/5/2023 00:00:00,25/6/2023 00:00:00,P03-2024
R&B,BALANCE SHEET (AUTHORITY),CREDITORS,CONSTRUCTION INDUSTRY SCHEME,6721,KENDALL & SONS LIMITED,06/07/2023 00:00,274650,-356.44,KE0023,KENDALL & SONS LIMITED,29/5/2023 00:00:00,25/6/2023 00:00:00,P03-2024
R&B,BALANCE SHEET (AUTHORITY),CREDITORS,CONSTRUCTION INDUSTRY SCHEME,6721,JOYCE,13/6/2023 00:00:00,274756,410,IN0016,INLAND REVENUE ONLY 948/L1005,29/5/2023 00:00:00,25/6/2023 00:00:00,P03-2024
R&B,BALANCE SHEET (AUTHORITY),CREDITORS,CONSTRUCTION INDUSTRY SCHEME,6721,KENDALL,13/6/2023 00:00:00,274756,42,IN0016,INLAND REVENUE ONLY 948/L1005,29/5/2023 00:00:00,25/6/2023 00:00:00,P03-2024
R&B,BALANCE SHEET (AUTHORITY),CREDITORS,CONSTRUCTION INDUSTRY SCHEME,6721,R G JOYCE,14/6/2023 00:00:00,274874,-646,JO0019,R G JOYCE,29/5/2023 00:00:00,25/6/2023 00:00:00,P03-2024
R&B,BALANCE SHEET (AUTHORITY),CREDITORS,CONSTRUCTION INDUSTRY SCHEME,6721,R G JOYCE,21/6/2023 00:00:00,275094,-100,JO0019,R G JOYCE,29/5/2023 00:00:00,25/6/2023 00:00:00,P03-2024
P&V,CAR PARK INCOME,INCOME,CAR PARKING INCOME,9730,P122203-SERVICE-P&D Recharge CA110656 - May 2023,06/12/2023 00:00,274472,28.56,PA0372,PARKINGEYE LIMITED,29/5/2023 00:00:00,25/6/2023 00:00:00,P03-2024
P&V,CAR PARK INCOME,INCOME,CAR PARKING INCOME,9730,P122203-SERVICE-P&D Recharge Pindar - May 2023,06/12/2023 00:00,274472,47.64,PA0372,PARKINGEYE LIMITED,29/5/2023 00:00:00,25/6/2023 00:00:00,P03-2024
P&V,CAR PARK INCOME,INCOME,CAR PARKING INCOME,9730,P122203-SERVICE-P&D Recharge FG - May 2023,06/12/2023 00:00,274472,38.94,PA0372,PARKINGEYE LIMITED,29/5/2023 00:00:00,25/6/2023 00:00:00,P03-2024
P&V,CAR PARK INCOME,INCOME,CAR PARKING INCOME,9730,P122203-SERVICE-P&D Recharge GPP - May 2023,06/12/2023 00:00,274472,37.62,PA0372,PARKINGEYE LIMITED,29/5/2023 00:00:00,25/6/2023 00:00:00,P03-2024
P&V,CAR PARK INCOME,INCOME,CAR PARKING INCOME,9730,P122203-SERVICE-P&D Recharge WAG - May 2023,06/12/2023 00:00,274472,34.62,PA0372,PARKINGEYE LIMITED,29/5/2023 00:00:00,25/6/2023 00:00:00,P03-2024
P&V,CAR PARK INCOME,INCOME,CAR PARKING INCOME,9730,P122203-SERVICE-P&D Recharge CMM - May 2023,06/12/2023 00:00,274472,8.4,PA0372,PARKINGEYE LIMITED,29/5/2023 00:00:00,25/6/2023 00:00:00,P03-2024
P&V,CAR PARK INCOME,INCOME,CAR PARKING INCOME,9730,May-23,06/01/2023 00:00,274475,-7441.34,PA0372,PARKINGEYE LIMITED,29/5/2023 00:00:00,25/6/2023 00:00:00,P03-2024
P&V,CAR PARK INCOME,INCOME,CAR PARKING INCOME,9730,May-23,06/01/2023 00:00,274475,420.97,PA0372,PARKINGEYE LIMITED,29/5/2023 00:00:00,25/6/2023 00:00:00,P03-2024
P&V,CAR PARK INCOME,INCOME,CAR PARKING INCOME,9730,P122203-SERVICE-Paid Parking Tickets Used - OM&M - May 2023,13/6/2023 00:00:00,274550,5.24,PA0372,PARKINGEYE LIMITED,29/5/2023 00:00:00,25/6/2023 00:00:00,P03-2024
P&V,CAR PARK INCOME,INCOME,CAR PARKING INCOME,9730,P122203-SERVICE-Paid Parking Tickets Used - FG - May 2023,13/6/2023 00:00:00,274550,4.06,PA0372,PARKINGEYE LIMITED,29/5/2023 00:00:00,25/6/2023 00:00:00,P03-2024
P&V,CAR PARK INCOME,INCOME,CAR PARKING INCOME,9730,P122203-SERVICE-Paid Parking Tickets Used - GPP - May 2023,13/6/2023 00:00:00,274550,3.89,PA0372,PARKINGEYE LIMITED,29/5/2023 00:00:00,25/6/2023 00:00:00,P03-2024
P&V,CAR PARK INCOME,INCOME,CAR PARKING INCOME,9730,P122203-SERVICE-Paid Parking Tickets Used - Pindar - May 2023,13/6/2023 00:00:00,274550,4.94,PA0372,PARKINGEYE LIMITED,29/5/2023 00:00:00,25/6/2023 00:00:00,P03-2024
P&V,CAR PARK INCOME,INCOME,CAR PARKING INCOME,9730,P122203-SERVICE-Paid Parking Tickets Used - Clayton- May 2023,13/6/2023 00:00:00,274550,0.12,PA0372,PARKINGEYE LIMITED,29/5/2023 00:00:00,25/6/2023 00:00:00,P03-2024
P&V,CAR PARK INCOME,INCOME,CAR PARKING INCOME,9730,P122203-SERVICE-Paid Parking Tickets Used - CMM - May 2023,13/6/2023 00:00:00,274550,0.86,PA0372,PARKINGEYE LIMITED,29/5/2023 00:00:00,25/6/2023 00:00:00,P03-2024
P&V,CAR PARK INCOME,INCOME,CAR PARKING INCOME,9730,May-23,06/07/2023 00:00,274551,-131.75,PA0372,PARKINGEYE LIMITED,29/5/2023 00:00:00,25/6/2023 00:00:00,P03-2024
P&V,CAR PARK INCOME,INCOME,CAR PARKING INCOME,9730,23-May,06/07/2023 00:00,274552,-21.63,PA0372,PARKINGEYE LIMITED,29/5/2023 00:00:00,25/6/2023 00:00:00,P03-2024
P&V,CAR PARK INCOME,INCOME,CAR PARKING INCOME,9730,23-May,06/07/2023 00:00,274553,-75,PA0372,PARKINGEYE LIMITED,29/5/2023 00:00:00,25/6/2023 00:00:00,P03-2024
P&V,CAR PARK INCOME,INCOME,CAR PARKING INCOME,9730,23-May,06/07/2023 00:00,274554,-75.58,PA0372,PARKINGEYE LIMITED,29/5/2023 00:00:00,25/6/2023 00:00:00,P03-2024
P&V,CAR PARK INCOME,INCOME,CAR PARKING INCOME,9730,23-May,06/07/2023 00:00,274555,-56.34,PA0372,PARKINGEYE LIMITED,29/5/2023 00:00:00,25/6/2023 00:00:00,P03-2024
P&V,CAR PARK INCOME,INCOME,CAR PARKING INCOME,9730,23-May,06/07/2023 00:00,274556,-49.94,PA0372,PARKINGEYE LIMITED,29/5/2023 00:00:00,25/6/2023 00:00:00,P03-2024
P&V,CAR PARK INCOME,INCOME,CAR PARKING INCOME,9730,23-May,06/07/2023 00:00,274557,-11.53,PA0372,PARKINGEYE LIMITED,29/5/2023 00:00:00,25/6/2023 00:00:00,P03-2024
